Workbook

Sheet 住宅ローン計算シート
B1: 住宅ローン計算シート
B2: 入力項目 | D2: 不動産評価額 | E2: ¥30,000,000 | G2: 基本統計 | I2: 毎月のローン返済額 | K2: =IF(ValuesEntered,IF($E$17="全期間固定",IF(ValuesEntered,ROUND(-PMT(InterestRate/12,DurationOfLoan,LoanAmount-BonusAmount),0)),"返済額は変動します"),0) -> ¥23,360 | M2: オプション 入力項目 | O2: ローン開始日 | Q2: 2013-11-01
I4: ボーナス月の加算額 | K4: =IF(ValuesEntered,IF($E$17="全期間固定",IF(ValuesEntered,ROUND(-PMT(InterestRate/COUNT($E$13:$E$15),DurationofBonus,BonusAmount,0),0)),"返済額は変動します"),0) -> ¥328,200
D5: 利率 | E5: =IF($E$17="全期間固定",金利設定!$F$5,"金利は変動") -> 3.08% | O5: 固定資産税率 | Q5: 1.50%
I6: 毎月の返済額合計 | K6: =IF(ValuesEntered,SUM(total_payments),0) -> ¥40,747,259
D7: ローン期間 (月) ※最大35年まで | E7: 420 | O7: 固定資産税額 | Q7: =Q5*E2/12 -> ¥37,500
I8: ローン返済額合計 | K8: =IF(ValuesEntered,SUM(total_loan_payment),0) -> ¥38,997,259
D9: ローン金額 | E9: ¥20,000,000
I10: 支払利息合計 | K10: =IF(ValuesEntered,SUM(interest),0) -> ¥4,997,261
D12: ボーナス返済額 | E12: 200,000 | I12: 繰上げ返済により減少した月数 | K12: =IF(AND(ValuesEntered,$E$16="時間短縮"),DurationOfLoan-COUNTIF(NoPaymentsRemaining,">0")-1,0) -> 0
D13: ボーナス返済月 | E13: 4月
E14: 7月 | I14: 繰上げ返済合計 | K14: =IF(ValuesEntered,SUM(extra_payments,),0) -> ¥200,000
D16: 繰り上げ返済方式 | E16: 返済額軽減 | I16: 節約利息 | K16: =IF(ValuesEntered,IF($E$17="全期間固定",ROUNDDOWN(CUMIPMT(InterestRate/12,DurationOfLoan,LoanAmount-BonusAmount,1,DurationOfLoan,0)*-1+IF(E12="",0,CUMIPMT(InterestRate/COUNT($E$13:$E$15),DurationofBonus,BonusAmount,1,DurationofBonus,0))*-1-$K$10,0),"節約利息は変動します"),0) -> ¥7,787,797
D17: 金利タイプ | E17: 全期間固定
C20: 返済額を毎月 | D20: 10% 増額 | E20: =IFERROR(IF(ValuesEntered,"した場合、"&IF(VLOOKUP(PaymentPercentage,PaymentScenarios,2,FALSE)>1,"ローン期間は "&PaymentDurationIncreaseDecrease&" か月に短縮され、返済期間は "&TEXT(PercentageIncreaseDecrease,"0.0% 短縮されます")&"。",IF(VLOOKUP(PaymentPercentage,PaymentScenarios,2,FALSE)=1,"ローン期間は変わらず、返済期間も変化しません。",IF(VLOOKUP(PaymentPercentage,PaymentScenarios,2,FALSE)<1,"ローン期間は "&PaymentDurationIncreaseDecrease&" か月に延長され、返済期間は "&TEXT(PercentageIncreaseDecrease,"0.0% 延長されます")&"。",""))),""),"") -> した場合、ローン期間は 428 か月に短縮され、返済期間は -1.9% 短縮されます。
C24: 返済を | D24: 100 | E24: =IFERROR(IF(ValuesEntered,"か月で終えたい場合、返済額は毎月 "&TEXT(ROUND(PMT(InterestRate/12,$D$24,-LoanAmount),0),"#,##0")&"円 になります。",""),"") -> か月で終えたい場合、返済額は毎月 227,019円 になります。
B27: # | C27: 返済日 | D27: 期首残高 | E27: 利息 | F27: 元金 | I27: ボーナス返済額 | J27: 繰り上げ返済 | K27: 固定資産税 | L27: 返済額合計 | O27: 決算残高 | R27: 残り月数
B28: =ROWS($B$28:B28) -> 1 | C28: =IF(ValuesEntered,LoanStart,"") -> 2013-11-01 | D28: =$E$9 -> ¥20,000,000 | E28: =IF(AND(ValuesEntered,ISNUMBER(C28)),IF($E$16="時間短縮",ROUND(IPMT(VLOOKUP($C28,Rate_table,2,TRUE)/12,1,DurationOfLoan,$D28-BonusAmount)*-1,0),ROUND(IPMT(VLOOKUP($C28,Rate_table,2,TRUE)/12,$B28,DurationOfLoan,LoanAmount-BonusAmount-SUM(extra_payments))*-1,0))+IF($I28=0,0,ROUND(IPMT(VLOOKUP($C28,Rate_table,2,TRUE)/12,COUNTIF($I$28:I28,">0"),DurationofBonus,BonusAmount)*-1,0)),"") -> ¥14,887 | F28: =IF(AND(ValuesEntered,ISNUMBER($C28)),IF($E$16="時間短縮",ROUND(PPMT(VLOOKUP($C28,Rate_table,2,TRUE)/12,1,DurationOfLoan,$D28-BonusAmount)*-1,0),ROUND(PPMT(VLOOKUP($C28,Rate_table,2,TRUE)/12,$B28,DurationOfLoan,LoanAmount-BonusAmount-SUM(extra_payments))*-1,0))+IF(I28=0,0,ROUND(PPMT(VLOOKUP($C28,Rate_table,2,TRUE)/12,COUNTIF($I$28:I28,">0"),DurationofBonus,BonusAmount)*-1,0)),"") -> ¥7,694 | I28: =IF(ISNUMBER(C28)=FALSE,"",IF(AND(D28>$E$12,OR(MONTH(C28)=$E$13,MONTH(C28)=$E$14,MONTH(C28)=$E$15)),$E$12,0)) -> ¥0 | K28: =$Q$7 -> ¥37,500 | L28: =IF(AND(ValuesEntered,ISNUMBER($C28)),SUM(E28:H28,J28:K28),"") -> ¥60,081 | O28: =IF(AND(ValuesEntered,ISNUMBER($C28)),D28-F28-J28,"") -> ¥19,992,306 | R28: =IF(AND($J28>0,$E$16="時間短縮"),Remain_Month,DurationOfLoan-1) -> 419
B29: =ROWS($B$28:B29) -> 2 | C29: =IF(AND(ValuesEntered,R28>0),IF(AND(ISNUMBER(O28),R28>0),EDATE(C28,1),""),"") -> 2013-12-01 | D29: =IF(C29="",0,O28) -> ¥19,992,306 | E29: =IF(AND(ValuesEntered,ISNUMBER(C29)),IF($E$16="時間短縮",ROUND(IPMT(VLOOKUP($C29,Rate_table,2,TRUE)/12,1,$R28,$D29)*-1,0),ROUND(IPMT(VLOOKUP($C29,Rate_table,2,TRUE)/12,$B29,DurationOfLoan,LoanAmount-BonusAmount-SUM(extra_payments))*-1,0))+IF($I29=0,0,ROUND(IPMT(VLOOKUP($C29,Rate_table,2,TRUE)/12,COUNTIF($I$28:I29,">0"),DurationofBonus,BonusAmount)*-1,0)),"") -> ¥14,867 | F29: =IF(AND(ValuesEntered,ISNUMBER($C29)),IF($E$16="時間短縮",ROUND(PPMT(VLOOKUP($C29,Rate_table,2,TRUE)/12,1,$R28,$D29)*-1,0),ROUND(PPMT(VLOOKUP($C29,Rate_table,2,TRUE)/12,$B29,DurationOfLoan,LoanAmount-BonusAmount-SUM(extra_payments))*-1,0))+IF(I29=0,0,ROUND(PPMT(VLOOKUP($C29,Rate_table,2,TRUE)/12,COUNTIF($I$28:I29,">0"),DurationofBonus,BonusAmount)*-1,0)),"") -> ¥7,714 | I29: =IF(ISNUMBER(C29)=FALSE,"",IF(AND(D29>$E$12,OR(MONTH(C29)=$E$13,MONTH(C29)=$E$14,MONTH(C29)=$E$15)),$E$12,0)) -> ¥0 | K29: =IF(C29="",0,$Q$7) -> ¥37,500 | L29: =IF(AND(ValuesEntered,ISNUMBER($C29)),SUM(E29:H29,J29:K29),"") -> ¥60,081 | O29: =IF(AND(ValuesEntered,ISNUMBER($C29)),D29-F29-J29,"") -> ¥19,984,592 | R29: =IF(AND($J29>0,$E$16="時間短縮"),Remain_Month,$R28-1) -> 418
B30: =ROWS($B$28:B30) -> 3 | C30: =IF(ValuesEntered,IF(AND(ISNUMBER(O29),R29>0),EDATE(C29,1),""),"") -> 2014-01-01 | D30: ¥19,984,592 | E30: =IF(AND(ValuesEntered,ISNUMBER(C30)),IF($E$16="時間短縮",ROUND(IPMT(VLOOKUP($C30,Rate_table,2,TRUE)/12,1,$R29,$D30)*-1,0),ROUND(IPMT(VLOOKUP($C30,Rate_table,2,TRUE)/12,$B30,DurationOfLoan,LoanAmount-BonusAmount-SUM(extra_payments))*-1,0))+IF($I30=0,0,ROUND(IPMT(VLOOKUP($C30,Rate_table,2,TRUE)/12,COUNTIF($I$28:I30,">0"),DurationofBonus,BonusAmount)*-1,0)),"") -> ¥14,847 | F30: =IF(AND(ValuesEntered,ISNUMBER($C30)),IF($E$16="時間短縮",ROUND(PPMT(VLOOKUP($C30,Rate_table,2,TRUE)/12,1,$R29,$D30)*-1,0),ROUND(PPMT(VLOOKUP($C30,Rate_table,2,TRUE)/12,$B30,DurationOfLoan,LoanAmount-BonusAmount-SUM(extra_payments))*-1,0))+IF(I30=0,0,ROUND(PPMT(VLOOKUP($C30,Rate_table,2,TRUE)/12,COUNTIF($I$28:I30,">0"),DurationofBonus,BonusAmount)*-1,0)),"") -> ¥7,734 | I30: =IF(ISNUMBER(C30)=FALSE,"",IF(AND(D30>$E$12,OR(MONTH(C30)=$E$13,MONTH(C30)=$E$14,MONTH(C30)=$E$15)),$E$12,0)) -> ¥0 | K30: ¥37,500 | L30: =IF(AND(ValuesEntered,ISNUMBER($C30)),SUM(E30:H30,J30:K30),"") -> ¥60,081 | O30: =IF(AND(ValuesEntered,ISNUMBER($C30)),D30-F30-J30,"") -> ¥19,976,858 | R30: 417
B31: =ROWS($B$28:B31) -> 4 | C31: =IF(ValuesEntered,IF(AND(ISNUMBER(O30),R30>0),EDATE(C30,1),""),"") -> 2014-02-01 | D31: ¥19,976,858 | E31: =IF(AND(ValuesEntered,ISNUMBER(C31)),IF($E$16="時間短縮",ROUND(IPMT(VLOOKUP($C31,Rate_table,2,TRUE)/12,1,$R30,$D31)*-1,0),ROUND(IPMT(VLOOKUP($C31,Rate_table,2,TRUE)/12,$B31,DurationOfLoan,LoanAmount-BonusAmount-SUM(extra_payments))*-1,0))+IF($I31=0,0,ROUND(IPMT(VLOOKUP($C31,Rate_table,2,TRUE)/12,COUNTIF($I$28:I31,">0"),DurationofBonus,BonusAmount)*-1,0)),"") -> ¥14,827 | F31: =IF(AND(ValuesEntered,ISNUMBER($C31)),IF($E$16="時間短縮",ROUND(PPMT(VLOOKUP($C31,Rate_table,2,TRUE)/12,1,$R30,$D31)*-1,0),ROUND(PPMT(VLOOKUP($C31,Rate_table,2,TRUE)/12,$B31,DurationOfLoan,LoanAmount-BonusAmount-SUM(extra_payments))*-1,0))+IF(I31=0,0,ROUND(PPMT(VLOOKUP($C31,Rate_table,2,TRUE)/12,COUNTIF($I$28:I31,">0"),DurationofBonus,BonusAmount)*-1,0)),"") -> ¥7,754 | I31: ¥0 | K31: ¥37,500 | L31: =IF(AND(ValuesEntered,ISNUMBER($C31)),SUM(E31:H31,J31:K31),"") -> ¥60,081 | O31: =IF(AND(ValuesEntered,ISNUMBER($C31)),D31-F31-J31,"") -> ¥19,969,104 | R31: 416
B32: =ROWS($B$28:B32) -> 5 | C32: =IF(ValuesEntered,IF(AND(ISNUMBER(O31),R31>0),EDATE(C31,1),""),"") -> 2014-03-01 | D32: ¥19,969,104 | E32: =IF(AND(ValuesEntered,ISNUMBER(C32)),IF($E$16="時間短縮",ROUND(IPMT(VLOOKUP($C32,Rate_table,2,TRUE)/12,1,$R31,$D32)*-1,0),ROUND(IPMT(VLOOKUP($C32,Rate_table,2,TRUE)/12,$B32,DurationOfLoan,LoanAmount-BonusAmount-SUM(extra_payments))*-1,0))+IF($I32=0,0,ROUND(IPMT(VLOOKUP($C32,Rate_table,2,TRUE)/12,COUNTIF($I$28:I32,">0"),DurationofBonus,BonusAmount)*-1,0)),"") -> ¥14,807 | F32: =IF(AND(ValuesEntered,ISNUMBER($C32)),IF($E$16="時間短縮",ROUND(PPMT(VLOOKUP($C32,Rate_table,2,TRUE)/12,1,$R31,$D32)*-1,0),ROUND(PPMT(VLOOKUP($C32,Rate_table,2,TRUE)/12,$B32,DurationOfLoan,LoanAmount-BonusAmount-SUM(extra_payments))*-1,0))+IF(I32=0,0,ROUND(PPMT(VLOOKUP($C32,Rate_table,2,TRUE)/12,COUNTIF($I$28:I32,">0"),DurationofBonus,BonusAmount)*-1,0)),"") -> ¥7,774 | I32: ¥0 | K32: ¥37,500 | L32: =IF(AND(ValuesEntered,ISNUMBER($C32)),SUM(E32:H32,J32:K32),"") -> ¥60,081 | O32: =IF(AND(ValuesEntered,ISNUMBER($C32)),D32-F32-J32,"") -> ¥19,961,330 | R32: 415
B33: =ROWS($B$28:B33) -> 6 | C33: =IF(ValuesEntered,IF(AND(ISNUMBER(O32),R32>0),EDATE(C32,1),""),"") -> 2014-04-01 | D33: ¥19,961,330 | E33: =IF(AND(ValuesEntered,ISNUMBER(C33)),IF($E$16="時間短縮",ROUND(IPMT(VLOOKUP($C33,Rate_table,2,TRUE)/12,1,$R32,$D33)*-1,0),ROUND(IPMT(VLOOKUP($C33,Rate_table,2,TRUE)/12,$B33,DurationOfLoan,LoanAmount-BonusAmount-SUM(extra_payments))*-1,0))+IF($I33=0,0,ROUND(IPMT(VLOOKUP($C33,Rate_table,2,TRUE)/12,COUNTIF($I$28:I33,">0"),DurationofBonus,BonusAmount)*-1,0)),"") -> ¥50,720 | F33: =IF(AND(ValuesEntered,ISNUMBER($C33)),IF($E$16="時間短縮",ROUND(PPMT(VLOOKUP($C33,Rate_table,2,TRUE)/12,1,$R32,$D33)*-1,0),ROUND(PPMT(VLOOKUP($C33,Rate_table,2,TRUE)/12,$B33,DurationOfLoan,LoanAmount-BonusAmount-SUM(extra_payments))*-1,0))+IF(I33=0,0,ROUND(PPMT(VLOOKUP($C33,Rate_table,2,TRUE)/12,COUNTIF($I$28:I33,">0"),DurationofBonus,BonusAmount)*-1,0)),"") -> ¥190,621 | I33: ¥200,000 | K33: ¥37,500 | L33: =IF(AND(ValuesEntered,ISNUMBER($C33)),SUM(E33:H33,J33:K33),"") -> ¥278,841 | O33: =IF(AND(ValuesEntered,ISNUMBER($C33)),D33-F33-J33,"") -> ¥19,770,709 | R33: 414
B34: =ROWS($B$28:B34) -> 7 | C34: =IF(ValuesEntered,IF(AND(ISNUMBER(O33),R33>0),EDATE(C33,1),""),"") -> 2014-05-01 | D34: ¥19,770,709 | E34: =IF(AND(ValuesEntered,ISNUMBER(C34)),IF($E$16="時間短縮",ROUND(IPMT(VLOOKUP($C34,Rate_table,2,TRUE)/12,1,$R33,$D34)*-1,0),ROUND(IPMT(VLOOKUP($C34,Rate_table,2,TRUE)/12,$B34,DurationOfLoan,LoanAmount-BonusAmount-SUM(extra_payments))*-1,0))+IF($I34=0,0,ROUND(IPMT(VLOOKUP($C34,Rate_table,2,TRUE)/12,COUNTIF($I$28:I34,">0"),DurationofBonus,BonusAmount)*-1,0)),"") -> ¥14,767 | F34: =IF(AND(ValuesEntered,ISNUMBER($C34)),IF($E$16="時間短縮",ROUND(PPMT(VLOOKUP($C34,Rate_table,2,TRUE)/12,1,$R33,$D34)*-1,0),ROUND(PPMT(VLOOKUP($C34,Rate_table,2,TRUE)/12,$B34,DurationOfLoan,LoanAmount-BonusAmount-SUM(extra_payments))*-1,0))+IF(I34=0,0,ROUND(PPMT(VLOOKUP($C34,Rate_table,2,TRUE)/12,COUNTIF($I$28:I34,">0"),DurationofBonus,BonusAmount)*-1,0)),"") -> ¥7,814 | I34: ¥0 | K34: ¥37,500 | L34: =IF(AND(ValuesEntered,ISNUMBER($C34)),SUM(E34:H34,J34:K34),"") -> ¥60,081 | O34: =IF(AND(ValuesEntered,ISNUMBER($C34)),D34-F34-J34,"") -> ¥19,762,895 | R34: 413
B35: =ROWS($B$28:B35) -> 8 | C35: =IF(ValuesEntered,IF(AND(ISNUMBER(O34),R34>0),EDATE(C34,1),""),"") -> 2014-06-01 | D35: ¥19,762,895 | E35: =IF(AND(ValuesEntered,ISNUMBER(C35)),IF($E$16="時間短縮",ROUND(IPMT(VLOOKUP($C35,Rate_table,2,TRUE)/12,1,$R34,$D35)*-1,0),ROUND(IPMT(VLOOKUP($C35,Rate_table,2,TRUE)/12,$B35,DurationOfLoan,LoanAmount-BonusAmount-SUM(extra_payments))*-1,0))+IF($I35=0,0,ROUND(IPMT(VLOOKUP($C35,Rate_table,2,TRUE)/12,COUNTIF($I$28:I35,">0"),DurationofBonus,BonusAmount)*-1,0)),"") -> ¥14,747 | F35: =IF(AND(ValuesEntered,ISNUMBER($C35)),IF($E$16="時間短縮",ROUND(PPMT(VLOOKUP($C35,Rate_table,2,TRUE)/12,1,$R34,$D35)*-1,0),ROUND(PPMT(VLOOKUP($C35,Rate_table,2,TRUE)/12,$B35,DurationOfLoan,LoanAmount-BonusAmount-SUM(extra_payments))*-1,0))+IF(I35=0,0,ROUND(PPMT(VLOOKUP($C35,Rate_table,2,TRUE)/12,COUNTIF($I$28:I35,">0"),DurationofBonus,BonusAmount)*-1,0)),"") -> ¥7,834 | I35: ¥0 | K35: ¥37,500 | L35: =IF(AND(ValuesEntered,ISNUMBER($C35)),SUM(E35:H35,J35:K35),"") -> ¥60,081 | O35: =IF(AND(ValuesEntered,ISNUMBER($C35)),D35-F35-J35,"") -> ¥19,755,061 | R35: 412
B36: =ROWS($B$28:B36) -> 9 | C36: =IF(ValuesEntered,IF(AND(ISNUMBER(O35),R35>0),EDATE(C35,1),""),"") -> 2014-07-01 | D36: ¥19,755,061 | E36: =IF(AND(ValuesEntered,ISNUMBER(C36)),IF($E$16="時間短縮",ROUND(IPMT(VLOOKUP($C36,Rate_table,2,TRUE)/12,1,$R35,$D36)*-1,0),ROUND(IPMT(VLOOKUP($C36,Rate_table,2,TRUE)/12,$B36,DurationOfLoan,LoanAmount-BonusAmount-SUM(extra_payments))*-1,0))+IF($I36=0,0,ROUND(IPMT(VLOOKUP($C36,Rate_table,2,TRUE)/12,COUNTIF($I$28:I36,">0"),DurationofBonus,BonusAmount)*-1,0)),"") -> ¥50,191 | F36: =IF(AND(ValuesEntered,ISNUMBER($C36)),IF($E$16="時間短縮",ROUND(PPMT(VLOOKUP($C36,Rate_table,2,TRUE)/12,1,$R35,$D36)*-1,0),ROUND(PPMT(VLOOKUP($C36,Rate_table,2,TRUE)/12,$B36,DurationOfLoan,LoanAmount-BonusAmount-SUM(extra_payments))*-1,0))+IF(I36=0,0,ROUND(PPMT(VLOOKUP($C36,Rate_table,2,TRUE)/12,COUNTIF($I$28:I36,">0"),DurationofBonus,BonusAmount)*-1,0)),"") -> ¥191,150 | I36: ¥200,000 | J36: ¥200,000 | K36: ¥37,500 | L36: =IF(AND(ValuesEntered,ISNUMBER($C36)),SUM(E36:H36,J36:K36),"") -> ¥478,841 | O36: =IF(AND(ValuesEntered,ISNUMBER($C36)),D36-F36-J36,"") -> ¥19,363,911 | R36: 411
B37: =ROWS($B$28:B37) -> 10 | C37: =IF(ValuesEntered,IF(AND(ISNUMBER(O36),R36>0),EDATE(C36,1),""),"") -> 2014-08-01 | D37: ¥19,363,911 | E37: =IF(AND(ValuesEntered,ISNUMBER(C37)),IF($E$16="時間短縮",ROUND(IPMT(VLOOKUP($C37,Rate_table,2,TRUE)/12,1,$R36,$D37)*-1,0),ROUND(IPMT(VLOOKUP($C37,Rate_table,2,TRUE)/12,$B37,DurationOfLoan,LoanAmount-BonusAmount-SUM(extra_payments))*-1,0))+IF($I37=0,0,ROUND(IPMT(VLOOKUP($C37,Rate_table,2,TRUE)/12,COUNTIF($I$28:I37,">0"),DurationofBonus,BonusAmount)*-1,0)),"") -> ¥14,707 | F37: =IF(AND(ValuesEntered,ISNUMBER($C37)),IF($E$16="時間短縮",ROUND(PPMT(VLOOKUP($C37,Rate_table,2,TRUE)/12,1,$R36,$D37)*-1,0),ROUND(PPMT(VLOOKUP($C37,Rate_table,2,TRUE)/12,$B37,DurationOfLoan,LoanAmount-BonusAmount-SUM(extra_payments))*-1,0))+IF(I37=0,0,ROUND(PPMT(VLOOKUP($C37,Rate_table,2,TRUE)/12,COUNTIF($I$28:I37,">0"),DurationofBonus,BonusAmount)*-1,0)),"") -> ¥7,874 | I37: ¥0 | K37: ¥37,500 | L37: =IF(AND(ValuesEntered,ISNUMBER($C37)),SUM(E37:H37,J37:K37),"") -> ¥60,081 | O37: =IF(AND(ValuesEntered,ISNUMBER($C37)),D37-F37-J37,"") -> ¥19,356,037 | R37: 410
B38: =ROWS($B$28:B38) -> 11 | C38: =IF(ValuesEntered,IF(AND(ISNUMBER(O37),R37>0),EDATE(C37,1),""),"") -> 2014-09-01 | D38: ¥19,356,037 | E38: =IF(AND(ValuesEntered,ISNUMBER(C38)),IF($E$16="時間短縮",ROUND(IPMT(VLOOKUP($C38,Rate_table,2,TRUE)/12,1,$R37,$D38)*-1,0),ROUND(IPMT(VLOOKUP($C38,Rate_table,2,TRUE)/12,$B38,DurationOfLoan,LoanAmount-BonusAmount-SUM(extra_payments))*-1,0))+IF($I38=0,0,ROUND(IPMT(VLOOKUP($C38,Rate_table,2,TRUE)/12,COUNTIF($I$28:I38,">0"),DurationofBonus,BonusAmount)*-1,0)),"") -> ¥14,687 | F38: =IF(AND(ValuesEntered,ISNUMBER($C38)),IF($E$16="時間短縮",ROUND(PPMT(VLOOKUP($C38,Rate_table,2,TRUE)/12,1,$R37,$D38)*-1,0),ROUND(PPMT(VLOOKUP($C38,Rate_table,2,TRUE)/12,$B38,DurationOfLoan,LoanAmount-BonusAmount-SUM(extra_payments))*-1,0))+IF(I38=0,0,ROUND(PPMT(VLOOKUP($C38,Rate_table,2,TRUE)/12,COUNTIF($I$28:I38,">0"),DurationofBonus,BonusAmount)*-1,0)),"") -> ¥7,894 | I38: ¥0 | K38: ¥37,500 | L38: =IF(AND(ValuesEntered,ISNUMBER($C38)),SUM(E38:H38,J38:K38),"") -> ¥60,081 | O38: =IF(AND(ValuesEntered,ISNUMBER($C38)),D38-F38-J38,"") -> ¥19,348,143 | R38: 409
B39: =ROWS($B$28:B39) -> 12 | C39: =IF(ValuesEntered,IF(AND(ISNUMBER(O38),R38>0),EDATE(C38,1),""),"") -> 2014-10-01 | D39: ¥19,348,143 | E39: =IF(AND(ValuesEntered,ISNUMBER(C39)),IF($E$16="時間短縮",ROUND(IPMT(VLOOKUP($C39,Rate_table,2,TRUE)/12,1,$R38,$D39)*-1,0),ROUND(IPMT(VLOOKUP($C39,Rate_table,2,TRUE)/12,$B39,DurationOfLoan,LoanAmount-BonusAmount-SUM(extra_payments))*-1,0))+IF($I39=0,0,ROUND(IPMT(VLOOKUP($C39,Rate_table,2,TRUE)/12,COUNTIF($I$28:I39,">0"),DurationofBonus,BonusAmount)*-1,0)),"") -> ¥14,667 | F39: =IF(AND(ValuesEntered,ISNUMBER($C39)),IF($E$16="時間短縮",ROUND(PPMT(VLOOKUP($C39,Rate_table,2,TRUE)/12,1,$R38,$D39)*-1,0),ROUND(PPMT(VLOOKUP($C39,Rate_table,2,TRUE)/12,$B39,DurationOfLoan,LoanAmount-BonusAmount-SUM(extra_payments))*-1,0))+IF(I39=0,0,ROUND(PPMT(VLOOKUP($C39,Rate_table,2,TRUE)/12,COUNTIF($I$28:I39,">0"),DurationofBonus,BonusAmount)*-1,0)),"") -> ¥7,914 | I39: ¥0 | K39: ¥37,500 | L39: =IF(AND(ValuesEntered,ISNUMBER($C39)),SUM(E39:H39,J39:K39),"") -> ¥60,081 | O39: =IF(AND(ValuesEntered,ISNUMBER($C39)),D39-F39-J39,"") -> ¥19,340,229 | R39: 408
B40: =ROWS($B$28:B40) -> 13 | C40: =IF(ValuesEntered,IF(AND(ISNUMBER(O39),R39>0),EDATE(C39,1),""),"") -> 2014-11-01 | D40: ¥19,340,229 | E40: =IF(AND(ValuesEntered,ISNUMBER(C40)),IF($E$16="時間短縮",ROUND(IPMT(VLOOKUP($C40,Rate_table,2,TRUE)/12,1,$R39,$D40)*-1,0),ROUND(IPMT(VLOOKUP($C40,Rate_table,2,TRUE)/12,$B40,DurationOfLoan,LoanAmount-BonusAmount-SUM(extra_payments))*-1,0))+IF($I40=0,0,ROUND(IPMT(VLOOKUP($C40,Rate_table,2,TRUE)/12,COUNTIF($I$28:I40,">0"),DurationofBonus,BonusAmount)*-1,0)),"") -> ¥14,646 | F40: =IF(AND(ValuesEntered,ISNUMBER($C40)),IF($E$16="時間短縮",ROUND(PPMT(VLOOKUP($C40,Rate_table,2,TRUE)/12,1,$R39,$D40)*-1,0),ROUND(PPMT(VLOOKUP($C40,Rate_table,2,TRUE)/12,$B40,DurationOfLoan,LoanAmount-BonusAmount-SUM(extra_payments))*-1,0))+IF(I40=0,0,ROUND(PPMT(VLOOKUP($C40,Rate_table,2,TRUE)/12,COUNTIF($I$28:I40,">0"),DurationofBonus,BonusAmount)*-1,0)),"") -> ¥7,935 | I40: ¥0 | K40: ¥37,500 | L40: =IF(AND(ValuesEntered,ISNUMBER($C40)),SUM(E40:H40,J40:K40),"") -> ¥60,081 | O40: =IF(AND(ValuesEntered,ISNUMBER($C40)),D40-F40-J40,"") -> ¥19,332,294 | R40: 407
B41: =ROWS($B$28:B41) -> 14 | C41: =IF(ValuesEntered,IF(AND(ISNUMBER(O40),R40>0),EDATE(C40,1),""),"") -> 2014-12-01 | D41: ¥19,332,294 | E41: =IF(AND(ValuesEntered,ISNUMBER(C41)),IF($E$16="時間短縮",ROUND(IPMT(VLOOKUP($C41,Rate_table,2,TRUE)/12,1,$R40,$D41)*-1,0),ROUND(IPMT(VLOOKUP($C41,Rate_table,2,TRUE)/12,$B41,DurationOfLoan,LoanAmount-BonusAmount-SUM(extra_payments))*-1,0))+IF($I41=0,0,ROUND(IPMT(VLOOKUP($C41,Rate_table,2,TRUE)/12,COUNTIF($I$28:I41,">0"),DurationofBonus,BonusAmount)*-1,0)),"") -> ¥14,626 | F41: =IF(AND(ValuesEntered,ISNUMBER($C41)),IF($E$16="時間短縮",ROUND(PPMT(VLOOKUP($C41,Rate_table,2,TRUE)/12,1,$R40,$D41)*-1,0),ROUND(PPMT(VLOOKUP($C41,Rate_table,2,TRUE)/12,$B41,DurationOfLoan,LoanAmount-BonusAmount-SUM(extra_payments))*-1,0))+IF(I41=0,0,ROUND(PPMT(VLOOKUP($C41,Rate_table,2,TRUE)/12,COUNTIF($I$28:I41,">0"),DurationofBonus,BonusAmount)*-1,0)),"") -> ¥7,955 | I41: ¥0 | K41: ¥37,500 | L41: =IF(AND(ValuesEntered,ISNUMBER($C41)),SUM(E41:H41,J41:K41),"") -> ¥60,081 | O41: =IF(AND(ValuesEntered,ISNUMBER($C41)),D41-F41-J41,"") -> ¥19,324,339 | R41: 406
B42: =ROWS($B$28:B42) -> 15 | C42: =IF(ValuesEntered,IF(AND(ISNUMBER(O41),R41>0),EDATE(C41,1),""),"") -> 2015-01-01 | D42: ¥19,324,339 | E42: =IF(AND(ValuesEntered,ISNUMBER(C42)),IF($E$16="時間短縮",ROUND(IPMT(VLOOKUP($C42,Rate_table,2,TRUE)/12,1,$R41,$D42)*-1,0),ROUND(IPMT(VLOOKUP($C42,Rate_table,2,TRUE)/12,$B42,DurationOfLoan,LoanAmount-BonusAmount-SUM(extra_payments))*-1,0))+IF($I42=0,0,ROUND(IPMT(VLOOKUP($C42,Rate_table,2,TRUE)/12,COUNTIF($I$28:I42,">0"),DurationofBonus,BonusAmount)*-1,0)),"") -> ¥14,606 | F42: =IF(AND(ValuesEntered,ISNUMBER($C42)),IF($E$16="時間短縮",ROUND(PPMT(VLOOKUP($C42,Rate_table,2,TRUE)/12,1,$R41,$D42)*-1,0),ROUND(PPMT(VLOOKUP($C42,Rate_table,2,TRUE)/12,$B42,DurationOfLoan,LoanAmount-BonusAmount-SUM(extra_payments))*-1,0))+IF(I42=0,0,ROUND(PPMT(VLOOKUP($C42,Rate_table,2,TRUE)/12,COUNTIF($I$28:I42,">0"),DurationofBonus,BonusAmount)*-1,0)),"") -> ¥7,976 | I42: ¥0 | K42: ¥37,500 | L42: =IF(AND(ValuesEntered,ISNUMBER($C42)),SUM(E42:H42,J42:K42),"") -> ¥60,082 | O42: =IF(AND(ValuesEntered,ISNUMBER($C42)),D42-F42-J42,"") -> ¥19,316,363 | R42: 405
B43: =ROWS($B$28:B43) -> 16 | C43: =IF(ValuesEntered,IF(AND(ISNUMBER(O42),R42>0),EDATE(C42,1),""),"") -> 2015-02-01 | D43: ¥19,316,363 | E43: =IF(AND(ValuesEntered,ISNUMBER(C43)),IF($E$16="時間短縮",ROUND(IPMT(VLOOKUP($C43,Rate_table,2,TRUE)/12,1,$R42,$D43)*-1,0),ROUND(IPMT(VLOOKUP($C43,Rate_table,2,TRUE)/12,$B43,DurationOfLoan,LoanAmount-BonusAmount-SUM(extra_payments))*-1,0))+IF($I43=0,0,ROUND(IPMT(VLOOKUP($C43,Rate_table,2,TRUE)/12,COUNTIF($I$28:I43,">0"),DurationofBonus,BonusAmount)*-1,0)),"") -> ¥14,585 | F43: =IF(AND(ValuesEntered,ISNUMBER($C43)),IF($E$16="時間短縮",ROUND(PPMT(VLOOKUP($C43,Rate_table,2,TRUE)/12,1,$R42,$D43)*-1,0),ROUND(PPMT(VLOOKUP($C43,Rate_table,2,TRUE)/12,$B43,DurationOfLoan,LoanAmount-BonusAmount-SUM(extra_payments))*-1,0))+IF(I43=0,0,ROUND(PPMT(VLOOKUP($C43,Rate_table,2,TRUE)/12,COUNTIF($I$28:I43,">0"),DurationofBonus,BonusAmount)*-1,0)),"") -> ¥7,996 | I43: ¥0 | K43: ¥37,500 | L43: =IF(AND(ValuesEntered,ISNUMBER($C43)),SUM(E43:H43,J43:K43),"") -> ¥60,081 | O43: =IF(AND(ValuesEntered,ISNUMBER($C43)),D43-F43-J43,"") -> ¥19,308,367 | R43: 404
B44: =ROWS($B$28:B44) -> 17 | C44: =IF(ValuesEntered,IF(AND(ISNUMBER(O43),R43>0),EDATE(C43,1),""),"") -> 2015-03-01 | D44: ¥19,308,367 | E44: =IF(AND(ValuesEntered,ISNUMBER(C44)),IF($E$16="時間短縮",ROUND(IPMT(VLOOKUP($C44,Rate_table,2,TRUE)/12,1,$R43,$D44)*-1,0),ROUND(IPMT(VLOOKUP($C44,Rate_table,2,TRUE)/12,$B44,DurationOfLoan,LoanAmount-BonusAmount-SUM(extra_payments))*-1,0))+IF($I44=0,0,ROUND(IPMT(VLOOKUP($C44,Rate_table,2,TRUE)/12,COUNTIF($I$28:I44,">0"),DurationofBonus,BonusAmount)*-1,0)),"") -> ¥14,565 | F44: =IF(AND(ValuesEntered,ISNUMBER($C44)),IF($E$16="時間短縮",ROUND(PPMT(VLOOKUP($C44,Rate_table,2,TRUE)/12,1,$R43,$D44)*-1,0),ROUND(PPMT(VLOOKUP($C44,Rate_table,2,TRUE)/12,$B44,DurationOfLoan,LoanAmount-BonusAmount-SUM(extra_payments))*-1,0))+IF(I44=0,0,ROUND(PPMT(VLOOKUP($C44,Rate_table,2,TRUE)/12,COUNTIF($I$28:I44,">0"),DurationofBonus,BonusAmount)*-1,0)),"") -> ¥8,017 | I44: ¥0 | K44: ¥37,500 | L44: =IF(AND(ValuesEntered,ISNUMBER($C44)),SUM(E44:H44,J44:K44),"") -> ¥60,082 | O44: =IF(AND(ValuesEntered,ISNUMBER($C44)),D44-F44-J44,"") -> ¥19,300,350 | R44: 403
B45: =ROWS($B$28:B45) -> 18 | C45: =IF(ValuesEntered,IF(AND(ISNUMBER(O44),R44>0),EDATE(C44,1),""),"") -> 2015-04-01 | D45: ¥19,300,350 | E45: =IF(AND(ValuesEntered,ISNUMBER(C45)),IF($E$16="時間短縮",ROUND(IPMT(VLOOKUP($C45,Rate_table,2,TRUE)/12,1,$R44,$D45)*-1,0),ROUND(IPMT(VLOOKUP($C45,Rate_table,2,TRUE)/12,$B45,DurationOfLoan,LoanAmount-BonusAmount-SUM(extra_payments))*-1,0))+IF($I45=0,0,ROUND(IPMT(VLOOKUP($C45,Rate_table,2,TRUE)/12,COUNTIF($I$28:I45,">0"),DurationofBonus,BonusAmount)*-1,0)),"") -> ¥49,538 | F45: =IF(AND(ValuesEntered,ISNUMBER($C45)),IF($E$16="時間短縮",ROUND(PPMT(VLOOKUP($C45,Rate_table,2,TRUE)/12,1,$R44,$D45)*-1,0),ROUND(PPMT(VLOOKUP($C45,Rate_table,2,TRUE)/12,$B45,DurationOfLoan,LoanAmount-BonusAmount-SUM(extra_payments))*-1,0))+IF(I45=0,0,ROUND(PPMT(VLOOKUP($C45,Rate_table,2,TRUE)/12,COUNTIF($I$28:I45,">0"),DurationofBonus,BonusAmount)*-1,0)),"") -> ¥191,804 | I45: ¥200,000 | K45: ¥37,500 | L45: =IF(AND(ValuesEntered,ISNUMBER($C45)),SUM(E45:H45,J45:K45),"") -> ¥278,842 | O45: =IF(AND(ValuesEntered,ISNUMBER($C45)),D45-F45-J45,"") -> ¥19,108,546 | R45: 402
B46: =ROWS($B$28:B46) -> 19 | C46: =IF(ValuesEntered,IF(AND(ISNUMBER(O45),R45>0),EDATE(C45,1),""),"") -> 2015-05-01 | D46: ¥19,108,546 | E46: =IF(AND(ValuesEntered,ISNUMBER(C46)),IF($E$16="時間短縮",ROUND(IPMT(VLOOKUP($C46,Rate_table,2,TRUE)/12,1,$R45,$D46)*-1,0),ROUND(IPMT(VLOOKUP($C46,Rate_table,2,TRUE)/12,$B46,DurationOfLoan,LoanAmount-BonusAmount-SUM(extra_payments))*-1,0))+IF($I46=0,0,ROUND(IPMT(VLOOKUP($C46,Rate_table,2,TRUE)/12,COUNTIF($I$28:I46,">0"),DurationofBonus,BonusAmount)*-1,0)),"") -> ¥14,523 | F46: =IF(AND(ValuesEntered,ISNUMBER($C46)),IF($E$16="時間短縮",ROUND(PPMT(VLOOKUP($C46,Rate_table,2,TRUE)/12,1,$R45,$D46)*-1,0),ROUND(PPMT(VLOOKUP($C46,Rate_table,2,TRUE)/12,$B46,DurationOfLoan,LoanAmount-BonusAmount-SUM(extra_payments))*-1,0))+IF(I46=0,0,ROUND(PPMT(VLOOKUP($C46,Rate_table,2,TRUE)/12,COUNTIF($I$28:I46,">0"),DurationofBonus,BonusAmount)*-1,0)),"") -> ¥8,058 | I46: ¥0 | K46: ¥37,500 | L46: =IF(AND(ValuesEntered,ISNUMBER($C46)),SUM(E46:H46,J46:K46),"") -> ¥60,081 | O46: =IF(AND(ValuesEntered,ISNUMBER($C46)),D46-F46-J46,"") -> ¥19,100,488 | R46: 401
B47: =ROWS($B$28:B47) -> 20 | C47: =IF(ValuesEntered,IF(AND(ISNUMBER(O46),R46>0),EDATE(C46,1),""),"") -> 2015-06-01 | D47: ¥19,100,488 | E47: =IF(AND(ValuesEntered,ISNUMBER(C47)),IF($E$16="時間短縮",ROUND(IPMT(VLOOKUP($C47,Rate_table,2,TRUE)/12,1,$R46,$D47)*-1,0),ROUND(IPMT(VLOOKUP($C47,Rate_table,2,TRUE)/12,$B47,DurationOfLoan,LoanAmount-BonusAmount-SUM(extra_payments))*-1,0))+IF($I47=0,0,ROUND(IPMT(VLOOKUP($C47,Rate_table,2,TRUE)/12,COUNTIF($I$28:I47,">0"),DurationofBonus,BonusAmount)*-1,0)),"") -> ¥14,503 | F47: =IF(AND(ValuesEntered,ISNUMBER($C47)),IF($E$16="時間短縮",ROUND(PPMT(VLOOKUP($C47,Rate_table,2,TRUE)/12,1,$R46,$D47)*-1,0),ROUND(PPMT(VLOOKUP($C47,Rate_table,2,TRUE)/12,$B47,DurationOfLoan,LoanAmount-BonusAmount-SUM(extra_payments))*-1,0))+IF(I47=0,0,ROUND(PPMT(VLOOKUP($C47,Rate_table,2,TRUE)/12,COUNTIF($I$28:I47,">0"),DurationofBonus,BonusAmount)*-1,0)),"") -> ¥8,078 | I47: ¥0 | K47: ¥37,500 | L47: =IF(AND(ValuesEntered,ISNUMBER($C47)),SUM(E47:H47,J47:K47),"") -> ¥60,081 | O47: =IF(AND(ValuesEntered,ISNUMBER($C47)),D47-F47-J47,"") -> ¥19,092,410 | R47: 400
B48: =ROWS($B$28:B48) -> 21 | C48: =IF(ValuesEntered,IF(AND(ISNUMBER(O47),R47>0),EDATE(C47,1),""),"") -> 2015-07-01 | D48: ¥19,092,410 | E48: =IF(AND(ValuesEntered,ISNUMBER(C48)),IF($E$16="時間短縮",ROUND(IPMT(VLOOKUP($C48,Rate_table,2,TRUE)/12,1,$R47,$D48)*-1,0),ROUND(IPMT(VLOOKUP($C48,Rate_table,2,TRUE)/12,$B48,DurationOfLoan,LoanAmount-BonusAmount-SUM(extra_payments))*-1,0))+IF($I48=0,0,ROUND(IPMT(VLOOKUP($C48,Rate_table,2,TRUE)/12,COUNTIF($I$28:I48,">0"),DurationofBonus,BonusAmount)*-1,0)),"") -> ¥49,004 | F48: =IF(AND(ValuesEntered,ISNUMBER($C48)),IF($E$16="時間短縮",ROUND(PPMT(VLOOKUP($C48,Rate_table,2,TRUE)/12,1,$R47,$D48)*-1,0),ROUND(PPMT(VLOOKUP($C48,Rate_table,2,TRUE)/12,$B48,DurationOfLoan,LoanAmount-BonusAmount-SUM(extra_payments))*-1,0))+IF(I48=0,0,ROUND(PPMT(VLOOKUP($C48,Rate_table,2,TRUE)/12,COUNTIF($I$28:I48,">0"),DurationofBonus,BonusAmount)*-1,0)),"") -> ¥192,337 | I48: ¥200,000 | K48: ¥37,500 | L48: =IF(AND(ValuesEntered,ISNUMBER($C48)),SUM(E48:H48,J48:K48),"") -> ¥278,841 | O48: =IF(AND(ValuesEntered,ISNUMBER($C48)),D48-F48-J48,"") -> ¥18,900,073 | R48: 399
B49: =ROWS($B$28:B49) -> 22 | C49: =IF(ValuesEntered,IF(AND(ISNUMBER(O48),R48>0),EDATE(C48,1),""),"") -> 2015-08-01 | D49: ¥18,900,073 | E49: =IF(AND(ValuesEntered,ISNUMBER(C49)),IF($E$16="時間短縮",ROUND(IPMT(VLOOKUP($C49,Rate_table,2,TRUE)/12,1,$R48,$D49)*-1,0),ROUND(IPMT(VLOOKUP($C49,Rate_table,2,TRUE)/12,$B49,DurationOfLoan,LoanAmount-BonusAmount-SUM(extra_payments))*-1,0))+IF($I49=0,0,ROUND(IPMT(VLOOKUP($C49,Rate_table,2,TRUE)/12,COUNTIF($I$28:I49,">0"),DurationofBonus,BonusAmount)*-1,0)),"") -> ¥14,461 | F49: =IF(AND(ValuesEntered,ISNUMBER($C49)),IF($E$16="時間短縮",ROUND(PPMT(VLOOKUP($C49,Rate_table,2,TRUE)/12,1,$R48,$D49)*-1,0),ROUND(PPMT(VLOOKUP($C49,Rate_table,2,TRUE)/12,$B49,DurationOfLoan,LoanAmount-BonusAmount-SUM(extra_payments))*-1,0))+IF(I49=0,0,ROUND(PPMT(VLOOKUP($C49,Rate_table,2,TRUE)/12,COUNTIF($I$28:I49,">0"),DurationofBonus,BonusAmount)*-1,0)),"") -> ¥8,120 | I49: ¥0 | K49: ¥37,500 | L49: =IF(AND(ValuesEntered,ISNUMBER($C49)),SUM(E49:H49,J49:K49),"") -> ¥60,081 | O49: =IF(AND(ValuesEntered,ISNUMBER($C49)),D49-F49-J49,"") -> ¥18,891,953 | R49: 398
B50: =ROWS($B$28:B50) -> 23 | C50: =IF(ValuesEntered,IF(AND(ISNUMBER(O49),R49>0),EDATE(C49,1),""),"") -> 2015-09-01 | D50: ¥18,891,953 | E50: =IF(AND(ValuesEntered,ISNUMBER(C50)),IF($E$16="時間短縮",ROUND(IPMT(VLOOKUP($C50,Rate_table,2,TRUE)/12,1,$R49,$D50)*-1,0),ROUND(IPMT(VLOOKUP($C50,Rate_table,2,TRUE)/12,$B50,DurationOfLoan,LoanAmount-BonusAmount-SUM(extra_payments))*-1,0))+IF($I50=0,0,ROUND(IPMT(VLOOKUP($C50,Rate_table,2,TRUE)/12,COUNTIF($I$28:I50,">0"),DurationofBonus,BonusAmount)*-1,0)),"") -> ¥14,440 | F50: =IF(AND(ValuesEntered,ISNUMBER($C50)),IF($E$16="時間短縮",ROUND(PPMT(VLOOKUP($C50,Rate_table,2,TRUE)/12,1,$R49,$D50)*-1,0),ROUND(PPMT(VLOOKUP($C50,Rate_table,2,TRUE)/12,$B50,DurationOfLoan,LoanAmount-BonusAmount-SUM(extra_payments))*-1,0))+IF(I50=0,0,ROUND(PPMT(VLOOKUP($C50,Rate_table,2,TRUE)/12,COUNTIF($I$28:I50,">0"),DurationofBonus,BonusAmount)*-1,0)),"") -> ¥8,141 | I50: ¥0 | K50: ¥37,500 | L50: =IF(AND(ValuesEntered,ISNUMBER($C50)),SUM(E50:H50,J50:K50),"") -> ¥60,081 | O50: =IF(AND(ValuesEntered,ISNUMBER($C50)),D50-F50-J50,"") -> ¥18,883,812 | R50: 397
B51: =ROWS($B$28:B51) -> 24 | C51: =IF(ValuesEntered,IF(AND(ISNUMBER(O50),R50>0),EDATE(C50,1),""),"") -> 2015-10-01 | D51: ¥18,883,812 | E51: =IF(AND(ValuesEntered,ISNUMBER(C51)),IF($E$16="時間短縮",ROUND(IPMT(VLOOKUP($C51,Rate_table,2,TRUE)/12,1,$R50,$D51)*-1,0),ROUND(IPMT(VLOOKUP($C51,Rate_table,2,TRUE)/12,$B51,DurationOfLoan,LoanAmount-BonusAmount-SUM(extra_payments))*-1,0))+IF($I51=0,0,ROUND(IPMT(VLOOKUP($C51,Rate_table,2,TRUE)/12,COUNTIF($I$28:I51,">0"),DurationofBonus,BonusAmount)*-1,0)),"") -> ¥14,419 | F51: =IF(AND(ValuesEntered,ISNUMBER($C51)),IF($E$16="時間短縮",ROUND(PPMT(VLOOKUP($C51,Rate_table,2,TRUE)/12,1,$R50,$D51)*-1,0),ROUND(PPMT(VLOOKUP($C51,Rate_table,2,TRUE)/12,$B51,DurationOfLoan,LoanAmount-BonusAmount-SUM(extra_payments))*-1,0))+IF(I51=0,0,ROUND(PPMT(VLOOKUP($C51,Rate_table,2,TRUE)/12,COUNTIF($I$28:I51,">0"),DurationofBonus,BonusAmount)*-1,0)),"") -> ¥8,162 | I51: ¥0 | K51: ¥37,500 | L51: =IF(AND(ValuesEntered,ISNUMBER($C51)),SUM(E51:H51,J51:K51),"") -> ¥60,081 | O51: =IF(AND(ValuesEntered,ISNUMBER($C51)),D51-F51-J51,"") -> ¥18,875,650 | R51: 396
B52: =ROWS($B$28:B52) -> 25 | C52: =IF(ValuesEntered,IF(AND(ISNUMBER(O51),R51>0),EDATE(C51,1),""),"") -> 2015-11-01 | D52: ¥18,875,650 | E52: =IF(AND(ValuesEntered,ISNUMBER(C52)),IF($E$16="時間短縮",ROUND(IPMT(VLOOKUP($C52,Rate_table,2,TRUE)/12,1,$R51,$D52)*-1,0),ROUND(IPMT(VLOOKUP($C52,Rate_table,2,TRUE)/12,$B52,DurationOfLoan,LoanAmount-BonusAmount-SUM(extra_payments))*-1,0))+IF($I52=0,0,ROUND(IPMT(VLOOKUP($C52,Rate_table,2,TRUE)/12,COUNTIF($I$28:I52,">0"),DurationofBonus,BonusAmount)*-1,0)),"") -> ¥14,398 | F52: =IF(AND(ValuesEntered,ISNUMBER($C52)),IF($E$16="時間短縮",ROUND(PPMT(VLOOKUP($C52,Rate_table,2,TRUE)/12,1,$R51,$D52)*-1,0),ROUND(PPMT(VLOOKUP($C52,Rate_table,2,TRUE)/12,$B52,DurationOfLoan,LoanAmount-BonusAmount-SUM(extra_payments))*-1,0))+IF(I52=0,0,ROUND(PPMT(VLOOKUP($C52,Rate_table,2,TRUE)/12,COUNTIF($I$28:I52,">0"),DurationofBonus,BonusAmount)*-1,0)),"") -> ¥8,183 | I52: ¥0 | K52: ¥37,500 | L52: =IF(AND(ValuesEntered,ISNUMBER($C52)),SUM(E52:H52,J52:K52),"") -> ¥60,081 | O52: =IF(AND(ValuesEntered,ISNUMBER($C52)),D52-F52-J52,"") -> ¥18,867,467 | R52: 395
B53: =ROWS($B$28:B53) -> 26 | C53: =IF(ValuesEntered,IF(AND(ISNUMBER(O52),R52>0),EDATE(C52,1),""),"") -> 2015-12-01 | D53: ¥18,867,467 | E53: =IF(AND(ValuesEntered,ISNUMBER(C53)),IF($E$16="時間短縮",ROUND(IPMT(VLOOKUP($C53,Rate_table,2,TRUE)/12,1,$R52,$D53)*-1,0),ROUND(IPMT(VLOOKUP($C53,Rate_table,2,TRUE)/12,$B53,DurationOfLoan,LoanAmount-BonusAmount-SUM(extra_payments))*-1,0))+IF($I53=0,0,ROUND(IPMT(VLOOKUP($C53,Rate_table,2,TRUE)/12,COUNTIF($I$28:I53,">0"),DurationofBonus,BonusAmount)*-1,0)),"") -> ¥14,377 | F53: =IF(AND(ValuesEntered,ISNUMBER($C53)),IF($E$16="時間短縮",ROUND(PPMT(VLOOKUP($C53,Rate_table,2,TRUE)/12,1,$R52,$D53)*-1,0),ROUND(PPMT(VLOOKUP($C53,Rate_table,2,TRUE)/12,$B53,DurationOfLoan,LoanAmount-BonusAmount-SUM(extra_payments))*-1,0))+IF(I53=0,0,ROUND(PPMT(VLOOKUP($C53,Rate_table,2,TRUE)/12,COUNTIF($I$28:I53,">0"),DurationofBonus,BonusAmount)*-1,0)),"") -> ¥8,204 | I53: ¥0 | K53: ¥37,500 | L53: =IF(AND(ValuesEntered,ISNUMBER($C53)),SUM(E53:H53,J53:K53),"") -> ¥60,081 | O53: =IF(AND(ValuesEntered,ISNUMBER($C53)),D53-F53-J53,"") -> ¥18,859,263 | R53: 394
B54: =ROWS($B$28:B54) -> 27 | C54: =IF(ValuesEntered,IF(AND(ISNUMBER(O53),R53>0),EDATE(C53,1),""),"") -> 2016-01-01 | D54: ¥18,859,263 | E54: =IF(AND(ValuesEntered,ISNUMBER(C54)),IF($E$16="時間短縮",ROUND(IPMT(VLOOKUP($C54,Rate_table,2,TRUE)/12,1,$R53,$D54)*-1,0),ROUND(IPMT(VLOOKUP($C54,Rate_table,2,TRUE)/12,$B54,DurationOfLoan,LoanAmount-BonusAmount-SUM(extra_payments))*-1,0))+IF($I54=0,0,ROUND(IPMT(VLOOKUP($C54,Rate_table,2,TRUE)/12,COUNTIF($I$28:I54,">0"),DurationofBonus,BonusAmount)*-1,0)),"") -> ¥14,356 | F54: =IF(AND(ValuesEntered,ISNUMBER($C54)),IF($E$16="時間短縮",ROUND(PPMT(VLOOKUP($C54,Rate_table,2,TRUE)/12,1,$R53,$D54)*-1,0),ROUND(PPMT(VLOOKUP($C54,Rate_table,2,TRUE)/12,$B54,DurationOfLoan,LoanAmount-BonusAmount-SUM(extra_payments))*-1,0))+IF(I54=0,0,ROUND(PPMT(VLOOKUP($C54,Rate_table,2,TRUE)/12,COUNTIF($I$28:I54,">0"),DurationofBonus,BonusAmount)*-1,0)),"") -> ¥8,225 | I54: ¥0 | K54: ¥37,500 | L54: =IF(AND(ValuesEntered,ISNUMBER($C54)),SUM(E54:H54,J54:K54),"") -> ¥60,081 | O54: =IF(AND(ValuesEntered,ISNUMBER($C54)),D54-F54-J54,"") -> ¥18,851,038 | R54: 393
B55: =ROWS($B$28:B55) -> 28 | C55: =IF(ValuesEntered,IF(AND(ISNUMBER(O54),R54>0),EDATE(C54,1),""),"") -> 2016-02-01 | D55: ¥18,851,038 | E55: =IF(AND(ValuesEntered,ISNUMBER(C55)),IF($E$16="時間短縮",ROUND(IPMT(VLOOKUP($C55,Rate_table,2,TRUE)/12,1,$R54,$D55)*-1,0),ROUND(IPMT(VLOOKUP($C55,Rate_table,2,TRUE)/12,$B55,DurationOfLoan,LoanAmount-BonusAmount-SUM(extra_payments))*-1,0))+IF($I55=0,0,ROUND(IPMT(VLOOKUP($C55,Rate_table,2,TRUE)/12,COUNTIF($I$28:I55,">0"),DurationofBonus,BonusAmount)*-1,0)),"") -> ¥14,335 | F55: =IF(AND(ValuesEntered,ISNUMBER($C55)),IF($E$16="時間短縮",ROUND(PPMT(VLOOKUP($C55,Rate_table,2,TRUE)/12,1,$R54,$D55)*-1,0),ROUND(PPMT(VLOOKUP($C55,Rate_table,2,TRUE)/12,$B55,DurationOfLoan,LoanAmount-BonusAmount-SUM(extra_payments))*-1,0))+IF(I55=0,0,ROUND(PPMT(VLOOKUP($C55,Rate_table,2,TRUE)/12,COUNTIF($I$28:I55,">0"),DurationofBonus,BonusAmount)*-1,0)),"") -> ¥8,246 | I55: ¥0 | K55: ¥37,500 | L55: =IF(AND(ValuesEntered,ISNUMBER($C55)),SUM(E55:H55,J55:K55),"") -> ¥60,081 | O55: =IF(AND(ValuesEntered,ISNUMBER($C55)),D55-F55-J55,"") -> ¥18,842,792 | R55: 392
B56: =ROWS($B$28:B56) -> 29 | C56: =IF(ValuesEntered,IF(AND(ISNUMBER(O55),R55>0),EDATE(C55,1),""),"") -> 2016-03-01 | D56: ¥18,842,792 | E56: =IF(AND(ValuesEntered,ISNUMBER(C56)),IF($E$16="時間短縮",ROUND(IPMT(VLOOKUP($C56,Rate_table,2,TRUE)/12,1,$R55,$D56)*-1,0),ROUND(IPMT(VLOOKUP($C56,Rate_table,2,TRUE)/12,$B56,DurationOfLoan,LoanAmount-BonusAmount-SUM(extra_payments))*-1,0))+IF($I56=0,0,ROUND(IPMT(VLOOKUP($C56,Rate_table,2,TRUE)/12,COUNTIF($I$28:I56,">0"),DurationofBonus,BonusAmount)*-1,0)),"") -> ¥14,314 | F56: =IF(AND(ValuesEntered,ISNUMBER($C56)),IF($E$16="時間短縮",ROUND(PPMT(VLOOKUP($C56,Rate_table,2,TRUE)/12,1,$R55,$D56)*-1,0),ROUND(PPMT(VLOOKUP($C56,Rate_table,2,TRUE)/12,$B56,DurationOfLoan,LoanAmount-BonusAmount-SUM(extra_payments))*-1,0))+IF(I56=0,0,ROUND(PPMT(VLOOKUP($C56,Rate_table,2,TRUE)/12,COUNTIF($I$28:I56,">0"),DurationofBonus,BonusAmount)*-1,0)),"") -> ¥8,267 | I56: ¥0 | K56: ¥37,500 | L56: =IF(AND(ValuesEntered,ISNUMBER($C56)),SUM(E56:H56,J56:K56),"") -> ¥60,081 | O56: =IF(AND(ValuesEntered,ISNUMBER($C56)),D56-F56-J56,"") -> ¥18,834,525 | R56: 391
B57: =ROWS($B$28:B57) -> 30 | C57: =IF(ValuesEntered,IF(AND(ISNUMBER(O56),R56>0),EDATE(C56,1),""),"") -> 2016-04-01 | D57: ¥18,834,525 | E57: =IF(AND(ValuesEntered,ISNUMBER(C57)),IF($E$16="時間短縮",ROUND(IPMT(VLOOKUP($C57,Rate_table,2,TRUE)/12,1,$R56,$D57)*-1,0),ROUND(IPMT(VLOOKUP($C57,Rate_table,2,TRUE)/12,$B57,DurationOfLoan,LoanAmount-BonusAmount-SUM(extra_payments))*-1,0))+IF($I57=0,0,ROUND(IPMT(VLOOKUP($C57,Rate_table,2,TRUE)/12,COUNTIF($I$28:I57,">0"),DurationofBonus,BonusAmount)*-1,0)),"") -> ¥48,342 | F57: =IF(AND(ValuesEntered,ISNUMBER($C57)),IF($E$16="時間短縮",ROUND(PPMT(VLOOKUP($C57,Rate_table,2,TRUE)/12,1,$R56,$D57)*-1,0),ROUND(PPMT(VLOOKUP($C57,Rate_table,2,TRUE)/12,$B57,DurationOfLoan,LoanAmount-BonusAmount-SUM(extra_payments))*-1,0))+IF(I57=0,0,ROUND(PPMT(VLOOKUP($C57,Rate_table,2,TRUE)/12,COUNTIF($I$28:I57,">0"),DurationofBonus,BonusAmount)*-1,0)),"") -> ¥192,999 | I57: ¥200,000 | K57: ¥37,500 | L57: =IF(AND(ValuesEntered,ISNUMBER($C57)),SUM(E57:H57,J57:K57),"") -> ¥278,841 | O57: =IF(AND(ValuesEntered,ISNUMBER($C57)),D57-F57-J57,"") -> ¥18,641,526 | R57: 390
B58: =ROWS($B$28:B58) -> 31 | C58: =IF(ValuesEntered,IF(AND(ISNUMBER(O57),R57>0),EDATE(C57,1),""),"") -> 2016-05-01 | D58: ¥18,641,526 | E58: =IF(AND(ValuesEntered,ISNUMBER(C58)),IF($E$16="時間短縮",ROUND(IPMT(VLOOKUP($C58,Rate_table,2,TRUE)/12,1,$R57,$D58)*-1,0),ROUND(IPMT(VLOOKUP($C58,Rate_table,2,TRUE)/12,$B58,DurationOfLoan,LoanAmount-BonusAmount-SUM(extra_payments))*-1,0))+IF($I58=0,0,ROUND(IPMT(VLOOKUP($C58,Rate_table,2,TRUE)/12,COUNTIF($I$28:I58,">0"),DurationofBonus,BonusAmount)*-1,0)),"") -> ¥14,272 | F58: =IF(AND(ValuesEntered,ISNUMBER($C58)),IF($E$16="時間短縮",ROUND(PPMT(VLOOKUP($C58,Rate_table,2,TRUE)/12,1,$R57,$D58)*-1,0),ROUND(PPMT(VLOOKUP($C58,Rate_table,2,TRUE)/12,$B58,DurationOfLoan,LoanAmount-BonusAmount-SUM(extra_payments))*-1,0))+IF(I58=0,0,ROUND(PPMT(VLOOKUP($C58,Rate_table,2,TRUE)/12,COUNTIF($I$28:I58,">0"),DurationofBonus,BonusAmount)*-1,0)),"") -> ¥8,309 | I58: ¥0 | K58: ¥37,500 | L58: =IF(AND(ValuesEntered,ISNUMBER($C58)),SUM(E58:H58,J58:K58),"") -> ¥60,081 | O58: =IF(AND(ValuesEntered,ISNUMBER($C58)),D58-F58-J58,"") -> ¥18,633,217 | R58: 389
B59: =ROWS($B$28:B59) -> 32 | C59: =IF(ValuesEntered,IF(AND(ISNUMBER(O58),R58>0),EDATE(C58,1),""),"") -> 2016-06-01 | D59: ¥18,633,217 | E59: =IF(AND(ValuesEntered,ISNUMBER(C59)),IF($E$16="時間短縮",ROUND(IPMT(VLOOKUP($C59,Rate_table,2,TRUE)/12,1,$R58,$D59)*-1,0),ROUND(IPMT(VLOOKUP($C59,Rate_table,2,TRUE)/12,$B59,DurationOfLoan,LoanAmount-BonusAmount-SUM(extra_payments))*-1,0))+IF($I59=0,0,ROUND(IPMT(VLOOKUP($C59,Rate_table,2,TRUE)/12,COUNTIF($I$28:I59,">0"),DurationofBonus,BonusAmount)*-1,0)),"") -> ¥14,250 | F59: =IF(AND(ValuesEntered,ISNUMBER($C59)),IF($E$16="時間短縮",ROUND(PPMT(VLOOKUP($C59,Rate_table,2,TRUE)/12,1,$R58,$D59)*-1,0),ROUND(PPMT(VLOOKUP($C59,Rate_table,2,TRUE)/12,$B59,DurationOfLoan,LoanAmount-BonusAmount-SUM(extra_payments))*-1,0))+IF(I59=0,0,ROUND(PPMT(VLOOKUP($C59,Rate_table,2,TRUE)/12,COUNTIF($I$28:I59,">0"),DurationofBonus,BonusAmount)*-1,0)),"") -> ¥8,331 | I59: ¥0 | K59: ¥37,500 | L59: =IF(AND(ValuesEntered,ISNUMBER($C59)),SUM(E59:H59,J59:K59),"") -> ¥60,081 | O59: =IF(AND(ValuesEntered,ISNUMBER($C59)),D59-F59-J59,"") -> ¥18,624,886 | R59: 388
B60: =ROWS($B$28:B60) -> 33 | C60: =IF(ValuesEntered,IF(AND(ISNUMBER(O59),R59>0),EDATE(C59,1),""),"") -> 2016-07-01 | D60: ¥18,624,886 | E60: =IF(AND(ValuesEntered,ISNUMBER(C60)),IF($E$16="時間短縮",ROUND(IPMT(VLOOKUP($C60,Rate_table,2,TRUE)/12,1,$R59,$D60)*-1,0),ROUND(IPMT(VLOOKUP($C60,Rate_table,2,TRUE)/12,$B60,DurationOfLoan,LoanAmount-BonusAmount-SUM(extra_payments))*-1,0))+IF($I60=0,0,ROUND(IPMT(VLOOKUP($C60,Rate_table,2,TRUE)/12,COUNTIF($I$28:I60,">0"),DurationofBonus,BonusAmount)*-1,0)),"") -> ¥47,804 | F60: =IF(AND(ValuesEntered,ISNUMBER($C60)),IF($E$16="時間短縮",ROUND(PPMT(VLOOKUP($C60,Rate_table,2,TRUE)/12,1,$R59,$D60)*-1,0),ROUND(PPMT(VLOOKUP($C60,Rate_table,2,TRUE)/12,$B60,DurationOfLoan,LoanAmount-BonusAmount-SUM(extra_payments))*-1,0))+IF(I60=0,0,ROUND(PPMT(VLOOKUP($C60,Rate_table,2,TRUE)/12,COUNTIF($I$28:I60,">0"),DurationofBonus,BonusAmount)*-1,0)),"") -> ¥193,537 | I60: ¥200,000 | K60: ¥37,500 | L60: =IF(AND(ValuesEntered,ISNUMBER($C60)),SUM(E60:H60,J60:K60),"") -> ¥278,841 | O60: =IF(AND(ValuesEntered,ISNUMBER($C60)),D60-F60-J60,"") -> ¥18,431,349 | R60: 387
B61: =ROWS($B$28:B61) -> 34 | C61: =IF(ValuesEntered,IF(AND(ISNUMBER(O60),R60>0),EDATE(C60,1),""),"") -> 2016-08-01 | D61: ¥18,431,349 | E61: =IF(AND(ValuesEntered,ISNUMBER(C61)),IF($E$16="時間短縮",ROUND(IPMT(VLOOKUP($C61,Rate_table,2,TRUE)/12,1,$R60,$D61)*-1,0),ROUND(IPMT(VLOOKUP($C61,Rate_table,2,TRUE)/12,$B61,DurationOfLoan,LoanAmount-BonusAmount-SUM(extra_payments))*-1,0))+IF($I61=0,0,ROUND(IPMT(VLOOKUP($C61,Rate_table,2,TRUE)/12,COUNTIF($I$28:I61,">0"),DurationofBonus,BonusAmount)*-1,0)),"") -> ¥14,207 | F61: =IF(AND(ValuesEntered,ISNUMBER($C61)),IF($E$16="時間短縮",ROUND(PPMT(VLOOKUP($C61,Rate_table,2,TRUE)/12,1,$R60,$D61)*-1,0),ROUND(PPMT(VLOOKUP($C61,Rate_table,2,TRUE)/12,$B61,DurationOfLoan,LoanAmount-BonusAmount-SUM(extra_payments))*-1,0))+IF(I61=0,0,ROUND(PPMT(VLOOKUP($C61,Rate_table,2,TRUE)/12,COUNTIF($I$28:I61,">0"),DurationofBonus,BonusAmount)*-1,0)),"") -> ¥8,374 | I61: ¥0 | K61: ¥37,500 | L61: =IF(AND(ValuesEntered,ISNUMBER($C61)),SUM(E61:H61,J61:K61),"") -> ¥60,081 | O61: =IF(AND(ValuesEntered,ISNUMBER($C61)),D61-F61-J61,"") -> ¥18,422,975 | R61: 386
B62: =ROWS($B$28:B62) -> 35 | C62: =IF(ValuesEntered,IF(AND(ISNUMBER(O61),R61>0),EDATE(C61,1),""),"") -> 2016-09-01 | D62: ¥18,422,975 | E62: =IF(AND(ValuesEntered,ISNUMBER(C62)),IF($E$16="時間短縮",ROUND(IPMT(VLOOKUP($C62,Rate_table,2,TRUE)/12,1,$R61,$D62)*-1,0),ROUND(IPMT(VLOOKUP($C62,Rate_table,2,TRUE)/12,$B62,DurationOfLoan,LoanAmount-BonusAmount-SUM(extra_payments))*-1,0))+IF($I62=0,0,ROUND(IPMT(VLOOKUP($C62,Rate_table,2,TRUE)/12,COUNTIF($I$28:I62,">0"),DurationofBonus,BonusAmount)*-1,0)),"") -> ¥14,186 | F62: =IF(AND(ValuesEntered,ISNUMBER($C62)),IF($E$16="時間短縮",ROUND(PPMT(VLOOKUP($C62,Rate_table,2,TRUE)/12,1,$R61,$D62)*-1,0),ROUND(PPMT(VLOOKUP($C62,Rate_table,2,TRUE)/12,$B62,DurationOfLoan,LoanAmount-BonusAmount-SUM(extra_payments))*-1,0))+IF(I62=0,0,ROUND(PPMT(VLOOKUP($C62,Rate_table,2,TRUE)/12,COUNTIF($I$28:I62,">0"),DurationofBonus,BonusAmount)*-1,0)),"") -> ¥8,395 | I62: ¥0 | K62: ¥37,500 | L62: =IF(AND(ValuesEntered,ISNUMBER($C62)),SUM(E62:H62,J62:K62),"") -> ¥60,081 | O62: =IF(AND(ValuesEntered,ISNUMBER($C62)),D62-F62-J62,"") -> ¥18,414,580 | R62: 385
B63: =ROWS($B$28:B63) -> 36 | C63: =IF(ValuesEntered,IF(AND(ISNUMBER(O62),R62>0),EDATE(C62,1),""),"") -> 2016-10-01 | D63: ¥18,414,580 | E63: =IF(AND(ValuesEntered,ISNUMBER(C63)),IF($E$16="時間短縮",ROUND(IPMT(VLOOKUP($C63,Rate_table,2,TRUE)/12,1,$R62,$D63)*-1,0),ROUND(IPMT(VLOOKUP($C63,Rate_table,2,TRUE)/12,$B63,DurationOfLoan,LoanAmount-BonusAmount-SUM(extra_payments))*-1,0))+IF($I63=0,0,ROUND(IPMT(VLOOKUP($C63,Rate_table,2,TRUE)/12,COUNTIF($I$28:I63,">0"),DurationofBonus,BonusAmount)*-1,0)),"") -> ¥14,164 | F63: =IF(AND(ValuesEntered,ISNUMBER($C63)),IF($E$16="時間短縮",ROUND(PPMT(VLOOKUP($C63,Rate_table,2,TRUE)/12,1,$R62,$D63)*-1,0),ROUND(PPMT(VLOOKUP($C63,Rate_table,2,TRUE)/12,$B63,DurationOfLoan,LoanAmount-BonusAmount-SUM(extra_payments))*-1,0))+IF(I63=0,0,ROUND(PPMT(VLOOKUP($C63,Rate_table,2,TRUE)/12,COUNTIF($I$28:I63,">0"),DurationofBonus,BonusAmount)*-1,0)),"") -> ¥8,417 | I63: ¥0 | K63: ¥37,500 | L63: =IF(AND(ValuesEntered,ISNUMBER($C63)),SUM(E63:H63,J63:K63),"") -> ¥60,081 | O63: =IF(AND(ValuesEntered,ISNUMBER($C63)),D63-F63-J63,"") -> ¥18,406,163 | R63: 384
B64: =ROWS($B$28:B64) -> 37 | C64: =IF(ValuesEntered,IF(AND(ISNUMBER(O63),R63>0),EDATE(C63,1),""),"") -> 2016-11-01 | D64: ¥18,406,163 | E64: =IF(AND(ValuesEntered,ISNUMBER(C64)),IF($E$16="時間短縮",ROUND(IPMT(VLOOKUP($C64,Rate_table,2,TRUE)/12,1,$R63,$D64)*-1,0),ROUND(IPMT(VLOOKUP($C64,Rate_table,2,TRUE)/12,$B64,DurationOfLoan,LoanAmount-BonusAmount-SUM(extra_payments))*-1,0))+IF($I64=0,0,ROUND(IPMT(VLOOKUP($C64,Rate_table,2,TRUE)/12,COUNTIF($I$28:I64,">0"),DurationofBonus,BonusAmount)*-1,0)),"") -> ¥14,143 | F64: =IF(AND(ValuesEntered,ISNUMBER($C64)),IF($E$16="時間短縮",ROUND(PPMT(VLOOKUP($C64,Rate_table,2,TRUE)/12,1,$R63,$D64)*-1,0),ROUND(PPMT(VLOOKUP($C64,Rate_table,2,TRUE)/12,$B64,DurationOfLoan,LoanAmount-BonusAmount-SUM(extra_payments))*-1,0))+IF(I64=0,0,ROUND(PPMT(VLOOKUP($C64,Rate_table,2,TRUE)/12,COUNTIF($I$28:I64,">0"),DurationofBonus,BonusAmount)*-1,0)),"") -> ¥8,438 | I64: ¥0 | K64: ¥37,500 | L64: =IF(AND(ValuesEntered,ISNUMBER($C64)),SUM(E64:H64,J64:K64),"") -> ¥60,081 | O64: =IF(AND(ValuesEntered,ISNUMBER($C64)),D64-F64-J64,"") -> ¥18,397,725 | R64: 383
B65: =ROWS($B$28:B65) -> 38 | C65: =IF(ValuesEntered,IF(AND(ISNUMBER(O64),R64>0),EDATE(C64,1),""),"") -> 2016-12-01 | D65: ¥18,397,725 | E65: =IF(AND(ValuesEntered,ISNUMBER(C65)),IF($E$16="時間短縮",ROUND(IPMT(VLOOKUP($C65,Rate_table,2,TRUE)/12,1,$R64,$D65)*-1,0),ROUND(IPMT(VLOOKUP($C65,Rate_table,2,TRUE)/12,$B65,DurationOfLoan,LoanAmount-BonusAmount-SUM(extra_payments))*-1,0))+IF($I65=0,0,ROUND(IPMT(VLOOKUP($C65,Rate_table,2,TRUE)/12,COUNTIF($I$28:I65,">0"),DurationofBonus,BonusAmount)*-1,0)),"") -> ¥14,121 | F65: =IF(AND(ValuesEntered,ISNUMBER($C65)),IF($E$16="時間短縮",ROUND(PPMT(VLOOKUP($C65,Rate_table,2,TRUE)/12,1,$R64,$D65)*-1,0),ROUND(PPMT(VLOOKUP($C65,Rate_table,2,TRUE)/12,$B65,DurationOfLoan,LoanAmount-BonusAmount-SUM(extra_payments))*-1,0))+IF(I65=0,0,ROUND(PPMT(VLOOKUP($C65,Rate_table,2,TRUE)/12,COUNTIF($I$28:I65,">0"),DurationofBonus,BonusAmount)*-1,0)),"") -> ¥8,460 | I65: ¥0 | K65: ¥37,500 | L65: =IF(AND(ValuesEntered,ISNUMBER($C65)),SUM(E65:H65,J65:K65),"") -> ¥60,081 | O65: =IF(AND(ValuesEntered,ISNUMBER($C65)),D65-F65-J65,"") -> ¥18,389,265 | R65: 382
B66: =ROWS($B$28:B66) -> 39 | C66: =IF(ValuesEntered,IF(AND(ISNUMBER(O65),R65>0),EDATE(C65,1),""),"") -> 2017-01-01 | D66: ¥18,389,265 | E66: =IF(AND(ValuesEntered,ISNUMBER(C66)),IF($E$16="時間短縮",ROUND(IPMT(VLOOKUP($C66,Rate_table,2,TRUE)/12,1,$R65,$D66)*-1,0),ROUND(IPMT(VLOOKUP($C66,Rate_table,2,TRUE)/12,$B66,DurationOfLoan,LoanAmount-BonusAmount-SUM(extra_payments))*-1,0))+IF($I66=0,0,ROUND(IPMT(VLOOKUP($C66,Rate_table,2,TRUE)/12,COUNTIF($I$28:I66,">0"),DurationofBonus,BonusAmount)*-1,0)),"") -> ¥14,099 | F66: =IF(AND(ValuesEntered,ISNUMBER($C66)),IF($E$16="時間短縮",ROUND(PPMT(VLOOKUP($C66,Rate_table,2,TRUE)/12,1,$R65,$D66)*-1,0),ROUND(PPMT(VLOOKUP($C66,Rate_table,2,TRUE)/12,$B66,DurationOfLoan,LoanAmount-BonusAmount-SUM(extra_payments))*-1,0))+IF(I66=0,0,ROUND(PPMT(VLOOKUP($C66,Rate_table,2,TRUE)/12,COUNTIF($I$28:I66,">0"),DurationofBonus,BonusAmount)*-1,0)),"") -> ¥8,482 | I66: ¥0 | K66: ¥37,500 | L66: =IF(AND(ValuesEntered,ISNUMBER($C66)),SUM(E66:H66,J66:K66),"") -> ¥60,081 | O66: =IF(AND(ValuesEntered,ISNUMBER($C66)),D66-F66-J66,"") -> ¥18,380,783 | R66: 381
B67: =ROWS($B$28:B67) -> 40 | C67: =IF(ValuesEntered,IF(AND(ISNUMBER(O66),R66>0),EDATE(C66,1),""),"") -> 2017-02-01 | D67: ¥18,380,783 | E67: =IF(AND(ValuesEntered,ISNUMBER(C67)),IF($E$16="時間短縮",ROUND(IPMT(VLOOKUP($C67,Rate_table,2,TRUE)/12,1,$R66,$D67)*-1,0),ROUND(IPMT(VLOOKUP($C67,Rate_table,2,TRUE)/12,$B67,DurationOfLoan,LoanAmount-BonusAmount-SUM(extra_payments))*-1,0))+IF($I67=0,0,ROUND(IPMT(VLOOKUP($C67,Rate_table,2,TRUE)/12,COUNTIF($I$28:I67,">0"),DurationofBonus,BonusAmount)*-1,0)),"") -> ¥14,078 | F67: =IF(AND(ValuesEntered,ISNUMBER($C67)),IF($E$16="時間短縮",ROUND(PPMT(VLOOKUP($C67,Rate_table,2,TRUE)/12,1,$R66,$D67)*-1,0),ROUND(PPMT(VLOOKUP($C67,Rate_table,2,TRUE)/12,$B67,DurationOfLoan,LoanAmount-BonusAmount-SUM(extra_payments))*-1,0))+IF(I67=0,0,ROUND(PPMT(VLOOKUP($C67,Rate_table,2,TRUE)/12,COUNTIF($I$28:I67,">0"),DurationofBonus,BonusAmount)*-1,0)),"") -> ¥8,503 | I67: ¥0 | K67: ¥37,500 | L67: =IF(AND(ValuesEntered,ISNUMBER($C67)),SUM(E67:H67,J67:K67),"") -> ¥60,081 | O67: =IF(AND(ValuesEntered,ISNUMBER($C67)),D67-F67-J67,"") -> ¥18,372,280 | R67: 380
B68: =ROWS($B$28:B68) -> 41 | C68: =IF(ValuesEntered,IF(AND(ISNUMBER(O67),R67>0),EDATE(C67,1),""),"") -> 2017-03-01 | D68: ¥18,372,280 | E68: =IF(AND(ValuesEntered,ISNUMBER(C68)),IF($E$16="時間短縮",ROUND(IPMT(VLOOKUP($C68,Rate_table,2,TRUE)/12,1,$R67,$D68)*-1,0),ROUND(IPMT(VLOOKUP($C68,Rate_table,2,TRUE)/12,$B68,DurationOfLoan,LoanAmount-BonusAmount-SUM(extra_payments))*-1,0))+IF($I68=0,0,ROUND(IPMT(VLOOKUP($C68,Rate_table,2,TRUE)/12,COUNTIF($I$28:I68,">0"),DurationofBonus,BonusAmount)*-1,0)),"") -> ¥14,056 | F68: =IF(AND(ValuesEntered,ISNUMBER($C68)),IF($E$16="時間短縮",ROUND(PPMT(VLOOKUP($C68,Rate_table,2,TRUE)/12,1,$R67,$D68)*-1,0),ROUND(PPMT(VLOOKUP($C68,Rate_table,2,TRUE)/12,$B68,DurationOfLoan,LoanAmount-BonusAmount-SUM(extra_payments))*-1,0))+IF(I68=0,0,ROUND(PPMT(VLOOKUP($C68,Rate_table,2,TRUE)/12,COUNTIF($I$28:I68,">0"),DurationofBonus,BonusAmount)*-1,0)),"") -> ¥8,525 | I68: ¥0 | K68: ¥37,500 | L68: =IF(AND(ValuesEntered,ISNUMBER($C68)),SUM(E68:H68,J68:K68),"") -> ¥60,081 | O68: =IF(AND(ValuesEntered,ISNUMBER($C68)),D68-F68-J68,"") -> ¥18,363,755 | R68: 379
B69: =ROWS($B$28:B69) -> 42 | C69: =IF(ValuesEntered,IF(AND(ISNUMBER(O68),R68>0),EDATE(C68,1),""),"") -> 2017-04-01 | D69: ¥18,363,755 | E69: =IF(AND(ValuesEntered,ISNUMBER(C69)),IF($E$16="時間短縮",ROUND(IPMT(VLOOKUP($C69,Rate_table,2,TRUE)/12,1,$R68,$D69)*-1,0),ROUND(IPMT(VLOOKUP($C69,Rate_table,2,TRUE)/12,$B69,DurationOfLoan,LoanAmount-BonusAmount-SUM(extra_payments))*-1,0))+IF($I69=0,0,ROUND(IPMT(VLOOKUP($C69,Rate_table,2,TRUE)/12,COUNTIF($I$28:I69,">0"),DurationofBonus,BonusAmount)*-1,0)),"") -> ¥47,134 | F69: =IF(AND(ValuesEntered,ISNUMBER($C69)),IF($E$16="時間短縮",ROUND(PPMT(VLOOKUP($C69,Rate_table,2,TRUE)/12,1,$R68,$D69)*-1,0),ROUND(PPMT(VLOOKUP($C69,Rate_table,2,TRUE)/12,$B69,DurationOfLoan,LoanAmount-BonusAmount-SUM(extra_payments))*-1,0))+IF(I69=0,0,ROUND(PPMT(VLOOKUP($C69,Rate_table,2,TRUE)/12,COUNTIF($I$28:I69,">0"),DurationofBonus,BonusAmount)*-1,0)),"") -> ¥194,208 | I69: ¥200,000 | K69: ¥37,500 | L69: =IF(AND(ValuesEntered,ISNUMBER($C69)),SUM(E69:H69,J69:K69),"") -> ¥278,842 | O69: =IF(AND(ValuesEntered,ISNUMBER($C69)),D69-F69-J69,"") -> ¥18,169,547 | R69: 378
B70: =ROWS($B$28:B70) -> 43 | C70: =IF(ValuesEntered,IF(AND(ISNUMBER(O69),R69>0),EDATE(C69,1),""),"") -> 2017-05-01 | D70: ¥18,169,547 | E70: =IF(AND(ValuesEntered,ISNUMBER(C70)),IF($E$16="時間短縮",ROUND(IPMT(VLOOKUP($C70,Rate_table,2,TRUE)/12,1,$R69,$D70)*-1,0),ROUND(IPMT(VLOOKUP($C70,Rate_table,2,TRUE)/12,$B70,DurationOfLoan,LoanAmount-BonusAmount-SUM(extra_payments))*-1,0))+IF($I70=0,0,ROUND(IPMT(VLOOKUP($C70,Rate_table,2,TRUE)/12,COUNTIF($I$28:I70,">0"),DurationofBonus,BonusAmount)*-1,0)),"") -> ¥14,012 | F70: =IF(AND(ValuesEntered,ISNUMBER($C70)),IF($E$16="時間短縮",ROUND(PPMT(VLOOKUP($C70,Rate_table,2,TRUE)/12,1,$R69,$D70)*-1,0),ROUND(PPMT(VLOOKUP($C70,Rate_table,2,TRUE)/12,$B70,DurationOfLoan,LoanAmount-BonusAmount-SUM(extra_payments))*-1,0))+IF(I70=0,0,ROUND(PPMT(VLOOKUP($C70,Rate_table,2,TRUE)/12,COUNTIF($I$28:I70,">0"),DurationofBonus,BonusAmount)*-1,0)),"") -> ¥8,569 | I70: ¥0 | K70: ¥37,500 | L70: =IF(AND(ValuesEntered,ISNUMBER($C70)),SUM(E70:H70,J70:K70),"") -> ¥60,081 | O70: =IF(AND(ValuesEntered,ISNUMBER($C70)),D70-F70-J70,"") -> ¥18,160,978 | R70: 377
B71: =ROWS($B$28:B71) -> 44 | C71: =IF(ValuesEntered,IF(AND(ISNUMBER(O70),R70>0),EDATE(C70,1),""),"") -> 2017-06-01 | D71: ¥18,160,978 | E71: =IF(AND(ValuesEntered,ISNUMBER(C71)),IF($E$16="時間短縮",ROUND(IPMT(VLOOKUP($C71,Rate_table,2,TRUE)/12,1,$R70,$D71)*-1,0),ROUND(IPMT(VLOOKUP($C71,Rate_table,2,TRUE)/12,$B71,DurationOfLoan,LoanAmount-BonusAmount-SUM(extra_payments))*-1,0))+IF($I71=0,0,ROUND(IPMT(VLOOKUP($C71,Rate_table,2,TRUE)/12,COUNTIF($I$28:I71,">0"),DurationofBonus,BonusAmount)*-1,0)),"") -> ¥13,990 | F71: =IF(AND(ValuesEntered,ISNUMBER($C71)),IF($E$16="時間短縮",ROUND(PPMT(VLOOKUP($C71,Rate_table,2,TRUE)/12,1,$R70,$D71)*-1,0),ROUND(PPMT(VLOOKUP($C71,Rate_table,2,TRUE)/12,$B71,DurationOfLoan,LoanAmount-BonusAmount-SUM(extra_payments))*-1,0))+IF(I71=0,0,ROUND(PPMT(VLOOKUP($C71,Rate_table,2,TRUE)/12,COUNTIF($I$28:I71,">0"),DurationofBonus,BonusAmount)*-1,0)),"") -> ¥8,591 | I71: ¥0 | K71: ¥37,500 | L71: =IF(AND(ValuesEntered,ISNUMBER($C71)),SUM(E71:H71,J71:K71),"") -> ¥60,081 | O71: =IF(AND(ValuesEntered,ISNUMBER($C71)),D71-F71-J71,"") -> ¥18,152,387 | R71: 376
B72: =ROWS($B$28:B72) -> 45 | C72: =IF(ValuesEntered,IF(AND(ISNUMBER(O71),R71>0),EDATE(C71,1),""),"") -> 2017-07-01 | D72: ¥18,152,387 | E72: =IF(AND(ValuesEntered,ISNUMBER(C72)),IF($E$16="時間短縮",ROUND(IPMT(VLOOKUP($C72,Rate_table,2,TRUE)/12,1,$R71,$D72)*-1,0),ROUND(IPMT(VLOOKUP($C72,Rate_table,2,TRUE)/12,$B72,DurationOfLoan,LoanAmount-BonusAmount-SUM(extra_payments))*-1,0))+IF($I72=0,0,ROUND(IPMT(VLOOKUP($C72,Rate_table,2,TRUE)/12,COUNTIF($I$28:I72,">0"),DurationofBonus,BonusAmount)*-1,0)),"") -> ¥46,591 | F72: =IF(AND(ValuesEntered,ISNUMBER($C72)),IF($E$16="時間短縮",ROUND(PPMT(VLOOKUP($C72,Rate_table,2,TRUE)/12,1,$R71,$D72)*-1,0),ROUND(PPMT(VLOOKUP($C72,Rate_table,2,TRUE)/12,$B72,DurationOfLoan,LoanAmount-BonusAmount-SUM(extra_payments))*-1,0))+IF(I72=0,0,ROUND(PPMT(VLOOKUP($C72,Rate_table,2,TRUE)/12,COUNTIF($I$28:I72,">0"),DurationofBonus,BonusAmount)*-1,0)),"") -> ¥194,750 | I72: ¥200,000 | K72: ¥37,500 | L72: =IF(AND(ValuesEntered,ISNUMBER($C72)),SUM(E72:H72,J72:K72),"") -> ¥278,841 | O72: =IF(AND(ValuesEntered,ISNUMBER($C72)),D72-F72-J72,"") -> ¥17,957,637 | R72: 375
B73: =ROWS($B$28:B73) -> 46 | C73: =IF(ValuesEntered,IF(AND(ISNUMBER(O72),R72>0),EDATE(C72,1),""),"") -> 2017-08-01 | D73: ¥17,957,637 | E73: =IF(AND(ValuesEntered,ISNUMBER(C73)),IF($E$16="時間短縮",ROUND(IPMT(VLOOKUP($C73,Rate_table,2,TRUE)/12,1,$R72,$D73)*-1,0),ROUND(IPMT(VLOOKUP($C73,Rate_table,2,TRUE)/12,$B73,DurationOfLoan,LoanAmount-BonusAmount-SUM(extra_payments))*-1,0))+IF($I73=0,0,ROUND(IPMT(VLOOKUP($C73,Rate_table,2,TRUE)/12,COUNTIF($I$28:I73,">0"),DurationofBonus,BonusAmount)*-1,0)),"") -> ¥13,946 | F73: =IF(AND(ValuesEntered,ISNUMBER($C73)),IF($E$16="時間短縮",ROUND(PPMT(VLOOKUP($C73,Rate_table,2,TRUE)/12,1,$R72,$D73)*-1,0),ROUND(PPMT(VLOOKUP($C73,Rate_table,2,TRUE)/12,$B73,DurationOfLoan,LoanAmount-BonusAmount-SUM(extra_payments))*-1,0))+IF(I73=0,0,ROUND(PPMT(VLOOKUP($C73,Rate_table,2,TRUE)/12,COUNTIF($I$28:I73,">0"),DurationofBonus,BonusAmount)*-1,0)),"") -> ¥8,635 | I73: ¥0 | K73: ¥37,500 | L73: =IF(AND(ValuesEntered,ISNUMBER($C73)),SUM(E73:H73,J73:K73),"") -> ¥60,081 | O73: =IF(AND(ValuesEntered,ISNUMBER($C73)),D73-F73-J73,"") -> ¥17,949,002 | R73: 374
B74: =ROWS($B$28:B74) -> 47 | C74: =IF(ValuesEntered,IF(AND(ISNUMBER(O73),R73>0),EDATE(C73,1),""),"") -> 2017-09-01 | D74: ¥17,949,002 | E74: =IF(AND(ValuesEntered,ISNUMBER(C74)),IF($E$16="時間短縮",ROUND(IPMT(VLOOKUP($C74,Rate_table,2,TRUE)/12,1,$R73,$D74)*-1,0),ROUND(IPMT(VLOOKUP($C74,Rate_table,2,TRUE)/12,$B74,DurationOfLoan,LoanAmount-BonusAmount-SUM(extra_payments))*-1,0))+IF($I74=0,0,ROUND(IPMT(VLOOKUP($C74,Rate_table,2,TRUE)/12,COUNTIF($I$28:I74,">0"),DurationofBonus,BonusAmount)*-1,0)),"") -> ¥13,924 | F74: =IF(AND(ValuesEntered,ISNUMBER($C74)),IF($E$16="時間短縮",ROUND(PPMT(VLOOKUP($C74,Rate_table,2,TRUE)/12,1,$R73,$D74)*-1,0),ROUND(PPMT(VLOOKUP($C74,Rate_table,2,TRUE)/12,$B74,DurationOfLoan,LoanAmount-BonusAmount-SUM(extra_payments))*-1,0))+IF(I74=0,0,ROUND(PPMT(VLOOKUP($C74,Rate_table,2,TRUE)/12,COUNTIF($I$28:I74,">0"),DurationofBonus,BonusAmount)*-1,0)),"") -> ¥8,657 | I74: ¥0 | K74: ¥37,500 | L74: =IF(AND(ValuesEntered,ISNUMBER($C74)),SUM(E74:H74,J74:K74),"") -> ¥60,081 | O74: =IF(AND(ValuesEntered,ISNUMBER($C74)),D74-F74-J74,"") -> ¥17,940,345 | R74: 373
B75: =ROWS($B$28:B75) -> 48 | C75: =IF(ValuesEntered,IF(AND(ISNUMBER(O74),R74>0),EDATE(C74,1),""),"") -> 2017-10-01 | D75: ¥17,940,345 | E75: =IF(AND(ValuesEntered,ISNUMBER(C75)),IF($E$16="時間短縮",ROUND(IPMT(VLOOKUP($C75,Rate_table,2,TRUE)/12,1,$R74,$D75)*-1,0),ROUND(IPMT(VLOOKUP($C75,Rate_table,2,TRUE)/12,$B75,DurationOfLoan,LoanAmount-BonusAmount-SUM(extra_payments))*-1,0))+IF($I75=0,0,ROUND(IPMT(VLOOKUP($C75,Rate_table,2,TRUE)/12,COUNTIF($I$28:I75,">0"),DurationofBonus,BonusAmount)*-1,0)),"") -> ¥13,902 | F75: =IF(AND(ValuesEntered,ISNUMBER($C75)),IF($E$16="時間短縮",ROUND(PPMT(VLOOKUP($C75,Rate_table,2,TRUE)/12,1,$R74,$D75)*-1,0),ROUND(PPMT(VLOOKUP($C75,Rate_table,2,TRUE)/12,$B75,DurationOfLoan,LoanAmount-BonusAmount-SUM(extra_payments))*-1,0))+IF(I75=0,0,ROUND(PPMT(VLOOKUP($C75,Rate_table,2,TRUE)/12,COUNTIF($I$28:I75,">0"),DurationofBonus,BonusAmount)*-1,0)),"") -> ¥8,680 | I75: ¥0 | K75: ¥37,500 | L75: =IF(AND(ValuesEntered,ISNUMBER($C75)),SUM(E75:H75,J75:K75),"") -> ¥60,082 | O75: =IF(AND(ValuesEntered,ISNUMBER($C75)),D75-F75-J75,"") -> ¥17,931,665 | R75: 372
B76: =ROWS($B$28:B76) -> 49 | C76: =IF(ValuesEntered,IF(AND(ISNUMBER(O75),R75>0),EDATE(C75,1),""),"") -> 2017-11-01 | D76: ¥17,931,665 | E76: =IF(AND(ValuesEntered,ISNUMBER(C76)),IF($E$16="時間短縮",ROUND(IPMT(VLOOKUP($C76,Rate_table,2,TRUE)/12,1,$R75,$D76)*-1,0),ROUND(IPMT(VLOOKUP($C76,Rate_table,2,TRUE)/12,$B76,DurationOfLoan,LoanAmount-BonusAmount-SUM(extra_payments))*-1,0))+IF($I76=0,0,ROUND(IPMT(VLOOKUP($C76,Rate_table,2,TRUE)/12,COUNTIF($I$28:I76,">0"),DurationofBonus,BonusAmount)*-1,0)),"") -> ¥13,879 | F76: =IF(AND(ValuesEntered,ISNUMBER($C76)),IF($E$16="時間短縮",ROUND(PPMT(VLOOKUP($C76,Rate_table,2,TRUE)/12,1,$R75,$D76)*-1,0),ROUND(PPMT(VLOOKUP($C76,Rate_table,2,TRUE)/12,$B76,DurationOfLoan,LoanAmount-BonusAmount-SUM(extra_payments))*-1,0))+IF(I76=0,0,ROUND(PPMT(VLOOKUP($C76,Rate_table,2,TRUE)/12,COUNTIF($I$28:I76,">0"),DurationofBonus,BonusAmount)*-1,0)),"") -> ¥8,702 | I76: ¥0 | K76: ¥37,500 | L76: =IF(AND(ValuesEntered,ISNUMBER($C76)),SUM(E76:H76,J76:K76),"") -> ¥60,081 | O76: =IF(AND(ValuesEntered,ISNUMBER($C76)),D76-F76-J76,"") -> ¥17,922,963 | R76: 371
B77: =ROWS($B$28:B77) -> 50 | C77: =IF(ValuesEntered,IF(AND(ISNUMBER(O76),R76>0),EDATE(C76,1),""),"") -> 2017-12-01 | D77: ¥17,922,963 | E77: =IF(AND(ValuesEntered,ISNUMBER(C77)),IF($E$16="時間短縮",ROUND(IPMT(VLOOKUP($C77,Rate_table,2,TRUE)/12,1,$R76,$D77)*-1,0),ROUND(IPMT(VLOOKUP($C77,Rate_table,2,TRUE)/12,$B77,DurationOfLoan,LoanAmount-BonusAmount-SUM(extra_payments))*-1,0))+IF($I77=0,0,ROUND(IPMT(VLOOKUP($C77,Rate_table,2,TRUE)/12,COUNTIF($I$28:I77,">0"),DurationofBonus,BonusAmount)*-1,0)),"") -> ¥13,857 | F77: =IF(AND(ValuesEntered,ISNUMBER($C77)),IF($E$16="時間短縮",ROUND(PPMT(VLOOKUP($C77,Rate_table,2,TRUE)/12,1,$R76,$D77)*-1,0),ROUND(PPMT(VLOOKUP($C77,Rate_table,2,TRUE)/12,$B77,DurationOfLoan,LoanAmount-BonusAmount-SUM(extra_payments))*-1,0))+IF(I77=0,0,ROUND(PPMT(VLOOKUP($C77,Rate_table,2,TRUE)/12,COUNTIF($I$28:I77,">0"),DurationofBonus,BonusAmount)*-1,0)),"") -> ¥8,724 | I77: ¥0 | K77: ¥37,500 | L77: =IF(AND(ValuesEntered,ISNUMBER($C77)),SUM(E77:H77,J77:K77),"") -> ¥60,081 | O77: =IF(AND(ValuesEntered,ISNUMBER($C77)),D77-F77-J77,"") -> ¥17,914,239 | R77: 370
B78: =ROWS($B$28:B78) -> 51 | C78: =IF(ValuesEntered,IF(AND(ISNUMBER(O77),R77>0),EDATE(C77,1),""),"") -> 2018-01-01 | D78: ¥17,914,239 | E78: =IF(AND(ValuesEntered,ISNUMBER(C78)),IF($E$16="時間短縮",ROUND(IPMT(VLOOKUP($C78,Rate_table,2,TRUE)/12,1,$R77,$D78)*-1,0),ROUND(IPMT(VLOOKUP($C78,Rate_table,2,TRUE)/12,$B78,DurationOfLoan,LoanAmount-BonusAmount-SUM(extra_payments))*-1,0))+IF($I78=0,0,ROUND(IPMT(VLOOKUP($C78,Rate_table,2,TRUE)/12,COUNTIF($I$28:I78,">0"),DurationofBonus,BonusAmount)*-1,0)),"") -> ¥13,834 | F78: =IF(AND(ValuesEntered,ISNUMBER($C78)),IF($E$16="時間短縮",ROUND(PPMT(VLOOKUP($C78,Rate_table,2,TRUE)/12,1,$R77,$D78)*-1,0),ROUND(PPMT(VLOOKUP($C78,Rate_table,2,TRUE)/12,$B78,DurationOfLoan,LoanAmount-BonusAmount-SUM(extra_payments))*-1,0))+IF(I78=0,0,ROUND(PPMT(VLOOKUP($C78,Rate_table,2,TRUE)/12,COUNTIF($I$28:I78,">0"),DurationofBonus,BonusAmount)*-1,0)),"") -> ¥8,747 | I78: ¥0 | K78: ¥37,500 | L78: =IF(AND(ValuesEntered,ISNUMBER($C78)),SUM(E78:H78,J78:K78),"") -> ¥60,081 | O78: =IF(AND(ValuesEntered,ISNUMBER($C78)),D78-F78-J78,"") -> ¥17,905,492 | R78: 369
B79: =ROWS($B$28:B79) -> 52 | C79: =IF(ValuesEntered,IF(AND(ISNUMBER(O78),R78>0),EDATE(C78,1),""),"") -> 2018-02-01 | D79: ¥17,905,492 | E79: =IF(AND(ValuesEntered,ISNUMBER(C79)),IF($E$16="時間短縮",ROUND(IPMT(VLOOKUP($C79,Rate_table,2,TRUE)/12,1,$R78,$D79)*-1,0),ROUND(IPMT(VLOOKUP($C79,Rate_table,2,TRUE)/12,$B79,DurationOfLoan,LoanAmount-BonusAmount-SUM(extra_payments))*-1,0))+IF($I79=0,0,ROUND(IPMT(VLOOKUP($C79,Rate_table,2,TRUE)/12,COUNTIF($I$28:I79,">0"),DurationofBonus,BonusAmount)*-1,0)),"") -> ¥13,812 | F79: =IF(AND(ValuesEntered,ISNUMBER($C79)),IF($E$16="時間短縮",ROUND(PPMT(VLOOKUP($C79,Rate_table,2,TRUE)/12,1,$R78,$D79)*-1,0),ROUND(PPMT(VLOOKUP($C79,Rate_table,2,TRUE)/12,$B79,DurationOfLoan,LoanAmount-BonusAmount-SUM(extra_payments))*-1,0))+IF(I79=0,0,ROUND(PPMT(VLOOKUP($C79,Rate_table,2,TRUE)/12,COUNTIF($I$28:I79,">0"),DurationofBonus,BonusAmount)*-1,0)),"") -> ¥8,769 | I79: ¥0 | K79: ¥37,500 | L79: =IF(AND(ValuesEntered,ISNUMBER($C79)),SUM(E79:H79,J79:K79),"") -> ¥60,081 | O79: =IF(AND(ValuesEntered,ISNUMBER($C79)),D79-F79-J79,"") -> ¥17,896,723 | R79: 368
B80: =ROWS($B$28:B80) -> 53 | C80: =IF(ValuesEntered,IF(AND(ISNUMBER(O79),R79>0),EDATE(C79,1),""),"") -> 2018-03-01 | D80: ¥17,896,723 | E80: =IF(AND(ValuesEntered,ISNUMBER(C80)),IF($E$16="時間短縮",ROUND(IPMT(VLOOKUP($C80,Rate_table,2,TRUE)/12,1,$R79,$D80)*-1,0),ROUND(IPMT(VLOOKUP($C80,Rate_table,2,TRUE)/12,$B80,DurationOfLoan,LoanAmount-BonusAmount-SUM(extra_payments))*-1,0))+IF($I80=0,0,ROUND(IPMT(VLOOKUP($C80,Rate_table,2,TRUE)/12,COUNTIF($I$28:I80,">0"),DurationofBonus,BonusAmount)*-1,0)),"") -> ¥13,790 | F80: =IF(AND(ValuesEntered,ISNUMBER($C80)),IF($E$16="時間短縮",ROUND(PPMT(VLOOKUP($C80,Rate_table,2,TRUE)/12,1,$R79,$D80)*-1,0),ROUND(PPMT(VLOOKUP($C80,Rate_table,2,TRUE)/12,$B80,DurationOfLoan,LoanAmount-BonusAmount-SUM(extra_payments))*-1,0))+IF(I80=0,0,ROUND(PPMT(VLOOKUP($C80,Rate_table,2,TRUE)/12,COUNTIF($I$28:I80,">0"),DurationofBonus,BonusAmount)*-1,0)),"") -> ¥8,792 | I80: ¥0 | K80: ¥37,500 | L80: =IF(AND(ValuesEntered,ISNUMBER($C80)),SUM(E80:H80,J80:K80),"") -> ¥60,082 | O80: =IF(AND(ValuesEntered,ISNUMBER($C80)),D80-F80-J80,"") -> ¥17,887,931 | R80: 367
B81: =ROWS($B$28:B81) -> 54 | C81: =IF(ValuesEntered,IF(AND(ISNUMBER(O80),R80>0),EDATE(C80,1),""),"") -> 2018-04-01 | D81: ¥17,887,931 | E81: =IF(AND(ValuesEntered,ISNUMBER(C81)),IF($E$16="時間短縮",ROUND(IPMT(VLOOKUP($C81,Rate_table,2,TRUE)/12,1,$R80,$D81)*-1,0),ROUND(IPMT(VLOOKUP($C81,Rate_table,2,TRUE)/12,$B81,DurationOfLoan,LoanAmount-BonusAmount-SUM(extra_payments))*-1,0))+IF($I81=0,0,ROUND(IPMT(VLOOKUP($C81,Rate_table,2,TRUE)/12,COUNTIF($I$28:I81,">0"),DurationofBonus,BonusAmount)*-1,0)),"") -> ¥45,912 | F81: =IF(AND(ValuesEntered,ISNUMBER($C81)),IF($E$16="時間短縮",ROUND(PPMT(VLOOKUP($C81,Rate_table,2,TRUE)/12,1,$R80,$D81)*-1,0),ROUND(PPMT(VLOOKUP($C81,Rate_table,2,TRUE)/12,$B81,DurationOfLoan,LoanAmount-BonusAmount-SUM(extra_payments))*-1,0))+IF(I81=0,0,ROUND(PPMT(VLOOKUP($C81,Rate_table,2,TRUE)/12,COUNTIF($I$28:I81,">0"),DurationofBonus,BonusAmount)*-1,0)),"") -> ¥195,429 | I81: ¥200,000 | K81: ¥37,500 | L81: =IF(AND(ValuesEntered,ISNUMBER($C81)),SUM(E81:H81,J81:K81),"") -> ¥278,841 | O81: =IF(AND(ValuesEntered,ISNUMBER($C81)),D81-F81-J81,"") -> ¥17,692,502 | R81: 366
B82: =ROWS($B$28:B82) -> 55 | C82: =IF(ValuesEntered,IF(AND(ISNUMBER(O81),R81>0),EDATE(C81,1),""),"") -> 2018-05-01 | D82: ¥17,692,502 | E82: =IF(AND(ValuesEntered,ISNUMBER(C82)),IF($E$16="時間短縮",ROUND(IPMT(VLOOKUP($C82,Rate_table,2,TRUE)/12,1,$R81,$D82)*-1,0),ROUND(IPMT(VLOOKUP($C82,Rate_table,2,TRUE)/12,$B82,DurationOfLoan,LoanAmount-BonusAmount-SUM(extra_payments))*-1,0))+IF($I82=0,0,ROUND(IPMT(VLOOKUP($C82,Rate_table,2,TRUE)/12,COUNTIF($I$28:I82,">0"),DurationofBonus,BonusAmount)*-1,0)),"") -> ¥13,744 | F82: =IF(AND(ValuesEntered,ISNUMBER($C82)),IF($E$16="時間短縮",ROUND(PPMT(VLOOKUP($C82,Rate_table,2,TRUE)/12,1,$R81,$D82)*-1,0),ROUND(PPMT(VLOOKUP($C82,Rate_table,2,TRUE)/12,$B82,DurationOfLoan,LoanAmount-BonusAmount-SUM(extra_payments))*-1,0))+IF(I82=0,0,ROUND(PPMT(VLOOKUP($C82,Rate_table,2,TRUE)/12,COUNTIF($I$28:I82,">0"),DurationofBonus,BonusAmount)*-1,0)),"") -> ¥8,837 | I82: ¥0 | K82: ¥37,500 | L82: =IF(AND(ValuesEntered,ISNUMBER($C82)),SUM(E82:H82,J82:K82),"") -> ¥60,081 | O82: =IF(AND(ValuesEntered,ISNUMBER($C82)),D82-F82-J82,"") -> ¥17,683,665 | R82: 365
B83: =ROWS($B$28:B83) -> 56 | C83: =IF(ValuesEntered,IF(AND(ISNUMBER(O82),R82>0),EDATE(C82,1),""),"") -> 2018-06-01 | D83: ¥17,683,665 | E83: =IF(AND(ValuesEntered,ISNUMBER(C83)),IF($E$16="時間短縮",ROUND(IPMT(VLOOKUP($C83,Rate_table,2,TRUE)/12,1,$R82,$D83)*-1,0),ROUND(IPMT(VLOOKUP($C83,Rate_table,2,TRUE)/12,$B83,DurationOfLoan,LoanAmount-BonusAmount-SUM(extra_payments))*-1,0))+IF($I83=0,0,ROUND(IPMT(VLOOKUP($C83,Rate_table,2,TRUE)/12,COUNTIF($I$28:I83,">0"),DurationofBonus,BonusAmount)*-1,0)),"") -> ¥13,722 | F83: =IF(AND(ValuesEntered,ISNUMBER($C83)),IF($E$16="時間短縮",ROUND(PPMT(VLOOKUP($C83,Rate_table,2,TRUE)/12,1,$R82,$D83)*-1,0),ROUND(PPMT(VLOOKUP($C83,Rate_table,2,TRUE)/12,$B83,DurationOfLoan,LoanAmount-BonusAmount-SUM(extra_payments))*-1,0))+IF(I83=0,0,ROUND(PPMT(VLOOKUP($C83,Rate_table,2,TRUE)/12,COUNTIF($I$28:I83,">0"),DurationofBonus,BonusAmount)*-1,0)),"") -> ¥8,859 | I83: ¥0 | K83: ¥37,500 | L83: =IF(AND(ValuesEntered,ISNUMBER($C83)),SUM(E83:H83,J83:K83),"") -> ¥60,081 | O83: =IF(AND(ValuesEntered,ISNUMBER($C83)),D83-F83-J83,"") -> ¥17,674,806 | R83: 364
B84: =ROWS($B$28:B84) -> 57 | C84: =IF(ValuesEntered,IF(AND(ISNUMBER(O83),R83>0),EDATE(C83,1),""),"") -> 2018-07-01 | D84: ¥17,674,806 | E84: =IF(AND(ValuesEntered,ISNUMBER(C84)),IF($E$16="時間短縮",ROUND(IPMT(VLOOKUP($C84,Rate_table,2,TRUE)/12,1,$R83,$D84)*-1,0),ROUND(IPMT(VLOOKUP($C84,Rate_table,2,TRUE)/12,$B84,DurationOfLoan,LoanAmount-BonusAmount-SUM(extra_payments))*-1,0))+IF($I84=0,0,ROUND(IPMT(VLOOKUP($C84,Rate_table,2,TRUE)/12,COUNTIF($I$28:I84,">0"),DurationofBonus,BonusAmount)*-1,0)),"") -> ¥45,365 | F84: =IF(AND(ValuesEntered,ISNUMBER($C84)),IF($E$16="時間短縮",ROUND(PPMT(VLOOKUP($C84,Rate_table,2,TRUE)/12,1,$R83,$D84)*-1,0),ROUND(PPMT(VLOOKUP($C84,Rate_table,2,TRUE)/12,$B84,DurationOfLoan,LoanAmount-BonusAmount-SUM(extra_payments))*-1,0))+IF(I84=0,0,ROUND(PPMT(VLOOKUP($C84,Rate_table,2,TRUE)/12,COUNTIF($I$28:I84,">0"),DurationofBonus,BonusAmount)*-1,0)),"") -> ¥195,976 | I84: ¥200,000 | K84: ¥37,500 | L84: =IF(AND(ValuesEntered,ISNUMBER($C84)),SUM(E84:H84,J84:K84),"") -> ¥278,841 | O84: =IF(AND(ValuesEntered,ISNUMBER($C84)),D84-F84-J84,"") -> ¥17,478,830 | R84: 363
B85: =ROWS($B$28:B85) -> 58 | C85: =IF(ValuesEntered,IF(AND(ISNUMBER(O84),R84>0),EDATE(C84,1),""),"") -> 2018-08-01 | D85: ¥17,478,830 | E85: =IF(AND(ValuesEntered,ISNUMBER(C85)),IF($E$16="時間短縮",ROUND(IPMT(VLOOKUP($C85,Rate_table,2,TRUE)/12,1,$R84,$D85)*-1,0),ROUND(IPMT(VLOOKUP($C85,Rate_table,2,TRUE)/12,$B85,DurationOfLoan,LoanAmount-BonusAmount-SUM(extra_payments))*-1,0))+IF($I85=0,0,ROUND(IPMT(VLOOKUP($C85,Rate_table,2,TRUE)/12,COUNTIF($I$28:I85,">0"),DurationofBonus,BonusAmount)*-1,0)),"") -> ¥13,676 | F85: =IF(AND(ValuesEntered,ISNUMBER($C85)),IF($E$16="時間短縮",ROUND(PPMT(VLOOKUP($C85,Rate_table,2,TRUE)/12,1,$R84,$D85)*-1,0),ROUND(PPMT(VLOOKUP($C85,Rate_table,2,TRUE)/12,$B85,DurationOfLoan,LoanAmount-BonusAmount-SUM(extra_payments))*-1,0))+IF(I85=0,0,ROUND(PPMT(VLOOKUP($C85,Rate_table,2,TRUE)/12,COUNTIF($I$28:I85,">0"),DurationofBonus,BonusAmount)*-1,0)),"") -> ¥8,905 | I85: ¥0 | K85: ¥37,500 | L85: =IF(AND(ValuesEntered,ISNUMBER($C85)),SUM(E85:H85,J85:K85),"") -> ¥60,081 | O85: =IF(AND(ValuesEntered,ISNUMBER($C85)),D85-F85-J85,"") -> ¥17,469,925 | R85: 362
B86: =ROWS($B$28:B86) -> 59 | C86: =IF(ValuesEntered,IF(AND(ISNUMBER(O85),R85>0),EDATE(C85,1),""),"") -> 2018-09-01 | D86: ¥17,469,925 | E86: =IF(AND(ValuesEntered,ISNUMBER(C86)),IF($E$16="時間短縮",ROUND(IPMT(VLOOKUP($C86,Rate_table,2,TRUE)/12,1,$R85,$D86)*-1,0),ROUND(IPMT(VLOOKUP($C86,Rate_table,2,TRUE)/12,$B86,DurationOfLoan,LoanAmount-BonusAmount-SUM(extra_payments))*-1,0))+IF($I86=0,0,ROUND(IPMT(VLOOKUP($C86,Rate_table,2,TRUE)/12,COUNTIF($I$28:I86,">0"),DurationofBonus,BonusAmount)*-1,0)),"") -> ¥13,653 | F86: =IF(AND(ValuesEntered,ISNUMBER($C86)),IF($E$16="時間短縮",ROUND(PPMT(VLOOKUP($C86,Rate_table,2,TRUE)/12,1,$R85,$D86)*-1,0),ROUND(PPMT(VLOOKUP($C86,Rate_table,2,TRUE)/12,$B86,DurationOfLoan,LoanAmount-BonusAmount-SUM(extra_payments))*-1,0))+IF(I86=0,0,ROUND(PPMT(VLOOKUP($C86,Rate_table,2,TRUE)/12,COUNTIF($I$28:I86,">0"),DurationofBonus,BonusAmount)*-1,0)),"") -> ¥8,928 | I86: ¥0 | K86: ¥37,500 | L86: =IF(AND(ValuesEntered,ISNUMBER($C86)),SUM(E86:H86,J86:K86),"") -> ¥60,081 | O86: =IF(AND(ValuesEntered,ISNUMBER($C86)),D86-F86-J86,"") -> ¥17,460,997 | R86: 361
B87: =ROWS($B$28:B87) -> 60 | C87: =IF(ValuesEntered,IF(AND(ISNUMBER(O86),R86>0),EDATE(C86,1),""),"") -> 2018-10-01 | D87: ¥17,460,997 | E87: =IF(AND(ValuesEntered,ISNUMBER(C87)),IF($E$16="時間短縮",ROUND(IPMT(VLOOKUP($C87,Rate_table,2,TRUE)/12,1,$R86,$D87)*-1,0),ROUND(IPMT(VLOOKUP($C87,Rate_table,2,TRUE)/12,$B87,DurationOfLoan,LoanAmount-BonusAmount-SUM(extra_payments))*-1,0))+IF($I87=0,0,ROUND(IPMT(VLOOKUP($C87,Rate_table,2,TRUE)/12,COUNTIF($I$28:I87,">0"),DurationofBonus,BonusAmount)*-1,0)),"") -> ¥13,630 | F87: =IF(AND(ValuesEntered,ISNUMBER($C87)),IF($E$16="時間短縮",ROUND(PPMT(VLOOKUP($C87,Rate_table,2,TRUE)/12,1,$R86,$D87)*-1,0),ROUND(PPMT(VLOOKUP($C87,Rate_table,2,TRUE)/12,$B87,DurationOfLoan,LoanAmount-BonusAmount-SUM(extra_payments))*-1,0))+IF(I87=0,0,ROUND(PPMT(VLOOKUP($C87,Rate_table,2,TRUE)/12,COUNTIF($I$28:I87,">0"),DurationofBonus,BonusAmount)*-1,0)),"") -> ¥8,951 | I87: ¥0 | K87: ¥37,500 | L87: =IF(AND(ValuesEntered,ISNUMBER($C87)),SUM(E87:H87,J87:K87),"") -> ¥60,081 | O87: =IF(AND(ValuesEntered,ISNUMBER($C87)),D87-F87-J87,"") -> ¥17,452,046 | R87: 360
B88: =ROWS($B$28:B88) -> 61 | C88: =IF(ValuesEntered,IF(AND(ISNUMBER(O87),R87>0),EDATE(C87,1),""),"") -> 2018-11-01 | D88: ¥17,452,046 | E88: =IF(AND(ValuesEntered,ISNUMBER(C88)),IF($E$16="時間短縮",ROUND(IPMT(VLOOKUP($C88,Rate_table,2,TRUE)/12,1,$R87,$D88)*-1,0),ROUND(IPMT(VLOOKUP($C88,Rate_table,2,TRUE)/12,$B88,DurationOfLoan,LoanAmount-BonusAmount-SUM(extra_payments))*-1,0))+IF($I88=0,0,ROUND(IPMT(VLOOKUP($C88,Rate_table,2,TRUE)/12,COUNTIF($I$28:I88,">0"),DurationofBonus,BonusAmount)*-1,0)),"") -> ¥13,607 | F88: =IF(AND(ValuesEntered,ISNUMBER($C88)),IF($E$16="時間短縮",ROUND(PPMT(VLOOKUP($C88,Rate_table,2,TRUE)/12,1,$R87,$D88)*-1,0),ROUND(PPMT(VLOOKUP($C88,Rate_table,2,TRUE)/12,$B88,DurationOfLoan,LoanAmount-BonusAmount-SUM(extra_payments))*-1,0))+IF(I88=0,0,ROUND(PPMT(VLOOKUP($C88,Rate_table,2,TRUE)/12,COUNTIF($I$28:I88,">0"),DurationofBonus,BonusAmount)*-1,0)),"") -> ¥8,974 | I88: ¥0 | K88: ¥37,500 | L88: =IF(AND(ValuesEntered,ISNUMBER($C88)),SUM(E88:H88,J88:K88),"") -> ¥60,081 | O88: =IF(AND(ValuesEntered,ISNUMBER($C88)),D88-F88-J88,"") -> ¥17,443,072 | R88: 359
B89: =ROWS($B$28:B89) -> 62 | C89: =IF(ValuesEntered,IF(AND(ISNUMBER(O88),R88>0),EDATE(C88,1),""),"") -> 2018-12-01 | D89: ¥17,443,072 | E89: =IF(AND(ValuesEntered,ISNUMBER(C89)),IF($E$16="時間短縮",ROUND(IPMT(VLOOKUP($C89,Rate_table,2,TRUE)/12,1,$R88,$D89)*-1,0),ROUND(IPMT(VLOOKUP($C89,Rate_table,2,TRUE)/12,$B89,DurationOfLoan,LoanAmount-BonusAmount-SUM(extra_payments))*-1,0))+IF($I89=0,0,ROUND(IPMT(VLOOKUP($C89,Rate_table,2,TRUE)/12,COUNTIF($I$28:I89,">0"),DurationofBonus,BonusAmount)*-1,0)),"") -> ¥13,584 | F89: =IF(AND(ValuesEntered,ISNUMBER($C89)),IF($E$16="時間短縮",ROUND(PPMT(VLOOKUP($C89,Rate_table,2,TRUE)/12,1,$R88,$D89)*-1,0),ROUND(PPMT(VLOOKUP($C89,Rate_table,2,TRUE)/12,$B89,DurationOfLoan,LoanAmount-BonusAmount-SUM(extra_payments))*-1,0))+IF(I89=0,0,ROUND(PPMT(VLOOKUP($C89,Rate_table,2,TRUE)/12,COUNTIF($I$28:I89,">0"),DurationofBonus,BonusAmount)*-1,0)),"") -> ¥8,997 | I89: ¥0 | K89: ¥37,500 | L89: =IF(AND(ValuesEntered,ISNUMBER($C89)),SUM(E89:H89,J89:K89),"") -> ¥60,081 | O89: =IF(AND(ValuesEntered,ISNUMBER($C89)),D89-F89-J89,"") -> ¥17,434,075 | R89: 358
B90: =ROWS($B$28:B90) -> 63 | C90: =IF(ValuesEntered,IF(AND(ISNUMBER(O89),R89>0),EDATE(C89,1),""),"") -> 2019-01-01 | D90: ¥17,434,075 | E90: =IF(AND(ValuesEntered,ISNUMBER(C90)),IF($E$16="時間短縮",ROUND(IPMT(VLOOKUP($C90,Rate_table,2,TRUE)/12,1,$R89,$D90)*-1,0),ROUND(IPMT(VLOOKUP($C90,Rate_table,2,TRUE)/12,$B90,DurationOfLoan,LoanAmount-BonusAmount-SUM(extra_payments))*-1,0))+IF($I90=0,0,ROUND(IPMT(VLOOKUP($C90,Rate_table,2,TRUE)/12,COUNTIF($I$28:I90,">0"),DurationofBonus,BonusAmount)*-1,0)),"") -> ¥13,561 | F90: =IF(AND(ValuesEntered,ISNUMBER($C90)),IF($E$16="時間短縮",ROUND(PPMT(VLOOKUP($C90,Rate_table,2,TRUE)/12,1,$R89,$D90)*-1,0),ROUND(PPMT(VLOOKUP($C90,Rate_table,2,TRUE)/12,$B90,DurationOfLoan,LoanAmount-BonusAmount-SUM(extra_payments))*-1,0))+IF(I90=0,0,ROUND(PPMT(VLOOKUP($C90,Rate_table,2,TRUE)/12,COUNTIF($I$28:I90,">0"),DurationofBonus,BonusAmount)*-1,0)),"") -> ¥9,020 | I90: ¥0 | K90: ¥37,500 | L90: =IF(AND(ValuesEntered,ISNUMBER($C90)),SUM(E90:H90,J90:K90),"") -> ¥60,081 | O90: =IF(AND(ValuesEntered,ISNUMBER($C90)),D90-F90-J90,"") -> ¥17,425,055 | R90: 357
B91: =ROWS($B$28:B91) -> 64 | C91: =IF(ValuesEntered,IF(AND(ISNUMBER(O90),R90>0),EDATE(C90,1),""),"") -> 2019-02-01 | D91: ¥17,425,055 | E91: =IF(AND(ValuesEntered,ISNUMBER(C91)),IF($E$16="時間短縮",ROUND(IPMT(VLOOKUP($C91,Rate_table,2,TRUE)/12,1,$R90,$D91)*-1,0),ROUND(IPMT(VLOOKUP($C91,Rate_table,2,TRUE)/12,$B91,DurationOfLoan,LoanAmount-BonusAmount-SUM(extra_payments))*-1,0))+IF($I91=0,0,ROUND(IPMT(VLOOKUP($C91,Rate_table,2,TRUE)/12,COUNTIF($I$28:I91,">0"),DurationofBonus,BonusAmount)*-1,0)),"") -> ¥13,538 | F91: =IF(AND(ValuesEntered,ISNUMBER($C91)),IF($E$16="時間短縮",ROUND(PPMT(VLOOKUP($C91,Rate_table,2,TRUE)/12,1,$R90,$D91)*-1,0),ROUND(PPMT(VLOOKUP($C91,Rate_table,2,TRUE)/12,$B91,DurationOfLoan,LoanAmount-BonusAmount-SUM(extra_payments))*-1,0))+IF(I91=0,0,ROUND(PPMT(VLOOKUP($C91,Rate_table,2,TRUE)/12,COUNTIF($I$28:I91,">0"),DurationofBonus,BonusAmount)*-1,0)),"") -> ¥9,043 | I91: ¥0 | K91: ¥37,500 | L91: =IF(AND(ValuesEntered,ISNUMBER($C91)),SUM(E91:H91,J91:K91),"") -> ¥60,081 | O91: =IF(AND(ValuesEntered,ISNUMBER($C91)),D91-F91-J91,"") -> ¥17,416,012 | R91: 356
B92: =ROWS($B$28:B92) -> 65 | C92: =IF(ValuesEntered,IF(AND(ISNUMBER(O91),R91>0),EDATE(C91,1),""),"") -> 2019-03-01 | D92: ¥17,416,012 | E92: =IF(AND(ValuesEntered,ISNUMBER(C92)),IF($E$16="時間短縮",ROUND(IPMT(VLOOKUP($C92,Rate_table,2,TRUE)/12,1,$R91,$D92)*-1,0),ROUND(IPMT(VLOOKUP($C92,Rate_table,2,TRUE)/12,$B92,DurationOfLoan,LoanAmount-BonusAmount-SUM(extra_payments))*-1,0))+IF($I92=0,0,ROUND(IPMT(VLOOKUP($C92,Rate_table,2,TRUE)/12,COUNTIF($I$28:I92,">0"),DurationofBonus,BonusAmount)*-1,0)),"") -> ¥13,515 | F92: =IF(AND(ValuesEntered,ISNUMBER($C92)),IF($E$16="時間短縮",ROUND(PPMT(VLOOKUP($C92,Rate_table,2,TRUE)/12,1,$R91,$D92)*-1,0),ROUND(PPMT(VLOOKUP($C92,Rate_table,2,TRUE)/12,$B92,DurationOfLoan,LoanAmount-BonusAmount-SUM(extra_payments))*-1,0))+IF(I92=0,0,ROUND(PPMT(VLOOKUP($C92,Rate_table,2,TRUE)/12,COUNTIF($I$28:I92,">0"),DurationofBonus,BonusAmount)*-1,0)),"") -> ¥9,066 | I92: =IF(ISNUMBER(C92)=FALSE,"",IF(AND(D92>$E$12,OR(MONTH(C92)=$E$13,MONTH(C92)=$E$14,MONTH(C92)=$E$15)),$E$12,0)) -> ¥0 | K92: ¥37,500 | L92: =IF(AND(ValuesEntered,ISNUMBER($C92)),SUM(E92:H92,J92:K92),"") -> ¥60,081 | O92: =IF(AND(ValuesEntered,ISNUMBER($C92)),D92-F92-J92,"") -> ¥17,406,946 | R92: 355
B93: =ROWS($B$28:B93) -> 66 | C93: =IF(ValuesEntered,IF(AND(ISNUMBER(O92),R92>0),EDATE(C92,1),""),"") -> 2019-04-01 | D93: =IF(C93="",0,O92) -> ¥17,406,946 | E93: =IF(AND(ValuesEntered,ISNUMBER(C93)),IF($E$16="時間短縮",ROUND(IPMT(VLOOKUP($C93,Rate_table,2,TRUE)/12,1,$R92,$D93)*-1,0),ROUND(IPMT(VLOOKUP($C93,Rate_table,2,TRUE)/12,$B93,DurationOfLoan,LoanAmount-BonusAmount-SUM(extra_payments))*-1,0))+IF($I93=0,0,ROUND(IPMT(VLOOKUP($C93,Rate_table,2,TRUE)/12,COUNTIF($I$28:I93,">0"),DurationofBonus,BonusAmount)*-1,0)),"") -> ¥44,678 | F93: =IF(AND(ValuesEntered,ISNUMBER($C93)),IF($E$16="時間短縮",ROUND(PPMT(VLOOKUP($C93,Rate_table,2,TRUE)/12,1,$R92,$D93)*-1,0),ROUND(PPMT(VLOOKUP($C93,Rate_table,2,TRUE)/12,$B93,DurationOfLoan,LoanAmount-BonusAmount-SUM(extra_payments))*-1,0))+IF(I93=0,0,ROUND(PPMT(VLOOKUP($C93,Rate_table,2,TRUE)/12,COUNTIF($I$28:I93,">0"),DurationofBonus,BonusAmount)*-1,0)),"") -> ¥196,663 | I93: ¥200,000 | K93: =IF(C93="",0,$Q$7) -> ¥37,500 | L93: =IF(AND(ValuesEntered,ISNUMBER($C93)),SUM(E93:H93,J93:K93),"") -> ¥278,841 | O93: =IF(AND(ValuesEntered,ISNUMBER($C93)),D93-F93-J93,"") -> ¥17,210,283 | R93: =IF(AND($J93>0,$E$16="時間短縮"),Remain_Month,$R92-1) -> 354
B94: =ROWS($B$28:B94) -> 67 | C94: =IF(ValuesEntered,IF(AND(ISNUMBER(O93),R93>0),EDATE(C93,1),""),"") -> 2019-05-01 | D94: ¥17,210,283 | E94: =IF(AND(ValuesEntered,ISNUMBER(C94)),IF($E$16="時間短縮",ROUND(IPMT(VLOOKUP($C94,Rate_table,2,TRUE)/12,1,$R93,$D94)*-1,0),ROUND(IPMT(VLOOKUP($C94,Rate_table,2,TRUE)/12,$B94,DurationOfLoan,LoanAmount-BonusAmount-SUM(extra_payments))*-1,0))+IF($I94=0,0,ROUND(IPMT(VLOOKUP($C94,Rate_table,2,TRUE)/12,COUNTIF($I$28:I94,">0"),DurationofBonus,BonusAmount)*-1,0)),"") -> ¥13,468 | F94: =IF(AND(ValuesEntered,ISNUMBER($C94)),IF($E$16="時間短縮",ROUND(PPMT(VLOOKUP($C94,Rate_table,2,TRUE)/12,1,$R93,$D94)*-1,0),ROUND(PPMT(VLOOKUP($C94,Rate_table,2,TRUE)/12,$B94,DurationOfLoan,LoanAmount-BonusAmount-SUM(extra_payments))*-1,0))+IF(I94=0,0,ROUND(PPMT(VLOOKUP($C94,Rate_table,2,TRUE)/12,COUNTIF($I$28:I94,">0"),DurationofBonus,BonusAmount)*-1,0)),"") -> ¥9,113 | I94: ¥0 | K94: ¥37,500 | L94: =IF(AND(ValuesEntered,ISNUMBER($C94)),SUM(E94:H94,J94:K94),"") -> ¥60,081 | O94: =IF(AND(ValuesEntered,ISNUMBER($C94)),D94-F94-J94,"") -> ¥17,201,170 | R94: 353
B95: =ROWS($B$28:B95) -> 68 | C95: =IF(ValuesEntered,IF(AND(ISNUMBER(O94),R94>0),EDATE(C94,1),""),"") -> 2019-06-01 | D95: ¥17,201,170 | E95: =IF(AND(ValuesEntered,ISNUMBER(C95)),IF($E$16="時間短縮",ROUND(IPMT(VLOOKUP($C95,Rate_table,2,TRUE)/12,1,$R94,$D95)*-1,0),ROUND(IPMT(VLOOKUP($C95,Rate_table,2,TRUE)/12,$B95,DurationOfLoan,LoanAmount-BonusAmount-SUM(extra_payments))*-1,0))+IF($I95=0,0,ROUND(IPMT(VLOOKUP($C95,Rate_table,2,TRUE)/12,COUNTIF($I$28:I95,">0"),DurationofBonus,BonusAmount)*-1,0)),"") -> ¥13,445 | F95: =IF(AND(ValuesEntered,ISNUMBER($C95)),IF($E$16="時間短縮",ROUND(PPMT(VLOOKUP($C95,Rate_table,2,TRUE)/12,1,$R94,$D95)*-1,0),ROUND(PPMT(VLOOKUP($C95,Rate_table,2,TRUE)/12,$B95,DurationOfLoan,LoanAmount-BonusAmount-SUM(extra_payments))*-1,0))+IF(I95=0,0,ROUND(PPMT(VLOOKUP($C95,Rate_table,2,TRUE)/12,COUNTIF($I$28:I95,">0"),DurationofBonus,BonusAmount)*-1,0)),"") -> ¥9,136 | I95: ¥0 | K95: ¥37,500 | L95: =IF(AND(ValuesEntered,ISNUMBER($C95)),SUM(E95:H95,J95:K95),"") -> ¥60,081 | O95: =IF(AND(ValuesEntered,ISNUMBER($C95)),D95-F95-J95,"") -> ¥17,192,034 | R95: 352
B96: =ROWS($B$28:B96) -> 69 | C96: =IF(ValuesEntered,IF(AND(ISNUMBER(O95),R95>0),EDATE(C95,1),""),"") -> 2019-07-01 | D96: ¥17,192,034 | E96: =IF(AND(ValuesEntered,ISNUMBER(C96)),IF($E$16="時間短縮",ROUND(IPMT(VLOOKUP($C96,Rate_table,2,TRUE)/12,1,$R95,$D96)*-1,0),ROUND(IPMT(VLOOKUP($C96,Rate_table,2,TRUE)/12,$B96,DurationOfLoan,LoanAmount-BonusAmount-SUM(extra_payments))*-1,0))+IF($I96=0,0,ROUND(IPMT(VLOOKUP($C96,Rate_table,2,TRUE)/12,COUNTIF($I$28:I96,">0"),DurationofBonus,BonusAmount)*-1,0)),"") -> ¥44,126 | F96: =IF(AND(ValuesEntered,ISNUMBER($C96)),IF($E$16="時間短縮",ROUND(PPMT(VLOOKUP($C96,Rate_table,2,TRUE)/12,1,$R95,$D96)*-1,0),ROUND(PPMT(VLOOKUP($C96,Rate_table,2,TRUE)/12,$B96,DurationOfLoan,LoanAmount-BonusAmount-SUM(extra_payments))*-1,0))+IF(I96=0,0,ROUND(PPMT(VLOOKUP($C96,Rate_table,2,TRUE)/12,COUNTIF($I$28:I96,">0"),DurationofBonus,BonusAmount)*-1,0)),"") -> ¥197,215 | I96: ¥200,000 | K96: ¥37,500 | L96: =IF(AND(ValuesEntered,ISNUMBER($C96)),SUM(E96:H96,J96:K96),"") -> ¥278,841 | O96: =IF(AND(ValuesEntered,ISNUMBER($C96)),D96-F96-J96,"") -> ¥16,994,819 | R96: 351
B97: =ROWS($B$28:B97) -> 70 | C97: =IF(ValuesEntered,IF(AND(ISNUMBER(O96),R96>0),EDATE(C96,1),""),"") -> 2019-08-01 | D97: ¥16,994,819 | E97: =IF(AND(ValuesEntered,ISNUMBER(C97)),IF($E$16="時間短縮",ROUND(IPMT(VLOOKUP($C97,Rate_table,2,TRUE)/12,1,$R96,$D97)*-1,0),ROUND(IPMT(VLOOKUP($C97,Rate_table,2,TRUE)/12,$B97,DurationOfLoan,LoanAmount-BonusAmount-SUM(extra_payments))*-1,0))+IF($I97=0,0,ROUND(IPMT(VLOOKUP($C97,Rate_table,2,TRUE)/12,COUNTIF($I$28:I97,">0"),DurationofBonus,BonusAmount)*-1,0)),"") -> ¥13,398 | F97: =IF(AND(ValuesEntered,ISNUMBER($C97)),IF($E$16="時間短縮",ROUND(PPMT(VLOOKUP($C97,Rate_table,2,TRUE)/12,1,$R96,$D97)*-1,0),ROUND(PPMT(VLOOKUP($C97,Rate_table,2,TRUE)/12,$B97,DurationOfLoan,LoanAmount-BonusAmount-SUM(extra_payments))*-1,0))+IF(I97=0,0,ROUND(PPMT(VLOOKUP($C97,Rate_table,2,TRUE)/12,COUNTIF($I$28:I97,">0"),DurationofBonus,BonusAmount)*-1,0)),"") -> ¥9,183 | I97: ¥0 | K97: ¥37,500 | L97: =IF(AND(ValuesEntered,ISNUMBER($C97)),SUM(E97:H97,J97:K97),"") -> ¥60,081 | O97: =IF(AND(ValuesEntered,ISNUMBER($C97)),D97-F97-J97,"") -> ¥16,985,636 | R97: 350
B98: =ROWS($B$28:B98) -> 71 | C98: =IF(ValuesEntered,IF(AND(ISNUMBER(O97),R97>0),EDATE(C97,1),""),"") -> 2019-09-01 | D98: ¥16,985,636 | E98: =IF(AND(ValuesEntered,ISNUMBER(C98)),IF($E$16="時間短縮",ROUND(IPMT(VLOOKUP($C98,Rate_table,2,TRUE)/12,1,$R97,$D98)*-1,0),ROUND(IPMT(VLOOKUP($C98,Rate_table,2,TRUE)/12,$B98,DurationOfLoan,LoanAmount-BonusAmount-SUM(extra_payments))*-1,0))+IF($I98=0,0,ROUND(IPMT(VLOOKUP($C98,Rate_table,2,TRUE)/12,COUNTIF($I$28:I98,">0"),DurationofBonus,BonusAmount)*-1,0)),"") -> ¥13,374 | F98: =IF(AND(ValuesEntered,ISNUMBER($C98)),IF($E$16="時間短縮",ROUND(PPMT(VLOOKUP($C98,Rate_table,2,TRUE)/12,1,$R97,$D98)*-1,0),ROUND(PPMT(VLOOKUP($C98,Rate_table,2,TRUE)/12,$B98,DurationOfLoan,LoanAmount-BonusAmount-SUM(extra_payments))*-1,0))+IF(I98=0,0,ROUND(PPMT(VLOOKUP($C98,Rate_table,2,TRUE)/12,COUNTIF($I$28:I98,">0"),DurationofBonus,BonusAmount)*-1,0)),"") -> ¥9,207 | I98: ¥0 | K98: ¥37,500 | L98: =IF(AND(ValuesEntered,ISNUMBER($C98)),SUM(E98:H98,J98:K98),"") -> ¥60,081 | O98: =IF(AND(ValuesEntered,ISNUMBER($C98)),D98-F98-J98,"") -> ¥16,976,429 | R98: 349
B99: =ROWS($B$28:B99) -> 72 | C99: =IF(ValuesEntered,IF(AND(ISNUMBER(O98),R98>0),EDATE(C98,1),""),"") -> 2019-10-01 | D99: ¥16,976,429 | E99: =IF(AND(ValuesEntered,ISNUMBER(C99)),IF($E$16="時間短縮",ROUND(IPMT(VLOOKUP($C99,Rate_table,2,TRUE)/12,1,$R98,$D99)*-1,0),ROUND(IPMT(VLOOKUP($C99,Rate_table,2,TRUE)/12,$B99,DurationOfLoan,LoanAmount-BonusAmount-SUM(extra_payments))*-1,0))+IF($I99=0,0,ROUND(IPMT(VLOOKUP($C99,Rate_table,2,TRUE)/12,COUNTIF($I$28:I99,">0"),DurationofBonus,BonusAmount)*-1,0)),"") -> ¥13,351 | F99: =IF(AND(ValuesEntered,ISNUMBER($C99)),IF($E$16="時間短縮",ROUND(PPMT(VLOOKUP($C99,Rate_table,2,TRUE)/12,1,$R98,$D99)*-1,0),ROUND(PPMT(VLOOKUP($C99,Rate_table,2,TRUE)/12,$B99,DurationOfLoan,LoanAmount-BonusAmount-SUM(extra_payments))*-1,0))+IF(I99=0,0,ROUND(PPMT(VLOOKUP($C99,Rate_table,2,TRUE)/12,COUNTIF($I$28:I99,">0"),DurationofBonus,BonusAmount)*-1,0)),"") -> ¥9,230 | I99: ¥0 | K99: ¥37,500 | L99: =IF(AND(ValuesEntered,ISNUMBER($C99)),SUM(E99:H99,J99:K99),"") -> ¥60,081 | O99: =IF(AND(ValuesEntered,ISNUMBER($C99)),D99-F99-J99,"") -> ¥16,967,199 | R99: 348
B100: =ROWS($B$28:B100) -> 73 | C100: =IF(ValuesEntered,IF(AND(ISNUMBER(O99),R99>0),EDATE(C99,1),""),"") -> 2019-11-01 | D100: ¥16,967,199 | E100: =IF(AND(ValuesEntered,ISNUMBER(C100)),IF($E$16="時間短縮",ROUND(IPMT(VLOOKUP($C100,Rate_table,2,TRUE)/12,1,$R99,$D100)*-1,0),ROUND(IPMT(VLOOKUP($C100,Rate_table,2,TRUE)/12,$B100,DurationOfLoan,LoanAmount-BonusAmount-SUM(extra_payments))*-1,0))+IF($I100=0,0,ROUND(IPMT(VLOOKUP($C100,Rate_table,2,TRUE)/12,COUNTIF($I$28:I100,">0"),DurationofBonus,BonusAmount)*-1,0)),"") -> ¥13,327 | F100: =IF(AND(ValuesEntered,ISNUMBER($C100)),IF($E$16="時間短縮",ROUND(PPMT(VLOOKUP($C100,Rate_table,2,TRUE)/12,1,$R99,$D100)*-1,0),ROUND(PPMT(VLOOKUP($C100,Rate_table,2,TRUE)/12,$B100,DurationOfLoan,LoanAmount-BonusAmount-SUM(extra_payments))*-1,0))+IF(I100=0,0,ROUND(PPMT(VLOOKUP($C100,Rate_table,2,TRUE)/12,COUNTIF($I$28:I100,">0"),DurationofBonus,BonusAmount)*-1,0)),"") -> ¥9,254 | I100: ¥0 | K100: ¥37,500 | L100: =IF(AND(ValuesEntered,ISNUMBER($C100)),SUM(E100:H100,J100:K100),"") -> ¥60,081 | O100: =IF(AND(ValuesEntered,ISNUMBER($C100)),D100-F100-J100,"") -> ¥16,957,945 | R100: 347
B101: =ROWS($B$28:B101) -> 74 | C101: =IF(ValuesEntered,IF(AND(ISNUMBER(O100),R100>0),EDATE(C100,1),""),"") -> 2019-12-01 | D101: ¥16,957,945 | E101: =IF(AND(ValuesEntered,ISNUMBER(C101)),IF($E$16="時間短縮",ROUND(IPMT(VLOOKUP($C101,Rate_table,2,TRUE)/12,1,$R100,$D101)*-1,0),ROUND(IPMT(VLOOKUP($C101,Rate_table,2,TRUE)/12,$B101,DurationOfLoan,LoanAmount-BonusAmount-SUM(extra_payments))*-1,0))+IF($I101=0,0,ROUND(IPMT(VLOOKUP($C101,Rate_table,2,TRUE)/12,COUNTIF($I$28:I101,">0"),DurationofBonus,BonusAmount)*-1,0)),"") -> ¥13,303 | F101: =IF(AND(ValuesEntered,ISNUMBER($C101)),IF($E$16="時間短縮",ROUND(PPMT(VLOOKUP($C101,Rate_table,2,TRUE)/12,1,$R100,$D101)*-1,0),ROUND(PPMT(VLOOKUP($C101,Rate_table,2,TRUE)/12,$B101,DurationOfLoan,LoanAmount-BonusAmount-SUM(extra_payments))*-1,0))+IF(I101=0,0,ROUND(PPMT(VLOOKUP($C101,Rate_table,2,TRUE)/12,COUNTIF($I$28:I101,">0"),DurationofBonus,BonusAmount)*-1,0)),"") -> ¥9,278 | I101: ¥0 | K101: ¥37,500 | L101: =IF(AND(ValuesEntered,ISNUMBER($C101)),SUM(E101:H101,J101:K101),"") -> ¥60,081 | O101: =IF(AND(ValuesEntered,ISNUMBER($C101)),D101-F101-J101,"") -> ¥16,948,667 | R101: 346
B102: =ROWS($B$28:B102) -> 75 | C102: =IF(ValuesEntered,IF(AND(ISNUMBER(O101),R101>0),EDATE(C101,1),""),"") -> 2020-01-01 | D102: ¥16,948,667 | E102: =IF(AND(ValuesEntered,ISNUMBER(C102)),IF($E$16="時間短縮",ROUND(IPMT(VLOOKUP($C102,Rate_table,2,TRUE)/12,1,$R101,$D102)*-1,0),ROUND(IPMT(VLOOKUP($C102,Rate_table,2,TRUE)/12,$B102,DurationOfLoan,LoanAmount-BonusAmount-SUM(extra_payments))*-1,0))+IF($I102=0,0,ROUND(IPMT(VLOOKUP($C102,Rate_table,2,TRUE)/12,COUNTIF($I$28:I102,">0"),DurationofBonus,BonusAmount)*-1,0)),"") -> ¥13,280 | F102: =IF(AND(ValuesEntered,ISNUMBER($C102)),IF($E$16="時間短縮",ROUND(PPMT(VLOOKUP($C102,Rate_table,2,TRUE)/12,1,$R101,$D102)*-1,0),ROUND(PPMT(VLOOKUP($C102,Rate_table,2,TRUE)/12,$B102,DurationOfLoan,LoanAmount-BonusAmount-SUM(extra_payments))*-1,0))+IF(I102=0,0,ROUND(PPMT(VLOOKUP($C102,Rate_table,2,TRUE)/12,COUNTIF($I$28:I102,">0"),DurationofBonus,BonusAmount)*-1,0)),"") -> ¥9,302 | I102: ¥0 | K102: ¥37,500 | L102: =IF(AND(ValuesEntered,ISNUMBER($C102)),SUM(E102:H102,J102:K102),"") -> ¥60,082 | O102: =IF(AND(ValuesEntered,ISNUMBER($C102)),D102-F102-J102,"") -> ¥16,939,365 | R102: 345
B103: =ROWS($B$28:B103) -> 76 | C103: =IF(ValuesEntered,IF(AND(ISNUMBER(O102),R102>0),EDATE(C102,1),""),"") -> 2020-02-01 | D103: ¥16,939,365 | E103: =IF(AND(ValuesEntered,ISNUMBER(C103)),IF($E$16="時間短縮",ROUND(IPMT(VLOOKUP($C103,Rate_table,2,TRUE)/12,1,$R102,$D103)*-1,0),ROUND(IPMT(VLOOKUP($C103,Rate_table,2,TRUE)/12,$B103,DurationOfLoan,LoanAmount-BonusAmount-SUM(extra_payments))*-1,0))+IF($I103=0,0,ROUND(IPMT(VLOOKUP($C103,Rate_table,2,TRUE)/12,COUNTIF($I$28:I103,">0"),DurationofBonus,BonusAmount)*-1,0)),"") -> ¥13,256 | F103: =IF(AND(ValuesEntered,ISNUMBER($C103)),IF($E$16="時間短縮",ROUND(PPMT(VLOOKUP($C103,Rate_table,2,TRUE)/12,1,$R102,$D103)*-1,0),ROUND(PPMT(VLOOKUP($C103,Rate_table,2,TRUE)/12,$B103,DurationOfLoan,LoanAmount-BonusAmount-SUM(extra_payments))*-1,0))+IF(I103=0,0,ROUND(PPMT(VLOOKUP($C103,Rate_table,2,TRUE)/12,COUNTIF($I$28:I103,">0"),DurationofBonus,BonusAmount)*-1,0)),"") -> ¥9,325 | I103: ¥0 | K103: ¥37,500 | L103: =IF(AND(ValuesEntered,ISNUMBER($C103)),SUM(E103:H103,J103:K103),"") -> ¥60,081 | O103: =IF(AND(ValuesEntered,ISNUMBER($C103)),D103-F103-J103,"") -> ¥16,930,040 | R103: 344
B104: =ROWS($B$28:B104) -> 77 | C104: =IF(ValuesEntered,IF(AND(ISNUMBER(O103),R103>0),EDATE(C103,1),""),"") -> 2020-03-01 | D104: ¥16,930,040 | E104: =IF(AND(ValuesEntered,ISNUMBER(C104)),IF($E$16="時間短縮",ROUND(IPMT(VLOOKUP($C104,Rate_table,2,TRUE)/12,1,$R103,$D104)*-1,0),ROUND(IPMT(VLOOKUP($C104,Rate_table,2,TRUE)/12,$B104,DurationOfLoan,LoanAmount-BonusAmount-SUM(extra_payments))*-1,0))+IF($I104=0,0,ROUND(IPMT(VLOOKUP($C104,Rate_table,2,TRUE)/12,COUNTIF($I$28:I104,">0"),DurationofBonus,BonusAmount)*-1,0)),"") -> ¥13,232 | F104: =IF(AND(ValuesEntered,ISNUMBER($C104)),IF($E$16="時間短縮",ROUND(PPMT(VLOOKUP($C104,Rate_table,2,TRUE)/12,1,$R103,$D104)*-1,0),ROUND(PPMT(VLOOKUP($C104,Rate_table,2,TRUE)/12,$B104,DurationOfLoan,LoanAmount-BonusAmount-SUM(extra_payments))*-1,0))+IF(I104=0,0,ROUND(PPMT(VLOOKUP($C104,Rate_table,2,TRUE)/12,COUNTIF($I$28:I104,">0"),DurationofBonus,BonusAmount)*-1,0)),"") -> ¥9,349 | I104: ¥0 | K104: ¥37,500 | L104: =IF(AND(ValuesEntered,ISNUMBER($C104)),SUM(E104:H104,J104:K104),"") -> ¥60,081 | O104: =IF(AND(ValuesEntered,ISNUMBER($C104)),D104-F104-J104,"") -> ¥16,920,691 | R104: 343
B105: =ROWS($B$28:B105) -> 78 | C105: =IF(ValuesEntered,IF(AND(ISNUMBER(O104),R104>0),EDATE(C104,1),""),"") -> 2020-04-01 | D105: ¥16,920,691 | E105: =IF(AND(ValuesEntered,ISNUMBER(C105)),IF($E$16="時間短縮",ROUND(IPMT(VLOOKUP($C105,Rate_table,2,TRUE)/12,1,$R104,$D105)*-1,0),ROUND(IPMT(VLOOKUP($C105,Rate_table,2,TRUE)/12,$B105,DurationOfLoan,LoanAmount-BonusAmount-SUM(extra_payments))*-1,0))+IF($I105=0,0,ROUND(IPMT(VLOOKUP($C105,Rate_table,2,TRUE)/12,COUNTIF($I$28:I105,">0"),DurationofBonus,BonusAmount)*-1,0)),"") -> ¥43,430 | F105: =IF(AND(ValuesEntered,ISNUMBER($C105)),IF($E$16="時間短縮",ROUND(PPMT(VLOOKUP($C105,Rate_table,2,TRUE)/12,1,$R104,$D105)*-1,0),ROUND(PPMT(VLOOKUP($C105,Rate_table,2,TRUE)/12,$B105,DurationOfLoan,LoanAmount-BonusAmount-SUM(extra_payments))*-1,0))+IF(I105=0,0,ROUND(PPMT(VLOOKUP($C105,Rate_table,2,TRUE)/12,COUNTIF($I$28:I105,">0"),DurationofBonus,BonusAmount)*-1,0)),"") -> ¥197,911 | I105: ¥200,000 | K105: ¥37,500 | L105: =IF(AND(ValuesEntered,ISNUMBER($C105)),SUM(E105:H105,J105:K105),"") -> ¥278,841 | O105: =IF(AND(ValuesEntered,ISNUMBER($C105)),D105-F105-J105,"") -> ¥16,722,780 | R105: 342
B106: =ROWS($B$28:B106) -> 79 | C106: =IF(ValuesEntered,IF(AND(ISNUMBER(O105),R105>0),EDATE(C105,1),""),"") -> 2020-05-01 | D106: ¥16,722,780 | E106: =IF(AND(ValuesEntered,ISNUMBER(C106)),IF($E$16="時間短縮",ROUND(IPMT(VLOOKUP($C106,Rate_table,2,TRUE)/12,1,$R105,$D106)*-1,0),ROUND(IPMT(VLOOKUP($C106,Rate_table,2,TRUE)/12,$B106,DurationOfLoan,LoanAmount-BonusAmount-SUM(extra_payments))*-1,0))+IF($I106=0,0,ROUND(IPMT(VLOOKUP($C106,Rate_table,2,TRUE)/12,COUNTIF($I$28:I106,">0"),DurationofBonus,BonusAmount)*-1,0)),"") -> ¥13,184 | F106: =IF(AND(ValuesEntered,ISNUMBER($C106)),IF($E$16="時間短縮",ROUND(PPMT(VLOOKUP($C106,Rate_table,2,TRUE)/12,1,$R105,$D106)*-1,0),ROUND(PPMT(VLOOKUP($C106,Rate_table,2,TRUE)/12,$B106,DurationOfLoan,LoanAmount-BonusAmount-SUM(extra_payments))*-1,0))+IF(I106=0,0,ROUND(PPMT(VLOOKUP($C106,Rate_table,2,TRUE)/12,COUNTIF($I$28:I106,">0"),DurationofBonus,BonusAmount)*-1,0)),"") -> ¥9,397 | I106: ¥0 | K106: ¥37,500 | L106: =IF(AND(ValuesEntered,ISNUMBER($C106)),SUM(E106:H106,J106:K106),"") -> ¥60,081 | O106: =IF(AND(ValuesEntered,ISNUMBER($C106)),D106-F106-J106,"") -> ¥16,713,383 | R106: 341
B107: =ROWS($B$28:B107) -> 80 | C107: =IF(ValuesEntered,IF(AND(ISNUMBER(O106),R106>0),EDATE(C106,1),""),"") -> 2020-06-01 | D107: ¥16,713,383 | E107: =IF(AND(ValuesEntered,ISNUMBER(C107)),IF($E$16="時間短縮",ROUND(IPMT(VLOOKUP($C107,Rate_table,2,TRUE)/12,1,$R106,$D107)*-1,0),ROUND(IPMT(VLOOKUP($C107,Rate_table,2,TRUE)/12,$B107,DurationOfLoan,LoanAmount-BonusAmount-SUM(extra_payments))*-1,0))+IF($I107=0,0,ROUND(IPMT(VLOOKUP($C107,Rate_table,2,TRUE)/12,COUNTIF($I$28:I107,">0"),DurationofBonus,BonusAmount)*-1,0)),"") -> ¥13,160 | F107: =IF(AND(ValuesEntered,ISNUMBER($C107)),IF($E$16="時間短縮",ROUND(PPMT(VLOOKUP($C107,Rate_table,2,TRUE)/12,1,$R106,$D107)*-1,0),ROUND(PPMT(VLOOKUP($C107,Rate_table,2,TRUE)/12,$B107,DurationOfLoan,LoanAmount-BonusAmount-SUM(extra_payments))*-1,0))+IF(I107=0,0,ROUND(PPMT(VLOOKUP($C107,Rate_table,2,TRUE)/12,COUNTIF($I$28:I107,">0"),DurationofBonus,BonusAmount)*-1,0)),"") -> ¥9,422 | I107: ¥0 | K107: ¥37,500 | L107: =IF(AND(ValuesEntered,ISNUMBER($C107)),SUM(E107:H107,J107:K107),"") -> ¥60,082 | O107: =IF(AND(ValuesEntered,ISNUMBER($C107)),D107-F107-J107,"") -> ¥16,703,961 | R107: 340
B108: =ROWS($B$28:B108) -> 81 | C108: =IF(ValuesEntered,IF(AND(ISNUMBER(O107),R107>0),EDATE(C107,1),""),"") -> 2020-07-01 | D108: ¥16,703,961 | E108: =IF(AND(ValuesEntered,ISNUMBER(C108)),IF($E$16="時間短縮",ROUND(IPMT(VLOOKUP($C108,Rate_table,2,TRUE)/12,1,$R107,$D108)*-1,0),ROUND(IPMT(VLOOKUP($C108,Rate_table,2,TRUE)/12,$B108,DurationOfLoan,LoanAmount-BonusAmount-SUM(extra_payments))*-1,0))+IF($I108=0,0,ROUND(IPMT(VLOOKUP($C108,Rate_table,2,TRUE)/12,COUNTIF($I$28:I108,">0"),DurationofBonus,BonusAmount)*-1,0)),"") -> ¥42,873 | F108: =IF(AND(ValuesEntered,ISNUMBER($C108)),IF($E$16="時間短縮",ROUND(PPMT(VLOOKUP($C108,Rate_table,2,TRUE)/12,1,$R107,$D108)*-1,0),ROUND(PPMT(VLOOKUP($C108,Rate_table,2,TRUE)/12,$B108,DurationOfLoan,LoanAmount-BonusAmount-SUM(extra_payments))*-1,0))+IF(I108=0,0,ROUND(PPMT(VLOOKUP($C108,Rate_table,2,TRUE)/12,COUNTIF($I$28:I108,">0"),DurationofBonus,BonusAmount)*-1,0)),"") -> ¥198,468 | I108: ¥200,000 | K108: ¥37,500 | L108: =IF(AND(ValuesEntered,ISNUMBER($C108)),SUM(E108:H108,J108:K108),"") -> ¥278,841 | O108: =IF(AND(ValuesEntered,ISNUMBER($C108)),D108-F108-J108,"") -> ¥16,505,493 | R108: 339
B109: =ROWS($B$28:B109) -> 82 | C109: =IF(ValuesEntered,IF(AND(ISNUMBER(O108),R108>0),EDATE(C108,1),""),"") -> 2020-08-01 | D109: ¥16,505,493 | E109: =IF(AND(ValuesEntered,ISNUMBER(C109)),IF($E$16="時間短縮",ROUND(IPMT(VLOOKUP($C109,Rate_table,2,TRUE)/12,1,$R108,$D109)*-1,0),ROUND(IPMT(VLOOKUP($C109,Rate_table,2,TRUE)/12,$B109,DurationOfLoan,LoanAmount-BonusAmount-SUM(extra_payments))*-1,0))+IF($I109=0,0,ROUND(IPMT(VLOOKUP($C109,Rate_table,2,TRUE)/12,COUNTIF($I$28:I109,">0"),DurationofBonus,BonusAmount)*-1,0)),"") -> ¥13,111 | F109: =IF(AND(ValuesEntered,ISNUMBER($C109)),IF($E$16="時間短縮",ROUND(PPMT(VLOOKUP($C109,Rate_table,2,TRUE)/12,1,$R108,$D109)*-1,0),ROUND(PPMT(VLOOKUP($C109,Rate_table,2,TRUE)/12,$B109,DurationOfLoan,LoanAmount-BonusAmount-SUM(extra_payments))*-1,0))+IF(I109=0,0,ROUND(PPMT(VLOOKUP($C109,Rate_table,2,TRUE)/12,COUNTIF($I$28:I109,">0"),DurationofBonus,BonusAmount)*-1,0)),"") -> ¥9,470 | I109: ¥0 | K109: ¥37,500 | L109: =IF(AND(ValuesEntered,ISNUMBER($C109)),SUM(E109:H109,J109:K109),"") -> ¥60,081 | O109: =IF(AND(ValuesEntered,ISNUMBER($C109)),D109-F109-J109,"") -> ¥16,496,023 | R109: 338
B110: =ROWS($B$28:B110) -> 83 | C110: =IF(ValuesEntered,IF(AND(ISNUMBER(O109),R109>0),EDATE(C109,1),""),"") -> 2020-09-01 | D110: ¥16,496,023 | E110: =IF(AND(ValuesEntered,ISNUMBER(C110)),IF($E$16="時間短縮",ROUND(IPMT(VLOOKUP($C110,Rate_table,2,TRUE)/12,1,$R109,$D110)*-1,0),ROUND(IPMT(VLOOKUP($C110,Rate_table,2,TRUE)/12,$B110,DurationOfLoan,LoanAmount-BonusAmount-SUM(extra_payments))*-1,0))+IF($I110=0,0,ROUND(IPMT(VLOOKUP($C110,Rate_table,2,TRUE)/12,COUNTIF($I$28:I110,">0"),DurationofBonus,BonusAmount)*-1,0)),"") -> ¥13,087 | F110: =IF(AND(ValuesEntered,ISNUMBER($C110)),IF($E$16="時間短縮",ROUND(PPMT(VLOOKUP($C110,Rate_table,2,TRUE)/12,1,$R109,$D110)*-1,0),ROUND(PPMT(VLOOKUP($C110,Rate_table,2,TRUE)/12,$B110,DurationOfLoan,LoanAmount-BonusAmount-SUM(extra_payments))*-1,0))+IF(I110=0,0,ROUND(PPMT(VLOOKUP($C110,Rate_table,2,TRUE)/12,COUNTIF($I$28:I110,">0"),DurationofBonus,BonusAmount)*-1,0)),"") -> ¥9,494 | I110: ¥0 | K110: ¥37,500 | L110: =IF(AND(ValuesEntered,ISNUMBER($C110)),SUM(E110:H110,J110:K110),"") -> ¥60,081 | O110: =IF(AND(ValuesEntered,ISNUMBER($C110)),D110-F110-J110,"") -> ¥16,486,529 | R110: 337
B111: =ROWS($B$28:B111) -> 84 | C111: =IF(ValuesEntered,IF(AND(ISNUMBER(O110),R110>0),EDATE(C110,1),""),"") -> 2020-10-01 | D111: ¥16,486,529 | E111: =IF(AND(ValuesEntered,ISNUMBER(C111)),IF($E$16="時間短縮",ROUND(IPMT(VLOOKUP($C111,Rate_table,2,TRUE)/12,1,$R110,$D111)*-1,0),ROUND(IPMT(VLOOKUP($C111,Rate_table,2,TRUE)/12,$B111,DurationOfLoan,LoanAmount-BonusAmount-SUM(extra_payments))*-1,0))+IF($I111=0,0,ROUND(IPMT(VLOOKUP($C111,Rate_table,2,TRUE)/12,COUNTIF($I$28:I111,">0"),DurationofBonus,BonusAmount)*-1,0)),"") -> ¥13,062 | F111: =IF(AND(ValuesEntered,ISNUMBER($C111)),IF($E$16="時間短縮",ROUND(PPMT(VLOOKUP($C111,Rate_table,2,TRUE)/12,1,$R110,$D111)*-1,0),ROUND(PPMT(VLOOKUP($C111,Rate_table,2,TRUE)/12,$B111,DurationOfLoan,LoanAmount-BonusAmount-SUM(extra_payments))*-1,0))+IF(I111=0,0,ROUND(PPMT(VLOOKUP($C111,Rate_table,2,TRUE)/12,COUNTIF($I$28:I111,">0"),DurationofBonus,BonusAmount)*-1,0)),"") -> ¥9,519 | I111: ¥0 | K111: ¥37,500 | L111: =IF(AND(ValuesEntered,ISNUMBER($C111)),SUM(E111:H111,J111:K111),"") -> ¥60,081 | O111: =IF(AND(ValuesEntered,ISNUMBER($C111)),D111-F111-J111,"") -> ¥16,477,010 | R111: 336
B112: =ROWS($B$28:B112) -> 85 | C112: =IF(ValuesEntered,IF(AND(ISNUMBER(O111),R111>0),EDATE(C111,1),""),"") -> 2020-11-01 | D112: ¥16,477,010 | E112: =IF(AND(ValuesEntered,ISNUMBER(C112)),IF($E$16="時間短縮",ROUND(IPMT(VLOOKUP($C112,Rate_table,2,TRUE)/12,1,$R111,$D112)*-1,0),ROUND(IPMT(VLOOKUP($C112,Rate_table,2,TRUE)/12,$B112,DurationOfLoan,LoanAmount-BonusAmount-SUM(extra_payments))*-1,0))+IF($I112=0,0,ROUND(IPMT(VLOOKUP($C112,Rate_table,2,TRUE)/12,COUNTIF($I$28:I112,">0"),DurationofBonus,BonusAmount)*-1,0)),"") -> ¥13,038 | F112: =IF(AND(ValuesEntered,ISNUMBER($C112)),IF($E$16="時間短縮",ROUND(PPMT(VLOOKUP($C112,Rate_table,2,TRUE)/12,1,$R111,$D112)*-1,0),ROUND(PPMT(VLOOKUP($C112,Rate_table,2,TRUE)/12,$B112,DurationOfLoan,LoanAmount-BonusAmount-SUM(extra_payments))*-1,0))+IF(I112=0,0,ROUND(PPMT(VLOOKUP($C112,Rate_table,2,TRUE)/12,COUNTIF($I$28:I112,">0"),DurationofBonus,BonusAmount)*-1,0)),"") -> ¥9,543 | I112: ¥0 | K112: ¥37,500 | L112: =IF(AND(ValuesEntered,ISNUMBER($C112)),SUM(E112:H112,J112:K112),"") -> ¥60,081 | O112: =IF(AND(ValuesEntered,ISNUMBER($C112)),D112-F112-J112,"") -> ¥16,467,467 | R112: 335
B113: =ROWS($B$28:B113) -> 86 | C113: =IF(ValuesEntered,IF(AND(ISNUMBER(O112),R112>0),EDATE(C112,1),""),"") -> 2020-12-01 | D113: ¥16,467,467 | E113: =IF(AND(ValuesEntered,ISNUMBER(C113)),IF($E$16="時間短縮",ROUND(IPMT(VLOOKUP($C113,Rate_table,2,TRUE)/12,1,$R112,$D113)*-1,0),ROUND(IPMT(VLOOKUP($C113,Rate_table,2,TRUE)/12,$B113,DurationOfLoan,LoanAmount-BonusAmount-SUM(extra_payments))*-1,0))+IF($I113=0,0,ROUND(IPMT(VLOOKUP($C113,Rate_table,2,TRUE)/12,COUNTIF($I$28:I113,">0"),DurationofBonus,BonusAmount)*-1,0)),"") -> ¥13,013 | F113: =IF(AND(ValuesEntered,ISNUMBER($C113)),IF($E$16="時間短縮",ROUND(PPMT(VLOOKUP($C113,Rate_table,2,TRUE)/12,1,$R112,$D113)*-1,0),ROUND(PPMT(VLOOKUP($C113,Rate_table,2,TRUE)/12,$B113,DurationOfLoan,LoanAmount-BonusAmount-SUM(extra_payments))*-1,0))+IF(I113=0,0,ROUND(PPMT(VLOOKUP($C113,Rate_table,2,TRUE)/12,COUNTIF($I$28:I113,">0"),DurationofBonus,BonusAmount)*-1,0)),"") -> ¥9,568 | I113: ¥0 | K113: ¥37,500 | L113: =IF(AND(ValuesEntered,ISNUMBER($C113)),SUM(E113:H113,J113:K113),"") -> ¥60,081 | O113: =IF(AND(ValuesEntered,ISNUMBER($C113)),D113-F113-J113,"") -> ¥16,457,899 | R113: 334
B114: =ROWS($B$28:B114) -> 87 | C114: =IF(ValuesEntered,IF(AND(ISNUMBER(O113),R113>0),EDATE(C113,1),""),"") -> 2021-01-01 | D114: ¥16,457,899 | E114: =IF(AND(ValuesEntered,ISNUMBER(C114)),IF($E$16="時間短縮",ROUND(IPMT(VLOOKUP($C114,Rate_table,2,TRUE)/12,1,$R113,$D114)*-1,0),ROUND(IPMT(VLOOKUP($C114,Rate_table,2,TRUE)/12,$B114,DurationOfLoan,LoanAmount-BonusAmount-SUM(extra_payments))*-1,0))+IF($I114=0,0,ROUND(IPMT(VLOOKUP($C114,Rate_table,2,TRUE)/12,COUNTIF($I$28:I114,">0"),DurationofBonus,BonusAmount)*-1,0)),"") -> ¥12,989 | F114: =IF(AND(ValuesEntered,ISNUMBER($C114)),IF($E$16="時間短縮",ROUND(PPMT(VLOOKUP($C114,Rate_table,2,TRUE)/12,1,$R113,$D114)*-1,0),ROUND(PPMT(VLOOKUP($C114,Rate_table,2,TRUE)/12,$B114,DurationOfLoan,LoanAmount-BonusAmount-SUM(extra_payments))*-1,0))+IF(I114=0,0,ROUND(PPMT(VLOOKUP($C114,Rate_table,2,TRUE)/12,COUNTIF($I$28:I114,">0"),DurationofBonus,BonusAmount)*-1,0)),"") -> ¥9,592 | I114: ¥0 | K114: ¥37,500 | L114: =IF(AND(ValuesEntered,ISNUMBER($C114)),SUM(E114:H114,J114:K114),"") -> ¥60,081 | O114: =IF(AND(ValuesEntered,ISNUMBER($C114)),D114-F114-J114,"") -> ¥16,448,307 | R114: 333
B115: =ROWS($B$28:B115) -> 88 | C115: =IF(ValuesEntered,IF(AND(ISNUMBER(O114),R114>0),EDATE(C114,1),""),"") -> 2021-02-01 | D115: ¥16,448,307 | E115: =IF(AND(ValuesEntered,ISNUMBER(C115)),IF($E$16="時間短縮",ROUND(IPMT(VLOOKUP($C115,Rate_table,2,TRUE)/12,1,$R114,$D115)*-1,0),ROUND(IPMT(VLOOKUP($C115,Rate_table,2,TRUE)/12,$B115,DurationOfLoan,LoanAmount-BonusAmount-SUM(extra_payments))*-1,0))+IF($I115=0,0,ROUND(IPMT(VLOOKUP($C115,Rate_table,2,TRUE)/12,COUNTIF($I$28:I115,">0"),DurationofBonus,BonusAmount)*-1,0)),"") -> ¥12,964 | F115: =IF(AND(ValuesEntered,ISNUMBER($C115)),IF($E$16="時間短縮",ROUND(PPMT(VLOOKUP($C115,Rate_table,2,TRUE)/12,1,$R114,$D115)*-1,0),ROUND(PPMT(VLOOKUP($C115,Rate_table,2,TRUE)/12,$B115,DurationOfLoan,LoanAmount-BonusAmount-SUM(extra_payments))*-1,0))+IF(I115=0,0,ROUND(PPMT(VLOOKUP($C115,Rate_table,2,TRUE)/12,COUNTIF($I$28:I115,">0"),DurationofBonus,BonusAmount)*-1,0)),"") -> ¥9,617 | I115: ¥0 | K115: ¥37,500 | L115: =IF(AND(ValuesEntered,ISNUMBER($C115)),SUM(E115:H115,J115:K115),"") -> ¥60,081 | O115: =IF(AND(ValuesEntered,ISNUMBER($C115)),D115-F115-J115,"") -> ¥16,438,690 | R115: 332
B116: =ROWS($B$28:B116) -> 89 | C116: =IF(ValuesEntered,IF(AND(ISNUMBER(O115),R115>0),EDATE(C115,1),""),"") -> 2021-03-01 | D116: ¥16,438,690 | E116: =IF(AND(ValuesEntered,ISNUMBER(C116)),IF($E$16="時間短縮",ROUND(IPMT(VLOOKUP($C116,Rate_table,2,TRUE)/12,1,$R115,$D116)*-1,0),ROUND(IPMT(VLOOKUP($C116,Rate_table,2,TRUE)/12,$B116,DurationOfLoan,LoanAmount-BonusAmount-SUM(extra_payments))*-1,0))+IF($I116=0,0,ROUND(IPMT(VLOOKUP($C116,Rate_table,2,TRUE)/12,COUNTIF($I$28:I116,">0"),DurationofBonus,BonusAmount)*-1,0)),"") -> ¥12,940 | F116: =IF(AND(ValuesEntered,ISNUMBER($C116)),IF($E$16="時間短縮",ROUND(PPMT(VLOOKUP($C116,Rate_table,2,TRUE)/12,1,$R115,$D116)*-1,0),ROUND(PPMT(VLOOKUP($C116,Rate_table,2,TRUE)/12,$B116,DurationOfLoan,LoanAmount-BonusAmount-SUM(extra_payments))*-1,0))+IF(I116=0,0,ROUND(PPMT(VLOOKUP($C116,Rate_table,2,TRUE)/12,COUNTIF($I$28:I116,">0"),DurationofBonus,BonusAmount)*-1,0)),"") -> ¥9,641 | I116: ¥0 | K116: ¥37,500 | L116: =IF(AND(ValuesEntered,ISNUMBER($C116)),SUM(E116:H116,J116:K116),"") -> ¥60,081 | O116: =IF(AND(ValuesEntered,ISNUMBER($C116)),D116-F116-J116,"") -> ¥16,429,049 | R116: 331
B117: =ROWS($B$28:B117) -> 90 | C117: =IF(ValuesEntered,IF(AND(ISNUMBER(O116),R116>0),EDATE(C116,1),""),"") -> 2021-04-01 | D117: ¥16,429,049 | E117: =IF(AND(ValuesEntered,ISNUMBER(C117)),IF($E$16="時間短縮",ROUND(IPMT(VLOOKUP($C117,Rate_table,2,TRUE)/12,1,$R116,$D117)*-1,0),ROUND(IPMT(VLOOKUP($C117,Rate_table,2,TRUE)/12,$B117,DurationOfLoan,LoanAmount-BonusAmount-SUM(extra_payments))*-1,0))+IF($I117=0,0,ROUND(IPMT(VLOOKUP($C117,Rate_table,2,TRUE)/12,COUNTIF($I$28:I117,">0"),DurationofBonus,BonusAmount)*-1,0)),"") -> ¥42,168 | F117: =IF(AND(ValuesEntered,ISNUMBER($C117)),IF($E$16="時間短縮",ROUND(PPMT(VLOOKUP($C117,Rate_table,2,TRUE)/12,1,$R116,$D117)*-1,0),ROUND(PPMT(VLOOKUP($C117,Rate_table,2,TRUE)/12,$B117,DurationOfLoan,LoanAmount-BonusAmount-SUM(extra_payments))*-1,0))+IF(I117=0,0,ROUND(PPMT(VLOOKUP($C117,Rate_table,2,TRUE)/12,COUNTIF($I$28:I117,">0"),DurationofBonus,BonusAmount)*-1,0)),"") -> ¥199,173 | I117: ¥200,000 | K117: ¥37,500 | L117: =IF(AND(ValuesEntered,ISNUMBER($C117)),SUM(E117:H117,J117:K117),"") -> ¥278,841 | O117: =IF(AND(ValuesEntered,ISNUMBER($C117)),D117-F117-J117,"") -> ¥16,229,876 | R117: 330
B118: =ROWS($B$28:B118) -> 91 | C118: =IF(ValuesEntered,IF(AND(ISNUMBER(O117),R117>0),EDATE(C117,1),""),"") -> 2021-05-01 | D118: ¥16,229,876 | E118: =IF(AND(ValuesEntered,ISNUMBER(C118)),IF($E$16="時間短縮",ROUND(IPMT(VLOOKUP($C118,Rate_table,2,TRUE)/12,1,$R117,$D118)*-1,0),ROUND(IPMT(VLOOKUP($C118,Rate_table,2,TRUE)/12,$B118,DurationOfLoan,LoanAmount-BonusAmount-SUM(extra_payments))*-1,0))+IF($I118=0,0,ROUND(IPMT(VLOOKUP($C118,Rate_table,2,TRUE)/12,COUNTIF($I$28:I118,">0"),DurationofBonus,BonusAmount)*-1,0)),"") -> ¥12,890 | F118: =IF(AND(ValuesEntered,ISNUMBER($C118)),IF($E$16="時間短縮",ROUND(PPMT(VLOOKUP($C118,Rate_table,2,TRUE)/12,1,$R117,$D118)*-1,0),ROUND(PPMT(VLOOKUP($C118,Rate_table,2,TRUE)/12,$B118,DurationOfLoan,LoanAmount-BonusAmount-SUM(extra_payments))*-1,0))+IF(I118=0,0,ROUND(PPMT(VLOOKUP($C118,Rate_table,2,TRUE)/12,COUNTIF($I$28:I118,">0"),DurationofBonus,BonusAmount)*-1,0)),"") -> ¥9,691 | I118: ¥0 | K118: ¥37,500 | L118: =IF(AND(ValuesEntered,ISNUMBER($C118)),SUM(E118:H118,J118:K118),"") -> ¥60,081 | O118: =IF(AND(ValuesEntered,ISNUMBER($C118)),D118-F118-J118,"") -> ¥16,220,185 | R118: 329
B119: =ROWS($B$28:B119) -> 92 | C119: =IF(ValuesEntered,IF(AND(ISNUMBER(O118),R118>0),EDATE(C118,1),""),"") -> 2021-06-01 | D119: ¥16,220,185 | E119: =IF(AND(ValuesEntered,ISNUMBER(C119)),IF($E$16="時間短縮",ROUND(IPMT(VLOOKUP($C119,Rate_table,2,TRUE)/12,1,$R118,$D119)*-1,0),ROUND(IPMT(VLOOKUP($C119,Rate_table,2,TRUE)/12,$B119,DurationOfLoan,LoanAmount-BonusAmount-SUM(extra_payments))*-1,0))+IF($I119=0,0,ROUND(IPMT(VLOOKUP($C119,Rate_table,2,TRUE)/12,COUNTIF($I$28:I119,">0"),DurationofBonus,BonusAmount)*-1,0)),"") -> ¥12,865 | F119: =IF(AND(ValuesEntered,ISNUMBER($C119)),IF($E$16="時間短縮",ROUND(PPMT(VLOOKUP($C119,Rate_table,2,TRUE)/12,1,$R118,$D119)*-1,0),ROUND(PPMT(VLOOKUP($C119,Rate_table,2,TRUE)/12,$B119,DurationOfLoan,LoanAmount-BonusAmount-SUM(extra_payments))*-1,0))+IF(I119=0,0,ROUND(PPMT(VLOOKUP($C119,Rate_table,2,TRUE)/12,COUNTIF($I$28:I119,">0"),DurationofBonus,BonusAmount)*-1,0)),"") -> ¥9,716 | I119: ¥0 | K119: ¥37,500 | L119: =IF(AND(ValuesEntered,ISNUMBER($C119)),SUM(E119:H119,J119:K119),"") -> ¥60,081 | O119: =IF(AND(ValuesEntered,ISNUMBER($C119)),D119-F119-J119,"") -> ¥16,210,469 | R119: 328
B120: =ROWS($B$28:B120) -> 93 | C120: =IF(ValuesEntered,IF(AND(ISNUMBER(O119),R119>0),EDATE(C119,1),""),"") -> 2021-07-01 | D120: ¥16,210,469 | E120: =IF(AND(ValuesEntered,ISNUMBER(C120)),IF($E$16="時間短縮",ROUND(IPMT(VLOOKUP($C120,Rate_table,2,TRUE)/12,1,$R119,$D120)*-1,0),ROUND(IPMT(VLOOKUP($C120,Rate_table,2,TRUE)/12,$B120,DurationOfLoan,LoanAmount-BonusAmount-SUM(extra_payments))*-1,0))+IF($I120=0,0,ROUND(IPMT(VLOOKUP($C120,Rate_table,2,TRUE)/12,COUNTIF($I$28:I120,">0"),DurationofBonus,BonusAmount)*-1,0)),"") -> ¥41,607 | F120: =IF(AND(ValuesEntered,ISNUMBER($C120)),IF($E$16="時間短縮",ROUND(PPMT(VLOOKUP($C120,Rate_table,2,TRUE)/12,1,$R119,$D120)*-1,0),ROUND(PPMT(VLOOKUP($C120,Rate_table,2,TRUE)/12,$B120,DurationOfLoan,LoanAmount-BonusAmount-SUM(extra_payments))*-1,0))+IF(I120=0,0,ROUND(PPMT(VLOOKUP($C120,Rate_table,2,TRUE)/12,COUNTIF($I$28:I120,">0"),DurationofBonus,BonusAmount)*-1,0)),"") -> ¥199,735 | I120: ¥200,000 | K120: ¥37,500 | L120: =IF(AND(ValuesEntered,ISNUMBER($C120)),SUM(E120:H120,J120:K120),"") -> ¥278,842 | O120: =IF(AND(ValuesEntered,ISNUMBER($C120)),D120-F120-J120,"") -> ¥16,010,734 | R120: 327
B121: =ROWS($B$28:B121) -> 94 | C121: =IF(ValuesEntered,IF(AND(ISNUMBER(O120),R120>0),EDATE(C120,1),""),"") -> 2021-08-01 | D121: ¥16,010,734 | E121: =IF(AND(ValuesEntered,ISNUMBER(C121)),IF($E$16="時間短縮",ROUND(IPMT(VLOOKUP($C121,Rate_table,2,TRUE)/12,1,$R120,$D121)*-1,0),ROUND(IPMT(VLOOKUP($C121,Rate_table,2,TRUE)/12,$B121,DurationOfLoan,LoanAmount-BonusAmount-SUM(extra_payments))*-1,0))+IF($I121=0,0,ROUND(IPMT(VLOOKUP($C121,Rate_table,2,TRUE)/12,COUNTIF($I$28:I121,">0"),DurationofBonus,BonusAmount)*-1,0)),"") -> ¥12,815 | F121: =IF(AND(ValuesEntered,ISNUMBER($C121)),IF($E$16="時間短縮",ROUND(PPMT(VLOOKUP($C121,Rate_table,2,TRUE)/12,1,$R120,$D121)*-1,0),ROUND(PPMT(VLOOKUP($C121,Rate_table,2,TRUE)/12,$B121,DurationOfLoan,LoanAmount-BonusAmount-SUM(extra_payments))*-1,0))+IF(I121=0,0,ROUND(PPMT(VLOOKUP($C121,Rate_table,2,TRUE)/12,COUNTIF($I$28:I121,">0"),DurationofBonus,BonusAmount)*-1,0)),"") -> ¥9,766 | I121: ¥0 | K121: ¥37,500 | L121: =IF(AND(ValuesEntered,ISNUMBER($C121)),SUM(E121:H121,J121:K121),"") -> ¥60,081 | O121: =IF(AND(ValuesEntered,ISNUMBER($C121)),D121-F121-J121,"") -> ¥16,000,968 | R121: 326
B122: =ROWS($B$28:B122) -> 95 | C122: =IF(ValuesEntered,IF(AND(ISNUMBER(O121),R121>0),EDATE(C121,1),""),"") -> 2021-09-01 | D122: ¥16,000,968 | E122: =IF(AND(ValuesEntered,ISNUMBER(C122)),IF($E$16="時間短縮",ROUND(IPMT(VLOOKUP($C122,Rate_table,2,TRUE)/12,1,$R121,$D122)*-1,0),ROUND(IPMT(VLOOKUP($C122,Rate_table,2,TRUE)/12,$B122,DurationOfLoan,LoanAmount-BonusAmount-SUM(extra_payments))*-1,0))+IF($I122=0,0,ROUND(IPMT(VLOOKUP($C122,Rate_table,2,TRUE)/12,COUNTIF($I$28:I122,">0"),DurationofBonus,BonusAmount)*-1,0)),"") -> ¥12,790 | F122: =IF(AND(ValuesEntered,ISNUMBER($C122)),IF($E$16="時間短縮",ROUND(PPMT(VLOOKUP($C122,Rate_table,2,TRUE)/12,1,$R121,$D122)*-1,0),ROUND(PPMT(VLOOKUP($C122,Rate_table,2,TRUE)/12,$B122,DurationOfLoan,LoanAmount-BonusAmount-SUM(extra_payments))*-1,0))+IF(I122=0,0,ROUND(PPMT(VLOOKUP($C122,Rate_table,2,TRUE)/12,COUNTIF($I$28:I122,">0"),DurationofBonus,BonusAmount)*-1,0)),"") -> ¥9,791 | I122: ¥0 | K122: ¥37,500 | L122: =IF(AND(ValuesEntered,ISNUMBER($C122)),SUM(E122:H122,J122:K122),"") -> ¥60,081 | O122: =IF(AND(ValuesEntered,ISNUMBER($C122)),D122-F122-J122,"") -> ¥15,991,177 | R122: 325
B123: =ROWS($B$28:B123) -> 96 | C123: =IF(ValuesEntered,IF(AND(ISNUMBER(O122),R122>0),EDATE(C122,1),""),"") -> 2021-10-01 | D123: ¥15,991,177 | E123: =IF(AND(ValuesEntered,ISNUMBER(C123)),IF($E$16="時間短縮",ROUND(IPMT(VLOOKUP($C123,Rate_table,2,TRUE)/12,1,$R122,$D123)*-1,0),ROUND(IPMT(VLOOKUP($C123,Rate_table,2,TRUE)/12,$B123,DurationOfLoan,LoanAmount-BonusAmount-SUM(extra_payments))*-1,0))+IF($I123=0,0,ROUND(IPMT(VLOOKUP($C123,Rate_table,2,TRUE)/12,COUNTIF($I$28:I123,">0"),DurationofBonus,BonusAmount)*-1,0)),"") -> ¥12,765 | F123: =IF(AND(ValuesEntered,ISNUMBER($C123)),IF($E$16="時間短縮",ROUND(PPMT(VLOOKUP($C123,Rate_table,2,TRUE)/12,1,$R122,$D123)*-1,0),ROUND(PPMT(VLOOKUP($C123,Rate_table,2,TRUE)/12,$B123,DurationOfLoan,LoanAmount-BonusAmount-SUM(extra_payments))*-1,0))+IF(I123=0,0,ROUND(PPMT(VLOOKUP($C123,Rate_table,2,TRUE)/12,COUNTIF($I$28:I123,">0"),DurationofBonus,BonusAmount)*-1,0)),"") -> ¥9,816 | I123: ¥0 | K123: ¥37,500 | L123: =IF(AND(ValuesEntered,ISNUMBER($C123)),SUM(E123:H123,J123:K123),"") -> ¥60,081 | O123: =IF(AND(ValuesEntered,ISNUMBER($C123)),D123-F123-J123,"") -> ¥15,981,361 | R123: 324
B124: =ROWS($B$28:B124) -> 97 | C124: =IF(ValuesEntered,IF(AND(ISNUMBER(O123),R123>0),EDATE(C123,1),""),"") -> 2021-11-01 | D124: ¥15,981,361 | E124: =IF(AND(ValuesEntered,ISNUMBER(C124)),IF($E$16="時間短縮",ROUND(IPMT(VLOOKUP($C124,Rate_table,2,TRUE)/12,1,$R123,$D124)*-1,0),ROUND(IPMT(VLOOKUP($C124,Rate_table,2,TRUE)/12,$B124,DurationOfLoan,LoanAmount-BonusAmount-SUM(extra_payments))*-1,0))+IF($I124=0,0,ROUND(IPMT(VLOOKUP($C124,Rate_table,2,TRUE)/12,COUNTIF($I$28:I124,">0"),DurationofBonus,BonusAmount)*-1,0)),"") -> ¥12,740 | F124: =IF(AND(ValuesEntered,ISNUMBER($C124)),IF($E$16="時間短縮",ROUND(PPMT(VLOOKUP($C124,Rate_table,2,TRUE)/12,1,$R123,$D124)*-1,0),ROUND(PPMT(VLOOKUP($C124,Rate_table,2,TRUE)/12,$B124,DurationOfLoan,LoanAmount-BonusAmount-SUM(extra_payments))*-1,0))+IF(I124=0,0,ROUND(PPMT(VLOOKUP($C124,Rate_table,2,TRUE)/12,COUNTIF($I$28:I124,">0"),DurationofBonus,BonusAmount)*-1,0)),"") -> ¥9,841 | I124: ¥0 | K124: ¥37,500 | L124: =IF(AND(ValuesEntered,ISNUMBER($C124)),SUM(E124:H124,J124:K124),"") -> ¥60,081 | O124: =IF(AND(ValuesEntered,ISNUMBER($C124)),D124-F124-J124,"") -> ¥15,971,520 | R124: 323
B125: =ROWS($B$28:B125) -> 98 | C125: =IF(ValuesEntered,IF(AND(ISNUMBER(O124),R124>0),EDATE(C124,1),""),"") -> 2021-12-01 | D125: ¥15,971,520 | E125: =IF(AND(ValuesEntered,ISNUMBER(C125)),IF($E$16="時間短縮",ROUND(IPMT(VLOOKUP($C125,Rate_table,2,TRUE)/12,1,$R124,$D125)*-1,0),ROUND(IPMT(VLOOKUP($C125,Rate_table,2,TRUE)/12,$B125,DurationOfLoan,LoanAmount-BonusAmount-SUM(extra_payments))*-1,0))+IF($I125=0,0,ROUND(IPMT(VLOOKUP($C125,Rate_table,2,TRUE)/12,COUNTIF($I$28:I125,">0"),DurationofBonus,BonusAmount)*-1,0)),"") -> ¥12,715 | F125: =IF(AND(ValuesEntered,ISNUMBER($C125)),IF($E$16="時間短縮",ROUND(PPMT(VLOOKUP($C125,Rate_table,2,TRUE)/12,1,$R124,$D125)*-1,0),ROUND(PPMT(VLOOKUP($C125,Rate_table,2,TRUE)/12,$B125,DurationOfLoan,LoanAmount-BonusAmount-SUM(extra_payments))*-1,0))+IF(I125=0,0,ROUND(PPMT(VLOOKUP($C125,Rate_table,2,TRUE)/12,COUNTIF($I$28:I125,">0"),DurationofBonus,BonusAmount)*-1,0)),"") -> ¥9,866 | I125: ¥0 | K125: ¥37,500 | L125: =IF(AND(ValuesEntered,ISNUMBER($C125)),SUM(E125:H125,J125:K125),"") -> ¥60,081 | O125: =IF(AND(ValuesEntered,ISNUMBER($C125)),D125-F125-J125,"") -> ¥15,961,654 | R125: 322
B126: =ROWS($B$28:B126) -> 99 | C126: =IF(ValuesEntered,IF(AND(ISNUMBER(O125),R125>0),EDATE(C125,1),""),"") -> 2022-01-01 | D126: ¥15,961,654 | E126: =IF(AND(ValuesEntered,ISNUMBER(C126)),IF($E$16="時間短縮",ROUND(IPMT(VLOOKUP($C126,Rate_table,2,TRUE)/12,1,$R125,$D126)*-1,0),ROUND(IPMT(VLOOKUP($C126,Rate_table,2,TRUE)/12,$B126,DurationOfLoan,LoanAmount-BonusAmount-SUM(extra_payments))*-1,0))+IF($I126=0,0,ROUND(IPMT(VLOOKUP($C126,Rate_table,2,TRUE)/12,COUNTIF($I$28:I126,">0"),DurationofBonus,BonusAmount)*-1,0)),"") -> ¥12,689 | F126: =IF(AND(ValuesEntered,ISNUMBER($C126)),IF($E$16="時間短縮",ROUND(PPMT(VLOOKUP($C126,Rate_table,2,TRUE)/12,1,$R125,$D126)*-1,0),ROUND(PPMT(VLOOKUP($C126,Rate_table,2,TRUE)/12,$B126,DurationOfLoan,LoanAmount-BonusAmount-SUM(extra_payments))*-1,0))+IF(I126=0,0,ROUND(PPMT(VLOOKUP($C126,Rate_table,2,TRUE)/12,COUNTIF($I$28:I126,">0"),DurationofBonus,BonusAmount)*-1,0)),"") -> ¥9,892 | I126: ¥0 | K126: ¥37,500 | L126: =IF(AND(ValuesEntered,ISNUMBER($C126)),SUM(E126:H126,J126:K126),"") -> ¥60,081 | O126: =IF(AND(ValuesEntered,ISNUMBER($C126)),D126-F126-J126,"") -> ¥15,951,762 | R126: 321
B127: =ROWS($B$28:B127) -> 100 | C127: =IF(ValuesEntered,IF(AND(ISNUMBER(O126),R126>0),EDATE(C126,1),""),"") -> 2022-02-01 | D127: ¥15,951,762 | E127: =IF(AND(ValuesEntered,ISNUMBER(C127)),IF($E$16="時間短縮",ROUND(IPMT(VLOOKUP($C127,Rate_table,2,TRUE)/12,1,$R126,$D127)*-1,0),ROUND(IPMT(VLOOKUP($C127,Rate_table,2,TRUE)/12,$B127,DurationOfLoan,LoanAmount-BonusAmount-SUM(extra_payments))*-1,0))+IF($I127=0,0,ROUND(IPMT(VLOOKUP($C127,Rate_table,2,TRUE)/12,COUNTIF($I$28:I127,">0"),DurationofBonus,BonusAmount)*-1,0)),"") -> ¥12,664 | F127: =IF(AND(ValuesEntered,ISNUMBER($C127)),IF($E$16="時間短縮",ROUND(PPMT(VLOOKUP($C127,Rate_table,2,TRUE)/12,1,$R126,$D127)*-1,0),ROUND(PPMT(VLOOKUP($C127,Rate_table,2,TRUE)/12,$B127,DurationOfLoan,LoanAmount-BonusAmount-SUM(extra_payments))*-1,0))+IF(I127=0,0,ROUND(PPMT(VLOOKUP($C127,Rate_table,2,TRUE)/12,COUNTIF($I$28:I127,">0"),DurationofBonus,BonusAmount)*-1,0)),"") -> ¥9,917 | I127: ¥0 | K127: ¥37,500 | L127: =IF(AND(ValuesEntered,ISNUMBER($C127)),SUM(E127:H127,J127:K127),"") -> ¥60,081 | O127: =IF(AND(ValuesEntered,ISNUMBER($C127)),D127-F127-J127,"") -> ¥15,941,845 | R127: 320
B128: =ROWS($B$28:B128) -> 101 | C128: =IF(ValuesEntered,IF(AND(ISNUMBER(O127),R127>0),EDATE(C127,1),""),"") -> 2022-03-01 | D128: ¥15,941,845 | E128: =IF(AND(ValuesEntered,ISNUMBER(C128)),IF($E$16="時間短縮",ROUND(IPMT(VLOOKUP($C128,Rate_table,2,TRUE)/12,1,$R127,$D128)*-1,0),ROUND(IPMT(VLOOKUP($C128,Rate_table,2,TRUE)/12,$B128,DurationOfLoan,LoanAmount-BonusAmount-SUM(extra_payments))*-1,0))+IF($I128=0,0,ROUND(IPMT(VLOOKUP($C128,Rate_table,2,TRUE)/12,COUNTIF($I$28:I128,">0"),DurationofBonus,BonusAmount)*-1,0)),"") -> ¥12,638 | F128: =IF(AND(ValuesEntered,ISNUMBER($C128)),IF($E$16="時間短縮",ROUND(PPMT(VLOOKUP($C128,Rate_table,2,TRUE)/12,1,$R127,$D128)*-1,0),ROUND(PPMT(VLOOKUP($C128,Rate_table,2,TRUE)/12,$B128,DurationOfLoan,LoanAmount-BonusAmount-SUM(extra_payments))*-1,0))+IF(I128=0,0,ROUND(PPMT(VLOOKUP($C128,Rate_table,2,TRUE)/12,COUNTIF($I$28:I128,">0"),DurationofBonus,BonusAmount)*-1,0)),"") -> ¥9,943 | I128: ¥0 | K128: ¥37,500 | L128: =IF(AND(ValuesEntered,ISNUMBER($C128)),SUM(E128:H128,J128:K128),"") -> ¥60,081 | O128: =IF(AND(ValuesEntered,ISNUMBER($C128)),D128-F128-J128,"") -> ¥15,931,902 | R128: 319
B129: =ROWS($B$28:B129) -> 102 | C129: =IF(ValuesEntered,IF(AND(ISNUMBER(O128),R128>0),EDATE(C128,1),""),"") -> 2022-04-01 | D129: ¥15,931,902 | E129: =IF(AND(ValuesEntered,ISNUMBER(C129)),IF($E$16="時間短縮",ROUND(IPMT(VLOOKUP($C129,Rate_table,2,TRUE)/12,1,$R128,$D129)*-1,0),ROUND(IPMT(VLOOKUP($C129,Rate_table,2,TRUE)/12,$B129,DurationOfLoan,LoanAmount-BonusAmount-SUM(extra_payments))*-1,0))+IF($I129=0,0,ROUND(IPMT(VLOOKUP($C129,Rate_table,2,TRUE)/12,COUNTIF($I$28:I129,">0"),DurationofBonus,BonusAmount)*-1,0)),"") -> ¥40,892 | F129: =IF(AND(ValuesEntered,ISNUMBER($C129)),IF($E$16="時間短縮",ROUND(PPMT(VLOOKUP($C129,Rate_table,2,TRUE)/12,1,$R128,$D129)*-1,0),ROUND(PPMT(VLOOKUP($C129,Rate_table,2,TRUE)/12,$B129,DurationOfLoan,LoanAmount-BonusAmount-SUM(extra_payments))*-1,0))+IF(I129=0,0,ROUND(PPMT(VLOOKUP($C129,Rate_table,2,TRUE)/12,COUNTIF($I$28:I129,">0"),DurationofBonus,BonusAmount)*-1,0)),"") -> ¥200,449 | I129: ¥200,000 | K129: ¥37,500 | L129: =IF(AND(ValuesEntered,ISNUMBER($C129)),SUM(E129:H129,J129:K129),"") -> ¥278,841 | O129: =IF(AND(ValuesEntered,ISNUMBER($C129)),D129-F129-J129,"") -> ¥15,731,453 | R129: 318
B130: =ROWS($B$28:B130) -> 103 | C130: =IF(ValuesEntered,IF(AND(ISNUMBER(O129),R129>0),EDATE(C129,1),""),"") -> 2022-05-01 | D130: ¥15,731,453 | E130: =IF(AND(ValuesEntered,ISNUMBER(C130)),IF($E$16="時間短縮",ROUND(IPMT(VLOOKUP($C130,Rate_table,2,TRUE)/12,1,$R129,$D130)*-1,0),ROUND(IPMT(VLOOKUP($C130,Rate_table,2,TRUE)/12,$B130,DurationOfLoan,LoanAmount-BonusAmount-SUM(extra_payments))*-1,0))+IF($I130=0,0,ROUND(IPMT(VLOOKUP($C130,Rate_table,2,TRUE)/12,COUNTIF($I$28:I130,">0"),DurationofBonus,BonusAmount)*-1,0)),"") -> ¥12,587 | F130: =IF(AND(ValuesEntered,ISNUMBER($C130)),IF($E$16="時間短縮",ROUND(PPMT(VLOOKUP($C130,Rate_table,2,TRUE)/12,1,$R129,$D130)*-1,0),ROUND(PPMT(VLOOKUP($C130,Rate_table,2,TRUE)/12,$B130,DurationOfLoan,LoanAmount-BonusAmount-SUM(extra_payments))*-1,0))+IF(I130=0,0,ROUND(PPMT(VLOOKUP($C130,Rate_table,2,TRUE)/12,COUNTIF($I$28:I130,">0"),DurationofBonus,BonusAmount)*-1,0)),"") -> ¥9,994 | I130: ¥0 | K130: ¥37,500 | L130: =IF(AND(ValuesEntered,ISNUMBER($C130)),SUM(E130:H130,J130:K130),"") -> ¥60,081 | O130: =IF(AND(ValuesEntered,ISNUMBER($C130)),D130-F130-J130,"") -> ¥15,721,459 | R130: 317
B131: =ROWS($B$28:B131) -> 104 | C131: =IF(ValuesEntered,IF(AND(ISNUMBER(O130),R130>0),EDATE(C130,1),""),"") -> 2022-06-01 | D131: ¥15,721,459 | E131: =IF(AND(ValuesEntered,ISNUMBER(C131)),IF($E$16="時間短縮",ROUND(IPMT(VLOOKUP($C131,Rate_table,2,TRUE)/12,1,$R130,$D131)*-1,0),ROUND(IPMT(VLOOKUP($C131,Rate_table,2,TRUE)/12,$B131,DurationOfLoan,LoanAmount-BonusAmount-SUM(extra_payments))*-1,0))+IF($I131=0,0,ROUND(IPMT(VLOOKUP($C131,Rate_table,2,TRUE)/12,COUNTIF($I$28:I131,">0"),DurationofBonus,BonusAmount)*-1,0)),"") -> ¥12,562 | F131: =IF(AND(ValuesEntered,ISNUMBER($C131)),IF($E$16="時間短縮",ROUND(PPMT(VLOOKUP($C131,Rate_table,2,TRUE)/12,1,$R130,$D131)*-1,0),ROUND(PPMT(VLOOKUP($C131,Rate_table,2,TRUE)/12,$B131,DurationOfLoan,LoanAmount-BonusAmount-SUM(extra_payments))*-1,0))+IF(I131=0,0,ROUND(PPMT(VLOOKUP($C131,Rate_table,2,TRUE)/12,COUNTIF($I$28:I131,">0"),DurationofBonus,BonusAmount)*-1,0)),"") -> ¥10,019 | I131: ¥0 | K131: ¥37,500 | L131: =IF(AND(ValuesEntered,ISNUMBER($C131)),SUM(E131:H131,J131:K131),"") -> ¥60,081 | O131: =IF(AND(ValuesEntered,ISNUMBER($C131)),D131-F131-J131,"") -> ¥15,711,440 | R131: 316
B132: =ROWS($B$28:B132) -> 105 | C132: =IF(ValuesEntered,IF(AND(ISNUMBER(O131),R131>0),EDATE(C131,1),""),"") -> 2022-07-01 | D132: ¥15,711,440 | E132: =IF(AND(ValuesEntered,ISNUMBER(C132)),IF($E$16="時間短縮",ROUND(IPMT(VLOOKUP($C132,Rate_table,2,TRUE)/12,1,$R131,$D132)*-1,0),ROUND(IPMT(VLOOKUP($C132,Rate_table,2,TRUE)/12,$B132,DurationOfLoan,LoanAmount-BonusAmount-SUM(extra_payments))*-1,0))+IF($I132=0,0,ROUND(IPMT(VLOOKUP($C132,Rate_table,2,TRUE)/12,COUNTIF($I$28:I132,">0"),DurationofBonus,BonusAmount)*-1,0)),"") -> ¥40,326 | F132: =IF(AND(ValuesEntered,ISNUMBER($C132)),IF($E$16="時間短縮",ROUND(PPMT(VLOOKUP($C132,Rate_table,2,TRUE)/12,1,$R131,$D132)*-1,0),ROUND(PPMT(VLOOKUP($C132,Rate_table,2,TRUE)/12,$B132,DurationOfLoan,LoanAmount-BonusAmount-SUM(extra_payments))*-1,0))+IF(I132=0,0,ROUND(PPMT(VLOOKUP($C132,Rate_table,2,TRUE)/12,COUNTIF($I$28:I132,">0"),DurationofBonus,BonusAmount)*-1,0)),"") -> ¥201,015 | I132: ¥200,000 | K132: ¥37,500 | L132: =IF(AND(ValuesEntered,ISNUMBER($C132)),SUM(E132:H132,J132:K132),"") -> ¥278,841 | O132: =IF(AND(ValuesEntered,ISNUMBER($C132)),D132-F132-J132,"") -> ¥15,510,425 | R132: 315
B133: =ROWS($B$28:B133) -> 106 | C133: =IF(ValuesEntered,IF(AND(ISNUMBER(O132),R132>0),EDATE(C132,1),""),"") -> 2022-08-01 | D133: ¥15,510,425 | E133: =IF(AND(ValuesEntered,ISNUMBER(C133)),IF($E$16="時間短縮",ROUND(IPMT(VLOOKUP($C133,Rate_table,2,TRUE)/12,1,$R132,$D133)*-1,0),ROUND(IPMT(VLOOKUP($C133,Rate_table,2,TRUE)/12,$B133,DurationOfLoan,LoanAmount-BonusAmount-SUM(extra_payments))*-1,0))+IF($I133=0,0,ROUND(IPMT(VLOOKUP($C133,Rate_table,2,TRUE)/12,COUNTIF($I$28:I133,">0"),DurationofBonus,BonusAmount)*-1,0)),"") -> ¥12,510 | F133: =IF(AND(ValuesEntered,ISNUMBER($C133)),IF($E$16="時間短縮",ROUND(PPMT(VLOOKUP($C133,Rate_table,2,TRUE)/12,1,$R132,$D133)*-1,0),ROUND(PPMT(VLOOKUP($C133,Rate_table,2,TRUE)/12,$B133,DurationOfLoan,LoanAmount-BonusAmount-SUM(extra_payments))*-1,0))+IF(I133=0,0,ROUND(PPMT(VLOOKUP($C133,Rate_table,2,TRUE)/12,COUNTIF($I$28:I133,">0"),DurationofBonus,BonusAmount)*-1,0)),"") -> ¥10,071 | I133: ¥0 | K133: ¥37,500 | L133: =IF(AND(ValuesEntered,ISNUMBER($C133)),SUM(E133:H133,J133:K133),"") -> ¥60,081 | O133: =IF(AND(ValuesEntered,ISNUMBER($C133)),D133-F133-J133,"") -> ¥15,500,354 | R133: 314
B134: =ROWS($B$28:B134) -> 107 | C134: =IF(ValuesEntered,IF(AND(ISNUMBER(O133),R133>0),EDATE(C133,1),""),"") -> 2022-09-01 | D134: ¥15,500,354 | E134: =IF(AND(ValuesEntered,ISNUMBER(C134)),IF($E$16="時間短縮",ROUND(IPMT(VLOOKUP($C134,Rate_table,2,TRUE)/12,1,$R133,$D134)*-1,0),ROUND(IPMT(VLOOKUP($C134,Rate_table,2,TRUE)/12,$B134,DurationOfLoan,LoanAmount-BonusAmount-SUM(extra_payments))*-1,0))+IF($I134=0,0,ROUND(IPMT(VLOOKUP($C134,Rate_table,2,TRUE)/12,COUNTIF($I$28:I134,">0"),DurationofBonus,BonusAmount)*-1,0)),"") -> ¥12,484 | F134: =IF(AND(ValuesEntered,ISNUMBER($C134)),IF($E$16="時間短縮",ROUND(PPMT(VLOOKUP($C134,Rate_table,2,TRUE)/12,1,$R133,$D134)*-1,0),ROUND(PPMT(VLOOKUP($C134,Rate_table,2,TRUE)/12,$B134,DurationOfLoan,LoanAmount-BonusAmount-SUM(extra_payments))*-1,0))+IF(I134=0,0,ROUND(PPMT(VLOOKUP($C134,Rate_table,2,TRUE)/12,COUNTIF($I$28:I134,">0"),DurationofBonus,BonusAmount)*-1,0)),"") -> ¥10,097 | I134: ¥0 | K134: ¥37,500 | L134: =IF(AND(ValuesEntered,ISNUMBER($C134)),SUM(E134:H134,J134:K134),"") -> ¥60,081 | O134: =IF(AND(ValuesEntered,ISNUMBER($C134)),D134-F134-J134,"") -> ¥15,490,257 | R134: 313
B135: =ROWS($B$28:B135) -> 108 | C135: =IF(ValuesEntered,IF(AND(ISNUMBER(O134),R134>0),EDATE(C134,1),""),"") -> 2022-10-01 | D135: ¥15,490,257 | E135: =IF(AND(ValuesEntered,ISNUMBER(C135)),IF($E$16="時間短縮",ROUND(IPMT(VLOOKUP($C135,Rate_table,2,TRUE)/12,1,$R134,$D135)*-1,0),ROUND(IPMT(VLOOKUP($C135,Rate_table,2,TRUE)/12,$B135,DurationOfLoan,LoanAmount-BonusAmount-SUM(extra_payments))*-1,0))+IF($I135=0,0,ROUND(IPMT(VLOOKUP($C135,Rate_table,2,TRUE)/12,COUNTIF($I$28:I135,">0"),DurationofBonus,BonusAmount)*-1,0)),"") -> ¥12,458 | F135: =IF(AND(ValuesEntered,ISNUMBER($C135)),IF($E$16="時間短縮",ROUND(PPMT(VLOOKUP($C135,Rate_table,2,TRUE)/12,1,$R134,$D135)*-1,0),ROUND(PPMT(VLOOKUP($C135,Rate_table,2,TRUE)/12,$B135,DurationOfLoan,LoanAmount-BonusAmount-SUM(extra_payments))*-1,0))+IF(I135=0,0,ROUND(PPMT(VLOOKUP($C135,Rate_table,2,TRUE)/12,COUNTIF($I$28:I135,">0"),DurationofBonus,BonusAmount)*-1,0)),"") -> ¥10,123 | I135: ¥0 | K135: ¥37,500 | L135: =IF(AND(ValuesEntered,ISNUMBER($C135)),SUM(E135:H135,J135:K135),"") -> ¥60,081 | O135: =IF(AND(ValuesEntered,ISNUMBER($C135)),D135-F135-J135,"") -> ¥15,480,134 | R135: 312
B136: =ROWS($B$28:B136) -> 109 | C136: =IF(ValuesEntered,IF(AND(ISNUMBER(O135),R135>0),EDATE(C135,1),""),"") -> 2022-11-01 | D136: ¥15,480,134 | E136: =IF(AND(ValuesEntered,ISNUMBER(C136)),IF($E$16="時間短縮",ROUND(IPMT(VLOOKUP($C136,Rate_table,2,TRUE)/12,1,$R135,$D136)*-1,0),ROUND(IPMT(VLOOKUP($C136,Rate_table,2,TRUE)/12,$B136,DurationOfLoan,LoanAmount-BonusAmount-SUM(extra_payments))*-1,0))+IF($I136=0,0,ROUND(IPMT(VLOOKUP($C136,Rate_table,2,TRUE)/12,COUNTIF($I$28:I136,">0"),DurationofBonus,BonusAmount)*-1,0)),"") -> ¥12,432 | F136: =IF(AND(ValuesEntered,ISNUMBER($C136)),IF($E$16="時間短縮",ROUND(PPMT(VLOOKUP($C136,Rate_table,2,TRUE)/12,1,$R135,$D136)*-1,0),ROUND(PPMT(VLOOKUP($C136,Rate_table,2,TRUE)/12,$B136,DurationOfLoan,LoanAmount-BonusAmount-SUM(extra_payments))*-1,0))+IF(I136=0,0,ROUND(PPMT(VLOOKUP($C136,Rate_table,2,TRUE)/12,COUNTIF($I$28:I136,">0"),DurationofBonus,BonusAmount)*-1,0)),"") -> ¥10,149 | I136: ¥0 | K136: ¥37,500 | L136: =IF(AND(ValuesEntered,ISNUMBER($C136)),SUM(E136:H136,J136:K136),"") -> ¥60,081 | O136: =IF(AND(ValuesEntered,ISNUMBER($C136)),D136-F136-J136,"") -> ¥15,469,985 | R136: 311
B137: =ROWS($B$28:B137) -> 110 | C137: =IF(ValuesEntered,IF(AND(ISNUMBER(O136),R136>0),EDATE(C136,1),""),"") -> 2022-12-01 | D137: ¥15,469,985 | E137: =IF(AND(ValuesEntered,ISNUMBER(C137)),IF($E$16="時間短縮",ROUND(IPMT(VLOOKUP($C137,Rate_table,2,TRUE)/12,1,$R136,$D137)*-1,0),ROUND(IPMT(VLOOKUP($C137,Rate_table,2,TRUE)/12,$B137,DurationOfLoan,LoanAmount-BonusAmount-SUM(extra_payments))*-1,0))+IF($I137=0,0,ROUND(IPMT(VLOOKUP($C137,Rate_table,2,TRUE)/12,COUNTIF($I$28:I137,">0"),DurationofBonus,BonusAmount)*-1,0)),"") -> ¥12,406 | F137: =IF(AND(ValuesEntered,ISNUMBER($C137)),IF($E$16="時間短縮",ROUND(PPMT(VLOOKUP($C137,Rate_table,2,TRUE)/12,1,$R136,$D137)*-1,0),ROUND(PPMT(VLOOKUP($C137,Rate_table,2,TRUE)/12,$B137,DurationOfLoan,LoanAmount-BonusAmount-SUM(extra_payments))*-1,0))+IF(I137=0,0,ROUND(PPMT(VLOOKUP($C137,Rate_table,2,TRUE)/12,COUNTIF($I$28:I137,">0"),DurationofBonus,BonusAmount)*-1,0)),"") -> ¥10,175 | I137: ¥0 | K137: ¥37,500 | L137: =IF(AND(ValuesEntered,ISNUMBER($C137)),SUM(E137:H137,J137:K137),"") -> ¥60,081 | O137: =IF(AND(ValuesEntered,ISNUMBER($C137)),D137-F137-J137,"") -> ¥15,459,810 | R137: 310
B138: =ROWS($B$28:B138) -> 111 | C138: =IF(ValuesEntered,IF(AND(ISNUMBER(O137),R137>0),EDATE(C137,1),""),"") -> 2023-01-01 | D138: ¥15,459,810 | E138: =IF(AND(ValuesEntered,ISNUMBER(C138)),IF($E$16="時間短縮",ROUND(IPMT(VLOOKUP($C138,Rate_table,2,TRUE)/12,1,$R137,$D138)*-1,0),ROUND(IPMT(VLOOKUP($C138,Rate_table,2,TRUE)/12,$B138,DurationOfLoan,LoanAmount-BonusAmount-SUM(extra_payments))*-1,0))+IF($I138=0,0,ROUND(IPMT(VLOOKUP($C138,Rate_table,2,TRUE)/12,COUNTIF($I$28:I138,">0"),DurationofBonus,BonusAmount)*-1,0)),"") -> ¥12,380 | F138: =IF(AND(ValuesEntered,ISNUMBER($C138)),IF($E$16="時間短縮",ROUND(PPMT(VLOOKUP($C138,Rate_table,2,TRUE)/12,1,$R137,$D138)*-1,0),ROUND(PPMT(VLOOKUP($C138,Rate_table,2,TRUE)/12,$B138,DurationOfLoan,LoanAmount-BonusAmount-SUM(extra_payments))*-1,0))+IF(I138=0,0,ROUND(PPMT(VLOOKUP($C138,Rate_table,2,TRUE)/12,COUNTIF($I$28:I138,">0"),DurationofBonus,BonusAmount)*-1,0)),"") -> ¥10,201 | I138: ¥0 | K138: ¥37,500 | L138: =IF(AND(ValuesEntered,ISNUMBER($C138)),SUM(E138:H138,J138:K138),"") -> ¥60,081 | O138: =IF(AND(ValuesEntered,ISNUMBER($C138)),D138-F138-J138,"") -> ¥15,449,609 | R138: 309
B139: =ROWS($B$28:B139) -> 112 | C139: =IF(ValuesEntered,IF(AND(ISNUMBER(O138),R138>0),EDATE(C138,1),""),"") -> 2023-02-01 | D139: ¥15,449,609 | E139: =IF(AND(ValuesEntered,ISNUMBER(C139)),IF($E$16="時間短縮",ROUND(IPMT(VLOOKUP($C139,Rate_table,2,TRUE)/12,1,$R138,$D139)*-1,0),ROUND(IPMT(VLOOKUP($C139,Rate_table,2,TRUE)/12,$B139,DurationOfLoan,LoanAmount-BonusAmount-SUM(extra_payments))*-1,0))+IF($I139=0,0,ROUND(IPMT(VLOOKUP($C139,Rate_table,2,TRUE)/12,COUNTIF($I$28:I139,">0"),DurationofBonus,BonusAmount)*-1,0)),"") -> ¥12,354 | F139: =IF(AND(ValuesEntered,ISNUMBER($C139)),IF($E$16="時間短縮",ROUND(PPMT(VLOOKUP($C139,Rate_table,2,TRUE)/12,1,$R138,$D139)*-1,0),ROUND(PPMT(VLOOKUP($C139,Rate_table,2,TRUE)/12,$B139,DurationOfLoan,LoanAmount-BonusAmount-SUM(extra_payments))*-1,0))+IF(I139=0,0,ROUND(PPMT(VLOOKUP($C139,Rate_table,2,TRUE)/12,COUNTIF($I$28:I139,">0"),DurationofBonus,BonusAmount)*-1,0)),"") -> ¥10,227 | I139: ¥0 | K139: ¥37,500 | L139: =IF(AND(ValuesEntered,ISNUMBER($C139)),SUM(E139:H139,J139:K139),"") -> ¥60,081 | O139: =IF(AND(ValuesEntered,ISNUMBER($C139)),D139-F139-J139,"") -> ¥15,439,382 | R139: 308
B140: =ROWS($B$28:B140) -> 113 | C140: =IF(ValuesEntered,IF(AND(ISNUMBER(O139),R139>0),EDATE(C139,1),""),"") -> 2023-03-01 | D140: ¥15,439,382 | E140: =IF(AND(ValuesEntered,ISNUMBER(C140)),IF($E$16="時間短縮",ROUND(IPMT(VLOOKUP($C140,Rate_table,2,TRUE)/12,1,$R139,$D140)*-1,0),ROUND(IPMT(VLOOKUP($C140,Rate_table,2,TRUE)/12,$B140,DurationOfLoan,LoanAmount-BonusAmount-SUM(extra_payments))*-1,0))+IF($I140=0,0,ROUND(IPMT(VLOOKUP($C140,Rate_table,2,TRUE)/12,COUNTIF($I$28:I140,">0"),DurationofBonus,BonusAmount)*-1,0)),"") -> ¥12,328 | F140: =IF(AND(ValuesEntered,ISNUMBER($C140)),IF($E$16="時間短縮",ROUND(PPMT(VLOOKUP($C140,Rate_table,2,TRUE)/12,1,$R139,$D140)*-1,0),ROUND(PPMT(VLOOKUP($C140,Rate_table,2,TRUE)/12,$B140,DurationOfLoan,LoanAmount-BonusAmount-SUM(extra_payments))*-1,0))+IF(I140=0,0,ROUND(PPMT(VLOOKUP($C140,Rate_table,2,TRUE)/12,COUNTIF($I$28:I140,">0"),DurationofBonus,BonusAmount)*-1,0)),"") -> ¥10,253 | I140: ¥0 | K140: ¥37,500 | L140: =IF(AND(ValuesEntered,ISNUMBER($C140)),SUM(E140:H140,J140:K140),"") -> ¥60,081 | O140: =IF(AND(ValuesEntered,ISNUMBER($C140)),D140-F140-J140,"") -> ¥15,429,129 | R140: 307
B141: =ROWS($B$28:B141) -> 114 | C141: =IF(ValuesEntered,IF(AND(ISNUMBER(O140),R140>0),EDATE(C140,1),""),"") -> 2023-04-01 | D141: ¥15,429,129 | E141: =IF(AND(ValuesEntered,ISNUMBER(C141)),IF($E$16="時間短縮",ROUND(IPMT(VLOOKUP($C141,Rate_table,2,TRUE)/12,1,$R140,$D141)*-1,0),ROUND(IPMT(VLOOKUP($C141,Rate_table,2,TRUE)/12,$B141,DurationOfLoan,LoanAmount-BonusAmount-SUM(extra_payments))*-1,0))+IF($I141=0,0,ROUND(IPMT(VLOOKUP($C141,Rate_table,2,TRUE)/12,COUNTIF($I$28:I141,">0"),DurationofBonus,BonusAmount)*-1,0)),"") -> ¥39,602 | F141: =IF(AND(ValuesEntered,ISNUMBER($C141)),IF($E$16="時間短縮",ROUND(PPMT(VLOOKUP($C141,Rate_table,2,TRUE)/12,1,$R140,$D141)*-1,0),ROUND(PPMT(VLOOKUP($C141,Rate_table,2,TRUE)/12,$B141,DurationOfLoan,LoanAmount-BonusAmount-SUM(extra_payments))*-1,0))+IF(I141=0,0,ROUND(PPMT(VLOOKUP($C141,Rate_table,2,TRUE)/12,COUNTIF($I$28:I141,">0"),DurationofBonus,BonusAmount)*-1,0)),"") -> ¥201,740 | I141: ¥200,000 | K141: ¥37,500 | L141: =IF(AND(ValuesEntered,ISNUMBER($C141)),SUM(E141:H141,J141:K141),"") -> ¥278,842 | O141: =IF(AND(ValuesEntered,ISNUMBER($C141)),D141-F141-J141,"") -> ¥15,227,389 | R141: 306
B142: =ROWS($B$28:B142) -> 115 | C142: =IF(ValuesEntered,IF(AND(ISNUMBER(O141),R141>0),EDATE(C141,1),""),"") -> 2023-05-01 | D142: ¥15,227,389 | E142: =IF(AND(ValuesEntered,ISNUMBER(C142)),IF($E$16="時間短縮",ROUND(IPMT(VLOOKUP($C142,Rate_table,2,TRUE)/12,1,$R141,$D142)*-1,0),ROUND(IPMT(VLOOKUP($C142,Rate_table,2,TRUE)/12,$B142,DurationOfLoan,LoanAmount-BonusAmount-SUM(extra_payments))*-1,0))+IF($I142=0,0,ROUND(IPMT(VLOOKUP($C142,Rate_table,2,TRUE)/12,COUNTIF($I$28:I142,">0"),DurationofBonus,BonusAmount)*-1,0)),"") -> ¥12,275 | F142: =IF(AND(ValuesEntered,ISNUMBER($C142)),IF($E$16="時間短縮",ROUND(PPMT(VLOOKUP($C142,Rate_table,2,TRUE)/12,1,$R141,$D142)*-1,0),ROUND(PPMT(VLOOKUP($C142,Rate_table,2,TRUE)/12,$B142,DurationOfLoan,LoanAmount-BonusAmount-SUM(extra_payments))*-1,0))+IF(I142=0,0,ROUND(PPMT(VLOOKUP($C142,Rate_table,2,TRUE)/12,COUNTIF($I$28:I142,">0"),DurationofBonus,BonusAmount)*-1,0)),"") -> ¥10,306 | I142: ¥0 | K142: ¥37,500 | L142: =IF(AND(ValuesEntered,ISNUMBER($C142)),SUM(E142:H142,J142:K142),"") -> ¥60,081 | O142: =IF(AND(ValuesEntered,ISNUMBER($C142)),D142-F142-J142,"") -> ¥15,217,083 | R142: 305
B143: =ROWS($B$28:B143) -> 116 | C143: =IF(ValuesEntered,IF(AND(ISNUMBER(O142),R142>0),EDATE(C142,1),""),"") -> 2023-06-01 | D143: ¥15,217,083 | E143: =IF(AND(ValuesEntered,ISNUMBER(C143)),IF($E$16="時間短縮",ROUND(IPMT(VLOOKUP($C143,Rate_table,2,TRUE)/12,1,$R142,$D143)*-1,0),ROUND(IPMT(VLOOKUP($C143,Rate_table,2,TRUE)/12,$B143,DurationOfLoan,LoanAmount-BonusAmount-SUM(extra_payments))*-1,0))+IF($I143=0,0,ROUND(IPMT(VLOOKUP($C143,Rate_table,2,TRUE)/12,COUNTIF($I$28:I143,">0"),DurationofBonus,BonusAmount)*-1,0)),"") -> ¥12,249 | F143: =IF(AND(ValuesEntered,ISNUMBER($C143)),IF($E$16="時間短縮",ROUND(PPMT(VLOOKUP($C143,Rate_table,2,TRUE)/12,1,$R142,$D143)*-1,0),ROUND(PPMT(VLOOKUP($C143,Rate_table,2,TRUE)/12,$B143,DurationOfLoan,LoanAmount-BonusAmount-SUM(extra_payments))*-1,0))+IF(I143=0,0,ROUND(PPMT(VLOOKUP($C143,Rate_table,2,TRUE)/12,COUNTIF($I$28:I143,">0"),DurationofBonus,BonusAmount)*-1,0)),"") -> ¥10,332 | I143: ¥0 | K143: ¥37,500 | L143: =IF(AND(ValuesEntered,ISNUMBER($C143)),SUM(E143:H143,J143:K143),"") -> ¥60,081 | O143: =IF(AND(ValuesEntered,ISNUMBER($C143)),D143-F143-J143,"") -> ¥15,206,751 | R143: 304
B144: =ROWS($B$28:B144) -> 117 | C144: =IF(ValuesEntered,IF(AND(ISNUMBER(O143),R143>0),EDATE(C143,1),""),"") -> 2023-07-01 | D144: ¥15,206,751 | E144: =IF(AND(ValuesEntered,ISNUMBER(C144)),IF($E$16="時間短縮",ROUND(IPMT(VLOOKUP($C144,Rate_table,2,TRUE)/12,1,$R143,$D144)*-1,0),ROUND(IPMT(VLOOKUP($C144,Rate_table,2,TRUE)/12,$B144,DurationOfLoan,LoanAmount-BonusAmount-SUM(extra_payments))*-1,0))+IF($I144=0,0,ROUND(IPMT(VLOOKUP($C144,Rate_table,2,TRUE)/12,COUNTIF($I$28:I144,">0"),DurationofBonus,BonusAmount)*-1,0)),"") -> ¥39,030 | F144: =IF(AND(ValuesEntered,ISNUMBER($C144)),IF($E$16="時間短縮",ROUND(PPMT(VLOOKUP($C144,Rate_table,2,TRUE)/12,1,$R143,$D144)*-1,0),ROUND(PPMT(VLOOKUP($C144,Rate_table,2,TRUE)/12,$B144,DurationOfLoan,LoanAmount-BonusAmount-SUM(extra_payments))*-1,0))+IF(I144=0,0,ROUND(PPMT(VLOOKUP($C144,Rate_table,2,TRUE)/12,COUNTIF($I$28:I144,">0"),DurationofBonus,BonusAmount)*-1,0)),"") -> ¥202,311 | I144: ¥200,000 | K144: ¥37,500 | L144: =IF(AND(ValuesEntered,ISNUMBER($C144)),SUM(E144:H144,J144:K144),"") -> ¥278,841 | O144: =IF(AND(ValuesEntered,ISNUMBER($C144)),D144-F144-J144,"") -> ¥15,004,440 | R144: 303
B145: =ROWS($B$28:B145) -> 118 | C145: =IF(ValuesEntered,IF(AND(ISNUMBER(O144),R144>0),EDATE(C144,1),""),"") -> 2023-08-01 | D145: ¥15,004,440 | E145: =IF(AND(ValuesEntered,ISNUMBER(C145)),IF($E$16="時間短縮",ROUND(IPMT(VLOOKUP($C145,Rate_table,2,TRUE)/12,1,$R144,$D145)*-1,0),ROUND(IPMT(VLOOKUP($C145,Rate_table,2,TRUE)/12,$B145,DurationOfLoan,LoanAmount-BonusAmount-SUM(extra_payments))*-1,0))+IF($I145=0,0,ROUND(IPMT(VLOOKUP($C145,Rate_table,2,TRUE)/12,COUNTIF($I$28:I145,">0"),DurationofBonus,BonusAmount)*-1,0)),"") -> ¥12,196 | F145: =IF(AND(ValuesEntered,ISNUMBER($C145)),IF($E$16="時間短縮",ROUND(PPMT(VLOOKUP($C145,Rate_table,2,TRUE)/12,1,$R144,$D145)*-1,0),ROUND(PPMT(VLOOKUP($C145,Rate_table,2,TRUE)/12,$B145,DurationOfLoan,LoanAmount-BonusAmount-SUM(extra_payments))*-1,0))+IF(I145=0,0,ROUND(PPMT(VLOOKUP($C145,Rate_table,2,TRUE)/12,COUNTIF($I$28:I145,">0"),DurationofBonus,BonusAmount)*-1,0)),"") -> ¥10,385 | I145: ¥0 | K145: ¥37,500 | L145: =IF(AND(ValuesEntered,ISNUMBER($C145)),SUM(E145:H145,J145:K145),"") -> ¥60,081 | O145: =IF(AND(ValuesEntered,ISNUMBER($C145)),D145-F145-J145,"") -> ¥14,994,055 | R145: 302
B146: =ROWS($B$28:B146) -> 119 | C146: =IF(ValuesEntered,IF(AND(ISNUMBER(O145),R145>0),EDATE(C145,1),""),"") -> 2023-09-01 | D146: ¥14,994,055 | E146: =IF(AND(ValuesEntered,ISNUMBER(C146)),IF($E$16="時間短縮",ROUND(IPMT(VLOOKUP($C146,Rate_table,2,TRUE)/12,1,$R145,$D146)*-1,0),ROUND(IPMT(VLOOKUP($C146,Rate_table,2,TRUE)/12,$B146,DurationOfLoan,LoanAmount-BonusAmount-SUM(extra_payments))*-1,0))+IF($I146=0,0,ROUND(IPMT(VLOOKUP($C146,Rate_table,2,TRUE)/12,COUNTIF($I$28:I146,">0"),DurationofBonus,BonusAmount)*-1,0)),"") -> ¥12,169 | F146: =IF(AND(ValuesEntered,ISNUMBER($C146)),IF($E$16="時間短縮",ROUND(PPMT(VLOOKUP($C146,Rate_table,2,TRUE)/12,1,$R145,$D146)*-1,0),ROUND(PPMT(VLOOKUP($C146,Rate_table,2,TRUE)/12,$B146,DurationOfLoan,LoanAmount-BonusAmount-SUM(extra_payments))*-1,0))+IF(I146=0,0,ROUND(PPMT(VLOOKUP($C146,Rate_table,2,TRUE)/12,COUNTIF($I$28:I146,">0"),DurationofBonus,BonusAmount)*-1,0)),"") -> ¥10,412 | I146: ¥0 | K146: ¥37,500 | L146: =IF(AND(ValuesEntered,ISNUMBER($C146)),SUM(E146:H146,J146:K146),"") -> ¥60,081 | O146: =IF(AND(ValuesEntered,ISNUMBER($C146)),D146-F146-J146,"") -> ¥14,983,643 | R146: 301
B147: =ROWS($B$28:B147) -> 120 | C147: =IF(ValuesEntered,IF(AND(ISNUMBER(O146),R146>0),EDATE(C146,1),""),"") -> 2023-10-01 | D147: ¥14,983,643 | E147: =IF(AND(ValuesEntered,ISNUMBER(C147)),IF($E$16="時間短縮",ROUND(IPMT(VLOOKUP($C147,Rate_table,2,TRUE)/12,1,$R146,$D147)*-1,0),ROUND(IPMT(VLOOKUP($C147,Rate_table,2,TRUE)/12,$B147,DurationOfLoan,LoanAmount-BonusAmount-SUM(extra_payments))*-1,0))+IF($I147=0,0,ROUND(IPMT(VLOOKUP($C147,Rate_table,2,TRUE)/12,COUNTIF($I$28:I147,">0"),DurationofBonus,BonusAmount)*-1,0)),"") -> ¥12,142 | F147: =IF(AND(ValuesEntered,ISNUMBER($C147)),IF($E$16="時間短縮",ROUND(PPMT(VLOOKUP($C147,Rate_table,2,TRUE)/12,1,$R146,$D147)*-1,0),ROUND(PPMT(VLOOKUP($C147,Rate_table,2,TRUE)/12,$B147,DurationOfLoan,LoanAmount-BonusAmount-SUM(extra_payments))*-1,0))+IF(I147=0,0,ROUND(PPMT(VLOOKUP($C147,Rate_table,2,TRUE)/12,COUNTIF($I$28:I147,">0"),DurationofBonus,BonusAmount)*-1,0)),"") -> ¥10,439 | I147: ¥0 | K147: ¥37,500 | L147: =IF(AND(ValuesEntered,ISNUMBER($C147)),SUM(E147:H147,J147:K147),"") -> ¥60,081 | O147: =IF(AND(ValuesEntered,ISNUMBER($C147)),D147-F147-J147,"") -> ¥14,973,204 | R147: 300
B148: =ROWS($B$28:B148) -> 121 | C148: =IF(ValuesEntered,IF(AND(ISNUMBER(O147),R147>0),EDATE(C147,1),""),"") -> 2023-11-01 | D148: ¥14,973,204 | E148: =IF(AND(ValuesEntered,ISNUMBER(C148)),IF($E$16="時間短縮",ROUND(IPMT(VLOOKUP($C148,Rate_table,2,TRUE)/12,1,$R147,$D148)*-1,0),ROUND(IPMT(VLOOKUP($C148,Rate_table,2,TRUE)/12,$B148,DurationOfLoan,LoanAmount-BonusAmount-SUM(extra_payments))*-1,0))+IF($I148=0,0,ROUND(IPMT(VLOOKUP($C148,Rate_table,2,TRUE)/12,COUNTIF($I$28:I148,">0"),DurationofBonus,BonusAmount)*-1,0)),"") -> ¥12,115 | F148: =IF(AND(ValuesEntered,ISNUMBER($C148)),IF($E$16="時間短縮",ROUND(PPMT(VLOOKUP($C148,Rate_table,2,TRUE)/12,1,$R147,$D148)*-1,0),ROUND(PPMT(VLOOKUP($C148,Rate_table,2,TRUE)/12,$B148,DurationOfLoan,LoanAmount-BonusAmount-SUM(extra_payments))*-1,0))+IF(I148=0,0,ROUND(PPMT(VLOOKUP($C148,Rate_table,2,TRUE)/12,COUNTIF($I$28:I148,">0"),DurationofBonus,BonusAmount)*-1,0)),"") -> ¥10,466 | I148: ¥0 | K148: ¥37,500 | L148: =IF(AND(ValuesEntered,ISNUMBER($C148)),SUM(E148:H148,J148:K148),"") -> ¥60,081 | O148: =IF(AND(ValuesEntered,ISNUMBER($C148)),D148-F148-J148,"") -> ¥14,962,738 | R148: 299
B149: =ROWS($B$28:B149) -> 122 | C149: =IF(ValuesEntered,IF(AND(ISNUMBER(O148),R148>0),EDATE(C148,1),""),"") -> 2023-12-01 | D149: ¥14,962,738 | E149: =IF(AND(ValuesEntered,ISNUMBER(C149)),IF($E$16="時間短縮",ROUND(IPMT(VLOOKUP($C149,Rate_table,2,TRUE)/12,1,$R148,$D149)*-1,0),ROUND(IPMT(VLOOKUP($C149,Rate_table,2,TRUE)/12,$B149,DurationOfLoan,LoanAmount-BonusAmount-SUM(extra_payments))*-1,0))+IF($I149=0,0,ROUND(IPMT(VLOOKUP($C149,Rate_table,2,TRUE)/12,COUNTIF($I$28:I149,">0"),DurationofBonus,BonusAmount)*-1,0)),"") -> ¥12,089 | F149: =IF(AND(ValuesEntered,ISNUMBER($C149)),IF($E$16="時間短縮",ROUND(PPMT(VLOOKUP($C149,Rate_table,2,TRUE)/12,1,$R148,$D149)*-1,0),ROUND(PPMT(VLOOKUP($C149,Rate_table,2,TRUE)/12,$B149,DurationOfLoan,LoanAmount-BonusAmount-SUM(extra_payments))*-1,0))+IF(I149=0,0,ROUND(PPMT(VLOOKUP($C149,Rate_table,2,TRUE)/12,COUNTIF($I$28:I149,">0"),DurationofBonus,BonusAmount)*-1,0)),"") -> ¥10,493 | I149: ¥0 | K149: ¥37,500 | L149: =IF(AND(ValuesEntered,ISNUMBER($C149)),SUM(E149:H149,J149:K149),"") -> ¥60,082 | O149: =IF(AND(ValuesEntered,ISNUMBER($C149)),D149-F149-J149,"") -> ¥14,952,245 | R149: 298
B150: =ROWS($B$28:B150) -> 123 | C150: =IF(ValuesEntered,IF(AND(ISNUMBER(O149),R149>0),EDATE(C149,1),""),"") -> 2024-01-01 | D150: ¥14,952,245 | E150: =IF(AND(ValuesEntered,ISNUMBER(C150)),IF($E$16="時間短縮",ROUND(IPMT(VLOOKUP($C150,Rate_table,2,TRUE)/12,1,$R149,$D150)*-1,0),ROUND(IPMT(VLOOKUP($C150,Rate_table,2,TRUE)/12,$B150,DurationOfLoan,LoanAmount-BonusAmount-SUM(extra_payments))*-1,0))+IF($I150=0,0,ROUND(IPMT(VLOOKUP($C150,Rate_table,2,TRUE)/12,COUNTIF($I$28:I150,">0"),DurationofBonus,BonusAmount)*-1,0)),"") -> ¥12,062 | F150: =IF(AND(ValuesEntered,ISNUMBER($C150)),IF($E$16="時間短縮",ROUND(PPMT(VLOOKUP($C150,Rate_table,2,TRUE)/12,1,$R149,$D150)*-1,0),ROUND(PPMT(VLOOKUP($C150,Rate_table,2,TRUE)/12,$B150,DurationOfLoan,LoanAmount-BonusAmount-SUM(extra_payments))*-1,0))+IF(I150=0,0,ROUND(PPMT(VLOOKUP($C150,Rate_table,2,TRUE)/12,COUNTIF($I$28:I150,">0"),DurationofBonus,BonusAmount)*-1,0)),"") -> ¥10,519 | I150: ¥0 | K150: ¥37,500 | L150: =IF(AND(ValuesEntered,ISNUMBER($C150)),SUM(E150:H150,J150:K150),"") -> ¥60,081 | O150: =IF(AND(ValuesEntered,ISNUMBER($C150)),D150-F150-J150,"") -> ¥14,941,726 | R150: 297
B151: =ROWS($B$28:B151) -> 124 | C151: =IF(ValuesEntered,IF(AND(ISNUMBER(O150),R150>0),EDATE(C150,1),""),"") -> 2024-02-01 | D151: ¥14,941,726 | E151: =IF(AND(ValuesEntered,ISNUMBER(C151)),IF($E$16="時間短縮",ROUND(IPMT(VLOOKUP($C151,Rate_table,2,TRUE)/12,1,$R150,$D151)*-1,0),ROUND(IPMT(VLOOKUP($C151,Rate_table,2,TRUE)/12,$B151,DurationOfLoan,LoanAmount-BonusAmount-SUM(extra_payments))*-1,0))+IF($I151=0,0,ROUND(IPMT(VLOOKUP($C151,Rate_table,2,TRUE)/12,COUNTIF($I$28:I151,">0"),DurationofBonus,BonusAmount)*-1,0)),"") -> ¥12,035 | F151: =IF(AND(ValuesEntered,ISNUMBER($C151)),IF($E$16="時間短縮",ROUND(PPMT(VLOOKUP($C151,Rate_table,2,TRUE)/12,1,$R150,$D151)*-1,0),ROUND(PPMT(VLOOKUP($C151,Rate_table,2,TRUE)/12,$B151,DurationOfLoan,LoanAmount-BonusAmount-SUM(extra_payments))*-1,0))+IF(I151=0,0,ROUND(PPMT(VLOOKUP($C151,Rate_table,2,TRUE)/12,COUNTIF($I$28:I151,">0"),DurationofBonus,BonusAmount)*-1,0)),"") -> ¥10,546 | I151: ¥0 | K151: ¥37,500 | L151: =IF(AND(ValuesEntered,ISNUMBER($C151)),SUM(E151:H151,J151:K151),"") -> ¥60,081 | O151: =IF(AND(ValuesEntered,ISNUMBER($C151)),D151-F151-J151,"") -> ¥14,931,180 | R151: 296
B152: =ROWS($B$28:B152) -> 125 | C152: =IF(ValuesEntered,IF(AND(ISNUMBER(O151),R151>0),EDATE(C151,1),""),"") -> 2024-03-01 | D152: ¥14,931,180 | E152: =IF(AND(ValuesEntered,ISNUMBER(C152)),IF($E$16="時間短縮",ROUND(IPMT(VLOOKUP($C152,Rate_table,2,TRUE)/12,1,$R151,$D152)*-1,0),ROUND(IPMT(VLOOKUP($C152,Rate_table,2,TRUE)/12,$B152,DurationOfLoan,LoanAmount-BonusAmount-SUM(extra_payments))*-1,0))+IF($I152=0,0,ROUND(IPMT(VLOOKUP($C152,Rate_table,2,TRUE)/12,COUNTIF($I$28:I152,">0"),DurationofBonus,BonusAmount)*-1,0)),"") -> ¥12,008 | F152: =IF(AND(ValuesEntered,ISNUMBER($C152)),IF($E$16="時間短縮",ROUND(PPMT(VLOOKUP($C152,Rate_table,2,TRUE)/12,1,$R151,$D152)*-1,0),ROUND(PPMT(VLOOKUP($C152,Rate_table,2,TRUE)/12,$B152,DurationOfLoan,LoanAmount-BonusAmount-SUM(extra_payments))*-1,0))+IF(I152=0,0,ROUND(PPMT(VLOOKUP($C152,Rate_table,2,TRUE)/12,COUNTIF($I$28:I152,">0"),DurationofBonus,BonusAmount)*-1,0)),"") -> ¥10,574 | I152: ¥0 | K152: ¥37,500 | L152: =IF(AND(ValuesEntered,ISNUMBER($C152)),SUM(E152:H152,J152:K152),"") -> ¥60,082 | O152: =IF(AND(ValuesEntered,ISNUMBER($C152)),D152-F152-J152,"") -> ¥14,920,606 | R152: 295
B153: =ROWS($B$28:B153) -> 126 | C153: =IF(ValuesEntered,IF(AND(ISNUMBER(O152),R152>0),EDATE(C152,1),""),"") -> 2024-04-01 | D153: ¥14,920,606 | E153: =IF(AND(ValuesEntered,ISNUMBER(C153)),IF($E$16="時間短縮",ROUND(IPMT(VLOOKUP($C153,Rate_table,2,TRUE)/12,1,$R152,$D153)*-1,0),ROUND(IPMT(VLOOKUP($C153,Rate_table,2,TRUE)/12,$B153,DurationOfLoan,LoanAmount-BonusAmount-SUM(extra_payments))*-1,0))+IF($I153=0,0,ROUND(IPMT(VLOOKUP($C153,Rate_table,2,TRUE)/12,COUNTIF($I$28:I153,">0"),DurationofBonus,BonusAmount)*-1,0)),"") -> ¥38,296 | F153: =IF(AND(ValuesEntered,ISNUMBER($C153)),IF($E$16="時間短縮",ROUND(PPMT(VLOOKUP($C153,Rate_table,2,TRUE)/12,1,$R152,$D153)*-1,0),ROUND(PPMT(VLOOKUP($C153,Rate_table,2,TRUE)/12,$B153,DurationOfLoan,LoanAmount-BonusAmount-SUM(extra_payments))*-1,0))+IF(I153=0,0,ROUND(PPMT(VLOOKUP($C153,Rate_table,2,TRUE)/12,COUNTIF($I$28:I153,">0"),DurationofBonus,BonusAmount)*-1,0)),"") -> ¥203,045 | I153: ¥200,000 | K153: ¥37,500 | L153: =IF(AND(ValuesEntered,ISNUMBER($C153)),SUM(E153:H153,J153:K153),"") -> ¥278,841 | O153: =IF(AND(ValuesEntered,ISNUMBER($C153)),D153-F153-J153,"") -> ¥14,717,561 | R153: 294
B154: =ROWS($B$28:B154) -> 127 | C154: =IF(ValuesEntered,IF(AND(ISNUMBER(O153),R153>0),EDATE(C153,1),""),"") -> 2024-05-01 | D154: ¥14,717,561 | E154: =IF(AND(ValuesEntered,ISNUMBER(C154)),IF($E$16="時間短縮",ROUND(IPMT(VLOOKUP($C154,Rate_table,2,TRUE)/12,1,$R153,$D154)*-1,0),ROUND(IPMT(VLOOKUP($C154,Rate_table,2,TRUE)/12,$B154,DurationOfLoan,LoanAmount-BonusAmount-SUM(extra_payments))*-1,0))+IF($I154=0,0,ROUND(IPMT(VLOOKUP($C154,Rate_table,2,TRUE)/12,COUNTIF($I$28:I154,">0"),DurationofBonus,BonusAmount)*-1,0)),"") -> ¥11,953 | F154: =IF(AND(ValuesEntered,ISNUMBER($C154)),IF($E$16="時間短縮",ROUND(PPMT(VLOOKUP($C154,Rate_table,2,TRUE)/12,1,$R153,$D154)*-1,0),ROUND(PPMT(VLOOKUP($C154,Rate_table,2,TRUE)/12,$B154,DurationOfLoan,LoanAmount-BonusAmount-SUM(extra_payments))*-1,0))+IF(I154=0,0,ROUND(PPMT(VLOOKUP($C154,Rate_table,2,TRUE)/12,COUNTIF($I$28:I154,">0"),DurationofBonus,BonusAmount)*-1,0)),"") -> ¥10,628 | I154: ¥0 | K154: ¥37,500 | L154: =IF(AND(ValuesEntered,ISNUMBER($C154)),SUM(E154:H154,J154:K154),"") -> ¥60,081 | O154: =IF(AND(ValuesEntered,ISNUMBER($C154)),D154-F154-J154,"") -> ¥14,706,933 | R154: 293
B155: =ROWS($B$28:B155) -> 128 | C155: =IF(ValuesEntered,IF(AND(ISNUMBER(O154),R154>0),EDATE(C154,1),""),"") -> 2024-06-01 | D155: ¥14,706,933 | E155: =IF(AND(ValuesEntered,ISNUMBER(C155)),IF($E$16="時間短縮",ROUND(IPMT(VLOOKUP($C155,Rate_table,2,TRUE)/12,1,$R154,$D155)*-1,0),ROUND(IPMT(VLOOKUP($C155,Rate_table,2,TRUE)/12,$B155,DurationOfLoan,LoanAmount-BonusAmount-SUM(extra_payments))*-1,0))+IF($I155=0,0,ROUND(IPMT(VLOOKUP($C155,Rate_table,2,TRUE)/12,COUNTIF($I$28:I155,">0"),DurationofBonus,BonusAmount)*-1,0)),"") -> ¥11,926 | F155: =IF(AND(ValuesEntered,ISNUMBER($C155)),IF($E$16="時間短縮",ROUND(PPMT(VLOOKUP($C155,Rate_table,2,TRUE)/12,1,$R154,$D155)*-1,0),ROUND(PPMT(VLOOKUP($C155,Rate_table,2,TRUE)/12,$B155,DurationOfLoan,LoanAmount-BonusAmount-SUM(extra_payments))*-1,0))+IF(I155=0,0,ROUND(PPMT(VLOOKUP($C155,Rate_table,2,TRUE)/12,COUNTIF($I$28:I155,">0"),DurationofBonus,BonusAmount)*-1,0)),"") -> ¥10,655 | I155: ¥0 | K155: ¥37,500 | L155: =IF(AND(ValuesEntered,ISNUMBER($C155)),SUM(E155:H155,J155:K155),"") -> ¥60,081 | O155: =IF(AND(ValuesEntered,ISNUMBER($C155)),D155-F155-J155,"") -> ¥14,696,278 | R155: 292
B156: =ROWS($B$28:B156) -> 129 | C156: =IF(ValuesEntered,IF(AND(ISNUMBER(O155),R155>0),EDATE(C155,1),""),"") -> 2024-07-01 | D156: ¥14,696,278 | E156: =IF(AND(ValuesEntered,ISNUMBER(C156)),IF($E$16="時間短縮",ROUND(IPMT(VLOOKUP($C156,Rate_table,2,TRUE)/12,1,$R155,$D156)*-1,0),ROUND(IPMT(VLOOKUP($C156,Rate_table,2,TRUE)/12,$B156,DurationOfLoan,LoanAmount-BonusAmount-SUM(extra_payments))*-1,0))+IF($I156=0,0,ROUND(IPMT(VLOOKUP($C156,Rate_table,2,TRUE)/12,COUNTIF($I$28:I156,">0"),DurationofBonus,BonusAmount)*-1,0)),"") -> ¥37,721 | F156: =IF(AND(ValuesEntered,ISNUMBER($C156)),IF($E$16="時間短縮",ROUND(PPMT(VLOOKUP($C156,Rate_table,2,TRUE)/12,1,$R155,$D156)*-1,0),ROUND(PPMT(VLOOKUP($C156,Rate_table,2,TRUE)/12,$B156,DurationOfLoan,LoanAmount-BonusAmount-SUM(extra_payments))*-1,0))+IF(I156=0,0,ROUND(PPMT(VLOOKUP($C156,Rate_table,2,TRUE)/12,COUNTIF($I$28:I156,">0"),DurationofBonus,BonusAmount)*-1,0)),"") -> ¥203,620 | I156: =IF(ISNUMBER(C156)=FALSE,"",IF(AND(D156>$E$12,OR(MONTH(C156)=$E$13,MONTH(C156)=$E$14,MONTH(C156)=$E$15)),$E$12,0)) -> ¥200,000 | K156: ¥37,500 | L156: =IF(AND(ValuesEntered,ISNUMBER($C156)),SUM(E156:H156,J156:K156),"") -> ¥278,841 | O156: =IF(AND(ValuesEntered,ISNUMBER($C156)),D156-F156-J156,"") -> ¥14,492,658 | R156: 291
B157: =ROWS($B$28:B157) -> 130 | C157: =IF(ValuesEntered,IF(AND(ISNUMBER(O156),R156>0),EDATE(C156,1),""),"") -> 2024-08-01 | D157: =IF(C157="",0,O156) -> ¥14,492,658 | E157: =IF(AND(ValuesEntered,ISNUMBER(C157)),IF($E$16="時間短縮",ROUND(IPMT(VLOOKUP($C157,Rate_table,2,TRUE)/12,1,$R156,$D157)*-1,0),ROUND(IPMT(VLOOKUP($C157,Rate_table,2,TRUE)/12,$B157,DurationOfLoan,LoanAmount-BonusAmount-SUM(extra_payments))*-1,0))+IF($I157=0,0,ROUND(IPMT(VLOOKUP($C157,Rate_table,2,TRUE)/12,COUNTIF($I$28:I157,">0"),DurationofBonus,BonusAmount)*-1,0)),"") -> ¥11,871 | F157: =IF(AND(ValuesEntered,ISNUMBER($C157)),IF($E$16="時間短縮",ROUND(PPMT(VLOOKUP($C157,Rate_table,2,TRUE)/12,1,$R156,$D157)*-1,0),ROUND(PPMT(VLOOKUP($C157,Rate_table,2,TRUE)/12,$B157,DurationOfLoan,LoanAmount-BonusAmount-SUM(extra_payments))*-1,0))+IF(I157=0,0,ROUND(PPMT(VLOOKUP($C157,Rate_table,2,TRUE)/12,COUNTIF($I$28:I157,">0"),DurationofBonus,BonusAmount)*-1,0)),"") -> ¥10,710 | I157: ¥0 | K157: =IF(C157="",0,$Q$7) -> ¥37,500 | L157: =IF(AND(ValuesEntered,ISNUMBER($C157)),SUM(E157:H157,J157:K157),"") -> ¥60,081 | O157: =IF(AND(ValuesEntered,ISNUMBER($C157)),D157-F157-J157,"") -> ¥14,481,948 | R157: =IF(AND($J157>0,$E$16="時間短縮"),Remain_Month,$R156-1) -> 290
B158: =ROWS($B$28:B158) -> 131 | C158: =IF(ValuesEntered,IF(AND(ISNUMBER(O157),R157>0),EDATE(C157,1),""),"") -> 2024-09-01 | D158: ¥14,481,948 | E158: =IF(AND(ValuesEntered,ISNUMBER(C158)),IF($E$16="時間短縮",ROUND(IPMT(VLOOKUP($C158,Rate_table,2,TRUE)/12,1,$R157,$D158)*-1,0),ROUND(IPMT(VLOOKUP($C158,Rate_table,2,TRUE)/12,$B158,DurationOfLoan,LoanAmount-BonusAmount-SUM(extra_payments))*-1,0))+IF($I158=0,0,ROUND(IPMT(VLOOKUP($C158,Rate_table,2,TRUE)/12,COUNTIF($I$28:I158,">0"),DurationofBonus,BonusAmount)*-1,0)),"") -> ¥11,844 | F158: =IF(AND(ValuesEntered,ISNUMBER($C158)),IF($E$16="時間短縮",ROUND(PPMT(VLOOKUP($C158,Rate_table,2,TRUE)/12,1,$R157,$D158)*-1,0),ROUND(PPMT(VLOOKUP($C158,Rate_table,2,TRUE)/12,$B158,DurationOfLoan,LoanAmount-BonusAmount-SUM(extra_payments))*-1,0))+IF(I158=0,0,ROUND(PPMT(VLOOKUP($C158,Rate_table,2,TRUE)/12,COUNTIF($I$28:I158,">0"),DurationofBonus,BonusAmount)*-1,0)),"") -> ¥10,737 | I158: ¥0 | K158: ¥37,500 | L158: =IF(AND(ValuesEntered,ISNUMBER($C158)),SUM(E158:H158,J158:K158),"") -> ¥60,081 | O158: =IF(AND(ValuesEntered,ISNUMBER($C158)),D158-F158-J158,"") -> ¥14,471,211 | R158: 289
B159: =ROWS($B$28:B159) -> 132 | C159: =IF(ValuesEntered,IF(AND(ISNUMBER(O158),R158>0),EDATE(C158,1),""),"") -> 2024-10-01 | D159: ¥14,471,211 | E159: =IF(AND(ValuesEntered,ISNUMBER(C159)),IF($E$16="時間短縮",ROUND(IPMT(VLOOKUP($C159,Rate_table,2,TRUE)/12,1,$R158,$D159)*-1,0),ROUND(IPMT(VLOOKUP($C159,Rate_table,2,TRUE)/12,$B159,DurationOfLoan,LoanAmount-BonusAmount-SUM(extra_payments))*-1,0))+IF($I159=0,0,ROUND(IPMT(VLOOKUP($C159,Rate_table,2,TRUE)/12,COUNTIF($I$28:I159,">0"),DurationofBonus,BonusAmount)*-1,0)),"") -> ¥11,816 | F159: =IF(AND(ValuesEntered,ISNUMBER($C159)),IF($E$16="時間短縮",ROUND(PPMT(VLOOKUP($C159,Rate_table,2,TRUE)/12,1,$R158,$D159)*-1,0),ROUND(PPMT(VLOOKUP($C159,Rate_table,2,TRUE)/12,$B159,DurationOfLoan,LoanAmount-BonusAmount-SUM(extra_payments))*-1,0))+IF(I159=0,0,ROUND(PPMT(VLOOKUP($C159,Rate_table,2,TRUE)/12,COUNTIF($I$28:I159,">0"),DurationofBonus,BonusAmount)*-1,0)),"") -> ¥10,765 | I159: ¥0 | K159: ¥37,500 | L159: =IF(AND(ValuesEntered,ISNUMBER($C159)),SUM(E159:H159,J159:K159),"") -> ¥60,081 | O159: =IF(AND(ValuesEntered,ISNUMBER($C159)),D159-F159-J159,"") -> ¥14,460,446 | R159: 288
B160: =ROWS($B$28:B160) -> 133 | C160: =IF(ValuesEntered,IF(AND(ISNUMBER(O159),R159>0),EDATE(C159,1),""),"") -> 2024-11-01 | D160: ¥14,460,446 | E160: =IF(AND(ValuesEntered,ISNUMBER(C160)),IF($E$16="時間短縮",ROUND(IPMT(VLOOKUP($C160,Rate_table,2,TRUE)/12,1,$R159,$D160)*-1,0),ROUND(IPMT(VLOOKUP($C160,Rate_table,2,TRUE)/12,$B160,DurationOfLoan,LoanAmount-BonusAmount-SUM(extra_payments))*-1,0))+IF($I160=0,0,ROUND(IPMT(VLOOKUP($C160,Rate_table,2,TRUE)/12,COUNTIF($I$28:I160,">0"),DurationofBonus,BonusAmount)*-1,0)),"") -> ¥11,788 | F160: =IF(AND(ValuesEntered,ISNUMBER($C160)),IF($E$16="時間短縮",ROUND(PPMT(VLOOKUP($C160,Rate_table,2,TRUE)/12,1,$R159,$D160)*-1,0),ROUND(PPMT(VLOOKUP($C160,Rate_table,2,TRUE)/12,$B160,DurationOfLoan,LoanAmount-BonusAmount-SUM(extra_payments))*-1,0))+IF(I160=0,0,ROUND(PPMT(VLOOKUP($C160,Rate_table,2,TRUE)/12,COUNTIF($I$28:I160,">0"),DurationofBonus,BonusAmount)*-1,0)),"") -> ¥10,793 | I160: ¥0 | K160: ¥37,500 | L160: =IF(AND(ValuesEntered,ISNUMBER($C160)),SUM(E160:H160,J160:K160),"") -> ¥60,081 | O160: =IF(AND(ValuesEntered,ISNUMBER($C160)),D160-F160-J160,"") -> ¥14,449,653 | R160: 287
B161: =ROWS($B$28:B161) -> 134 | C161: =IF(ValuesEntered,IF(AND(ISNUMBER(O160),R160>0),EDATE(C160,1),""),"") -> 2024-12-01 | D161: ¥14,449,653 | E161: =IF(AND(ValuesEntered,ISNUMBER(C161)),IF($E$16="時間短縮",ROUND(IPMT(VLOOKUP($C161,Rate_table,2,TRUE)/12,1,$R160,$D161)*-1,0),ROUND(IPMT(VLOOKUP($C161,Rate_table,2,TRUE)/12,$B161,DurationOfLoan,LoanAmount-BonusAmount-SUM(extra_payments))*-1,0))+IF($I161=0,0,ROUND(IPMT(VLOOKUP($C161,Rate_table,2,TRUE)/12,COUNTIF($I$28:I161,">0"),DurationofBonus,BonusAmount)*-1,0)),"") -> ¥11,761 | F161: =IF(AND(ValuesEntered,ISNUMBER($C161)),IF($E$16="時間短縮",ROUND(PPMT(VLOOKUP($C161,Rate_table,2,TRUE)/12,1,$R160,$D161)*-1,0),ROUND(PPMT(VLOOKUP($C161,Rate_table,2,TRUE)/12,$B161,DurationOfLoan,LoanAmount-BonusAmount-SUM(extra_payments))*-1,0))+IF(I161=0,0,ROUND(PPMT(VLOOKUP($C161,Rate_table,2,TRUE)/12,COUNTIF($I$28:I161,">0"),DurationofBonus,BonusAmount)*-1,0)),"") -> ¥10,820 | I161: ¥0 | K161: ¥37,500 | L161: =IF(AND(ValuesEntered,ISNUMBER($C161)),SUM(E161:H161,J161:K161),"") -> ¥60,081 | O161: =IF(AND(ValuesEntered,ISNUMBER($C161)),D161-F161-J161,"") -> ¥14,438,833 | R161: 286
B162: =ROWS($B$28:B162) -> 135 | C162: =IF(ValuesEntered,IF(AND(ISNUMBER(O161),R161>0),EDATE(C161,1),""),"") -> 2025-01-01 | D162: ¥14,438,833 | E162: =IF(AND(ValuesEntered,ISNUMBER(C162)),IF($E$16="時間短縮",ROUND(IPMT(VLOOKUP($C162,Rate_table,2,TRUE)/12,1,$R161,$D162)*-1,0),ROUND(IPMT(VLOOKUP($C162,Rate_table,2,TRUE)/12,$B162,DurationOfLoan,LoanAmount-BonusAmount-SUM(extra_payments))*-1,0))+IF($I162=0,0,ROUND(IPMT(VLOOKUP($C162,Rate_table,2,TRUE)/12,COUNTIF($I$28:I162,">0"),DurationofBonus,BonusAmount)*-1,0)),"") -> ¥11,733 | F162: =IF(AND(ValuesEntered,ISNUMBER($C162)),IF($E$16="時間短縮",ROUND(PPMT(VLOOKUP($C162,Rate_table,2,TRUE)/12,1,$R161,$D162)*-1,0),ROUND(PPMT(VLOOKUP($C162,Rate_table,2,TRUE)/12,$B162,DurationOfLoan,LoanAmount-BonusAmount-SUM(extra_payments))*-1,0))+IF(I162=0,0,ROUND(PPMT(VLOOKUP($C162,Rate_table,2,TRUE)/12,COUNTIF($I$28:I162,">0"),DurationofBonus,BonusAmount)*-1,0)),"") -> ¥10,848 | I162: ¥0 | K162: ¥37,500 | L162: =IF(AND(ValuesEntered,ISNUMBER($C162)),SUM(E162:H162,J162:K162),"") -> ¥60,081 | O162: =IF(AND(ValuesEntered,ISNUMBER($C162)),D162-F162-J162,"") -> ¥14,427,985 | R162: 285
B163: =ROWS($B$28:B163) -> 136 | C163: =IF(ValuesEntered,IF(AND(ISNUMBER(O162),R162>0),EDATE(C162,1),""),"") -> 2025-02-01 | D163: ¥14,427,985 | E163: =IF(AND(ValuesEntered,ISNUMBER(C163)),IF($E$16="時間短縮",ROUND(IPMT(VLOOKUP($C163,Rate_table,2,TRUE)/12,1,$R162,$D163)*-1,0),ROUND(IPMT(VLOOKUP($C163,Rate_table,2,TRUE)/12,$B163,DurationOfLoan,LoanAmount-BonusAmount-SUM(extra_payments))*-1,0))+IF($I163=0,0,ROUND(IPMT(VLOOKUP($C163,Rate_table,2,TRUE)/12,COUNTIF($I$28:I163,">0"),DurationofBonus,BonusAmount)*-1,0)),"") -> ¥11,705 | F163: =IF(AND(ValuesEntered,ISNUMBER($C163)),IF($E$16="時間短縮",ROUND(PPMT(VLOOKUP($C163,Rate_table,2,TRUE)/12,1,$R162,$D163)*-1,0),ROUND(PPMT(VLOOKUP($C163,Rate_table,2,TRUE)/12,$B163,DurationOfLoan,LoanAmount-BonusAmount-SUM(extra_payments))*-1,0))+IF(I163=0,0,ROUND(PPMT(VLOOKUP($C163,Rate_table,2,TRUE)/12,COUNTIF($I$28:I163,">0"),DurationofBonus,BonusAmount)*-1,0)),"") -> ¥10,876 | I163: ¥0 | K163: ¥37,500 | L163: =IF(AND(ValuesEntered,ISNUMBER($C163)),SUM(E163:H163,J163:K163),"") -> ¥60,081 | O163: =IF(AND(ValuesEntered,ISNUMBER($C163)),D163-F163-J163,"") -> ¥14,417,109 | R163: 284
B164: =ROWS($B$28:B164) -> 137 | C164: =IF(ValuesEntered,IF(AND(ISNUMBER(O163),R163>0),EDATE(C163,1),""),"") -> 2025-03-01 | D164: ¥14,417,109 | E164: =IF(AND(ValuesEntered,ISNUMBER(C164)),IF($E$16="時間短縮",ROUND(IPMT(VLOOKUP($C164,Rate_table,2,TRUE)/12,1,$R163,$D164)*-1,0),ROUND(IPMT(VLOOKUP($C164,Rate_table,2,TRUE)/12,$B164,DurationOfLoan,LoanAmount-BonusAmount-SUM(extra_payments))*-1,0))+IF($I164=0,0,ROUND(IPMT(VLOOKUP($C164,Rate_table,2,TRUE)/12,COUNTIF($I$28:I164,">0"),DurationofBonus,BonusAmount)*-1,0)),"") -> ¥11,677 | F164: =IF(AND(ValuesEntered,ISNUMBER($C164)),IF($E$16="時間短縮",ROUND(PPMT(VLOOKUP($C164,Rate_table,2,TRUE)/12,1,$R163,$D164)*-1,0),ROUND(PPMT(VLOOKUP($C164,Rate_table,2,TRUE)/12,$B164,DurationOfLoan,LoanAmount-BonusAmount-SUM(extra_payments))*-1,0))+IF(I164=0,0,ROUND(PPMT(VLOOKUP($C164,Rate_table,2,TRUE)/12,COUNTIF($I$28:I164,">0"),DurationofBonus,BonusAmount)*-1,0)),"") -> ¥10,904 | I164: ¥0 | K164: ¥37,500 | L164: =IF(AND(ValuesEntered,ISNUMBER($C164)),SUM(E164:H164,J164:K164),"") -> ¥60,081 | O164: =IF(AND(ValuesEntered,ISNUMBER($C164)),D164-F164-J164,"") -> ¥14,406,205 | R164: 283
B165: =ROWS($B$28:B165) -> 138 | C165: =IF(ValuesEntered,IF(AND(ISNUMBER(O164),R164>0),EDATE(C164,1),""),"") -> 2025-04-01 | D165: ¥14,406,205 | E165: =IF(AND(ValuesEntered,ISNUMBER(C165)),IF($E$16="時間短縮",ROUND(IPMT(VLOOKUP($C165,Rate_table,2,TRUE)/12,1,$R164,$D165)*-1,0),ROUND(IPMT(VLOOKUP($C165,Rate_table,2,TRUE)/12,$B165,DurationOfLoan,LoanAmount-BonusAmount-SUM(extra_payments))*-1,0))+IF($I165=0,0,ROUND(IPMT(VLOOKUP($C165,Rate_table,2,TRUE)/12,COUNTIF($I$28:I165,">0"),DurationofBonus,BonusAmount)*-1,0)),"") -> ¥36,976 | F165: =IF(AND(ValuesEntered,ISNUMBER($C165)),IF($E$16="時間短縮",ROUND(PPMT(VLOOKUP($C165,Rate_table,2,TRUE)/12,1,$R164,$D165)*-1,0),ROUND(PPMT(VLOOKUP($C165,Rate_table,2,TRUE)/12,$B165,DurationOfLoan,LoanAmount-BonusAmount-SUM(extra_payments))*-1,0))+IF(I165=0,0,ROUND(PPMT(VLOOKUP($C165,Rate_table,2,TRUE)/12,COUNTIF($I$28:I165,">0"),DurationofBonus,BonusAmount)*-1,0)),"") -> ¥204,366 | I165: ¥200,000 | K165: ¥37,500 | L165: =IF(AND(ValuesEntered,ISNUMBER($C165)),SUM(E165:H165,J165:K165),"") -> ¥278,842 | O165: =IF(AND(ValuesEntered,ISNUMBER($C165)),D165-F165-J165,"") -> ¥14,201,839 | R165: 282
B166: =ROWS($B$28:B166) -> 139 | C166: =IF(ValuesEntered,IF(AND(ISNUMBER(O165),R165>0),EDATE(C165,1),""),"") -> 2025-05-01 | D166: ¥14,201,839 | E166: =IF(AND(ValuesEntered,ISNUMBER(C166)),IF($E$16="時間短縮",ROUND(IPMT(VLOOKUP($C166,Rate_table,2,TRUE)/12,1,$R165,$D166)*-1,0),ROUND(IPMT(VLOOKUP($C166,Rate_table,2,TRUE)/12,$B166,DurationOfLoan,LoanAmount-BonusAmount-SUM(extra_payments))*-1,0))+IF($I166=0,0,ROUND(IPMT(VLOOKUP($C166,Rate_table,2,TRUE)/12,COUNTIF($I$28:I166,">0"),DurationofBonus,BonusAmount)*-1,0)),"") -> ¥11,621 | F166: =IF(AND(ValuesEntered,ISNUMBER($C166)),IF($E$16="時間短縮",ROUND(PPMT(VLOOKUP($C166,Rate_table,2,TRUE)/12,1,$R165,$D166)*-1,0),ROUND(PPMT(VLOOKUP($C166,Rate_table,2,TRUE)/12,$B166,DurationOfLoan,LoanAmount-BonusAmount-SUM(extra_payments))*-1,0))+IF(I166=0,0,ROUND(PPMT(VLOOKUP($C166,Rate_table,2,TRUE)/12,COUNTIF($I$28:I166,">0"),DurationofBonus,BonusAmount)*-1,0)),"") -> ¥10,960 | I166: ¥0 | K166: ¥37,500 | L166: =IF(AND(ValuesEntered,ISNUMBER($C166)),SUM(E166:H166,J166:K166),"") -> ¥60,081 | O166: =IF(AND(ValuesEntered,ISNUMBER($C166)),D166-F166-J166,"") -> ¥14,190,879 | R166: 281
B167: =ROWS($B$28:B167) -> 140 | C167: =IF(ValuesEntered,IF(AND(ISNUMBER(O166),R166>0),EDATE(C166,1),""),"") -> 2025-06-01 | D167: ¥14,190,879 | E167: =IF(AND(ValuesEntered,ISNUMBER(C167)),IF($E$16="時間短縮",ROUND(IPMT(VLOOKUP($C167,Rate_table,2,TRUE)/12,1,$R166,$D167)*-1,0),ROUND(IPMT(VLOOKUP($C167,Rate_table,2,TRUE)/12,$B167,DurationOfLoan,LoanAmount-BonusAmount-SUM(extra_payments))*-1,0))+IF($I167=0,0,ROUND(IPMT(VLOOKUP($C167,Rate_table,2,TRUE)/12,COUNTIF($I$28:I167,">0"),DurationofBonus,BonusAmount)*-1,0)),"") -> ¥11,593 | F167: =IF(AND(ValuesEntered,ISNUMBER($C167)),IF($E$16="時間短縮",ROUND(PPMT(VLOOKUP($C167,Rate_table,2,TRUE)/12,1,$R166,$D167)*-1,0),ROUND(PPMT(VLOOKUP($C167,Rate_table,2,TRUE)/12,$B167,DurationOfLoan,LoanAmount-BonusAmount-SUM(extra_payments))*-1,0))+IF(I167=0,0,ROUND(PPMT(VLOOKUP($C167,Rate_table,2,TRUE)/12,COUNTIF($I$28:I167,">0"),DurationofBonus,BonusAmount)*-1,0)),"") -> ¥10,988 | I167: ¥0 | K167: ¥37,500 | L167: =IF(AND(ValuesEntered,ISNUMBER($C167)),SUM(E167:H167,J167:K167),"") -> ¥60,081 | O167: =IF(AND(ValuesEntered,ISNUMBER($C167)),D167-F167-J167,"") -> ¥14,179,891 | R167: 280
B168: =ROWS($B$28:B168) -> 141 | C168: =IF(ValuesEntered,IF(AND(ISNUMBER(O167),R167>0),EDATE(C167,1),""),"") -> 2025-07-01 | D168: ¥14,179,891 | E168: =IF(AND(ValuesEntered,ISNUMBER(C168)),IF($E$16="時間短縮",ROUND(IPMT(VLOOKUP($C168,Rate_table,2,TRUE)/12,1,$R167,$D168)*-1,0),ROUND(IPMT(VLOOKUP($C168,Rate_table,2,TRUE)/12,$B168,DurationOfLoan,LoanAmount-BonusAmount-SUM(extra_payments))*-1,0))+IF($I168=0,0,ROUND(IPMT(VLOOKUP($C168,Rate_table,2,TRUE)/12,COUNTIF($I$28:I168,">0"),DurationofBonus,BonusAmount)*-1,0)),"") -> ¥36,395 | F168: =IF(AND(ValuesEntered,ISNUMBER($C168)),IF($E$16="時間短縮",ROUND(PPMT(VLOOKUP($C168,Rate_table,2,TRUE)/12,1,$R167,$D168)*-1,0),ROUND(PPMT(VLOOKUP($C168,Rate_table,2,TRUE)/12,$B168,DurationOfLoan,LoanAmount-BonusAmount-SUM(extra_payments))*-1,0))+IF(I168=0,0,ROUND(PPMT(VLOOKUP($C168,Rate_table,2,TRUE)/12,COUNTIF($I$28:I168,">0"),DurationofBonus,BonusAmount)*-1,0)),"") -> ¥204,946 | I168: ¥200,000 | K168: ¥37,500 | L168: =IF(AND(ValuesEntered,ISNUMBER($C168)),SUM(E168:H168,J168:K168),"") -> ¥278,841 | O168: =IF(AND(ValuesEntered,ISNUMBER($C168)),D168-F168-J168,"") -> ¥13,974,945 | R168: 279
B169: =ROWS($B$28:B169) -> 142 | C169: =IF(ValuesEntered,IF(AND(ISNUMBER(O168),R168>0),EDATE(C168,1),""),"") -> 2025-08-01 | D169: ¥13,974,945 | E169: =IF(AND(ValuesEntered,ISNUMBER(C169)),IF($E$16="時間短縮",ROUND(IPMT(VLOOKUP($C169,Rate_table,2,TRUE)/12,1,$R168,$D169)*-1,0),ROUND(IPMT(VLOOKUP($C169,Rate_table,2,TRUE)/12,$B169,DurationOfLoan,LoanAmount-BonusAmount-SUM(extra_payments))*-1,0))+IF($I169=0,0,ROUND(IPMT(VLOOKUP($C169,Rate_table,2,TRUE)/12,COUNTIF($I$28:I169,">0"),DurationofBonus,BonusAmount)*-1,0)),"") -> ¥11,537 | F169: =IF(AND(ValuesEntered,ISNUMBER($C169)),IF($E$16="時間短縮",ROUND(PPMT(VLOOKUP($C169,Rate_table,2,TRUE)/12,1,$R168,$D169)*-1,0),ROUND(PPMT(VLOOKUP($C169,Rate_table,2,TRUE)/12,$B169,DurationOfLoan,LoanAmount-BonusAmount-SUM(extra_payments))*-1,0))+IF(I169=0,0,ROUND(PPMT(VLOOKUP($C169,Rate_table,2,TRUE)/12,COUNTIF($I$28:I169,">0"),DurationofBonus,BonusAmount)*-1,0)),"") -> ¥11,044 | I169: ¥0 | K169: ¥37,500 | L169: =IF(AND(ValuesEntered,ISNUMBER($C169)),SUM(E169:H169,J169:K169),"") -> ¥60,081 | O169: =IF(AND(ValuesEntered,ISNUMBER($C169)),D169-F169-J169,"") -> ¥13,963,901 | R169: 278
B170: =ROWS($B$28:B170) -> 143 | C170: =IF(ValuesEntered,IF(AND(ISNUMBER(O169),R169>0),EDATE(C169,1),""),"") -> 2025-09-01 | D170: ¥13,963,901 | E170: =IF(AND(ValuesEntered,ISNUMBER(C170)),IF($E$16="時間短縮",ROUND(IPMT(VLOOKUP($C170,Rate_table,2,TRUE)/12,1,$R169,$D170)*-1,0),ROUND(IPMT(VLOOKUP($C170,Rate_table,2,TRUE)/12,$B170,DurationOfLoan,LoanAmount-BonusAmount-SUM(extra_payments))*-1,0))+IF($I170=0,0,ROUND(IPMT(VLOOKUP($C170,Rate_table,2,TRUE)/12,COUNTIF($I$28:I170,">0"),DurationofBonus,BonusAmount)*-1,0)),"") -> ¥11,508 | F170: =IF(AND(ValuesEntered,ISNUMBER($C170)),IF($E$16="時間短縮",ROUND(PPMT(VLOOKUP($C170,Rate_table,2,TRUE)/12,1,$R169,$D170)*-1,0),ROUND(PPMT(VLOOKUP($C170,Rate_table,2,TRUE)/12,$B170,DurationOfLoan,LoanAmount-BonusAmount-SUM(extra_payments))*-1,0))+IF(I170=0,0,ROUND(PPMT(VLOOKUP($C170,Rate_table,2,TRUE)/12,COUNTIF($I$28:I170,">0"),DurationofBonus,BonusAmount)*-1,0)),"") -> ¥11,073 | I170: ¥0 | K170: ¥37,500 | L170: =IF(AND(ValuesEntered,ISNUMBER($C170)),SUM(E170:H170,J170:K170),"") -> ¥60,081 | O170: =IF(AND(ValuesEntered,ISNUMBER($C170)),D170-F170-J170,"") -> ¥13,952,828 | R170: 277
B171: =ROWS($B$28:B171) -> 144 | C171: =IF(ValuesEntered,IF(AND(ISNUMBER(O170),R170>0),EDATE(C170,1),""),"") -> 2025-10-01 | D171: ¥13,952,828 | E171: =IF(AND(ValuesEntered,ISNUMBER(C171)),IF($E$16="時間短縮",ROUND(IPMT(VLOOKUP($C171,Rate_table,2,TRUE)/12,1,$R170,$D171)*-1,0),ROUND(IPMT(VLOOKUP($C171,Rate_table,2,TRUE)/12,$B171,DurationOfLoan,LoanAmount-BonusAmount-SUM(extra_payments))*-1,0))+IF($I171=0,0,ROUND(IPMT(VLOOKUP($C171,Rate_table,2,TRUE)/12,COUNTIF($I$28:I171,">0"),DurationofBonus,BonusAmount)*-1,0)),"") -> ¥11,480 | F171: =IF(AND(ValuesEntered,ISNUMBER($C171)),IF($E$16="時間短縮",ROUND(PPMT(VLOOKUP($C171,Rate_table,2,TRUE)/12,1,$R170,$D171)*-1,0),ROUND(PPMT(VLOOKUP($C171,Rate_table,2,TRUE)/12,$B171,DurationOfLoan,LoanAmount-BonusAmount-SUM(extra_payments))*-1,0))+IF(I171=0,0,ROUND(PPMT(VLOOKUP($C171,Rate_table,2,TRUE)/12,COUNTIF($I$28:I171,">0"),DurationofBonus,BonusAmount)*-1,0)),"") -> ¥11,101 | I171: ¥0 | K171: ¥37,500 | L171: =IF(AND(ValuesEntered,ISNUMBER($C171)),SUM(E171:H171,J171:K171),"") -> ¥60,081 | O171: =IF(AND(ValuesEntered,ISNUMBER($C171)),D171-F171-J171,"") -> ¥13,941,727 | R171: 276
B172: =ROWS($B$28:B172) -> 145 | C172: =IF(ValuesEntered,IF(AND(ISNUMBER(O171),R171>0),EDATE(C171,1),""),"") -> 2025-11-01 | D172: ¥13,941,727 | E172: =IF(AND(ValuesEntered,ISNUMBER(C172)),IF($E$16="時間短縮",ROUND(IPMT(VLOOKUP($C172,Rate_table,2,TRUE)/12,1,$R171,$D172)*-1,0),ROUND(IPMT(VLOOKUP($C172,Rate_table,2,TRUE)/12,$B172,DurationOfLoan,LoanAmount-BonusAmount-SUM(extra_payments))*-1,0))+IF($I172=0,0,ROUND(IPMT(VLOOKUP($C172,Rate_table,2,TRUE)/12,COUNTIF($I$28:I172,">0"),DurationofBonus,BonusAmount)*-1,0)),"") -> ¥11,451 | F172: =IF(AND(ValuesEntered,ISNUMBER($C172)),IF($E$16="時間短縮",ROUND(PPMT(VLOOKUP($C172,Rate_table,2,TRUE)/12,1,$R171,$D172)*-1,0),ROUND(PPMT(VLOOKUP($C172,Rate_table,2,TRUE)/12,$B172,DurationOfLoan,LoanAmount-BonusAmount-SUM(extra_payments))*-1,0))+IF(I172=0,0,ROUND(PPMT(VLOOKUP($C172,Rate_table,2,TRUE)/12,COUNTIF($I$28:I172,">0"),DurationofBonus,BonusAmount)*-1,0)),"") -> ¥11,130 | I172: ¥0 | K172: ¥37,500 | L172: =IF(AND(ValuesEntered,ISNUMBER($C172)),SUM(E172:H172,J172:K172),"") -> ¥60,081 | O172: =IF(AND(ValuesEntered,ISNUMBER($C172)),D172-F172-J172,"") -> ¥13,930,597 | R172: 275
B173: =ROWS($B$28:B173) -> 146 | C173: =IF(ValuesEntered,IF(AND(ISNUMBER(O172),R172>0),EDATE(C172,1),""),"") -> 2025-12-01 | D173: ¥13,930,597 | E173: =IF(AND(ValuesEntered,ISNUMBER(C173)),IF($E$16="時間短縮",ROUND(IPMT(VLOOKUP($C173,Rate_table,2,TRUE)/12,1,$R172,$D173)*-1,0),ROUND(IPMT(VLOOKUP($C173,Rate_table,2,TRUE)/12,$B173,DurationOfLoan,LoanAmount-BonusAmount-SUM(extra_payments))*-1,0))+IF($I173=0,0,ROUND(IPMT(VLOOKUP($C173,Rate_table,2,TRUE)/12,COUNTIF($I$28:I173,">0"),DurationofBonus,BonusAmount)*-1,0)),"") -> ¥11,423 | F173: =IF(AND(ValuesEntered,ISNUMBER($C173)),IF($E$16="時間短縮",ROUND(PPMT(VLOOKUP($C173,Rate_table,2,TRUE)/12,1,$R172,$D173)*-1,0),ROUND(PPMT(VLOOKUP($C173,Rate_table,2,TRUE)/12,$B173,DurationOfLoan,LoanAmount-BonusAmount-SUM(extra_payments))*-1,0))+IF(I173=0,0,ROUND(PPMT(VLOOKUP($C173,Rate_table,2,TRUE)/12,COUNTIF($I$28:I173,">0"),DurationofBonus,BonusAmount)*-1,0)),"") -> ¥11,158 | I173: ¥0 | K173: ¥37,500 | L173: =IF(AND(ValuesEntered,ISNUMBER($C173)),SUM(E173:H173,J173:K173),"") -> ¥60,081 | O173: =IF(AND(ValuesEntered,ISNUMBER($C173)),D173-F173-J173,"") -> ¥13,919,439 | R173: 274
B174: =ROWS($B$28:B174) -> 147 | C174: =IF(ValuesEntered,IF(AND(ISNUMBER(O173),R173>0),EDATE(C173,1),""),"") -> 2026-01-01 | D174: ¥13,919,439 | E174: =IF(AND(ValuesEntered,ISNUMBER(C174)),IF($E$16="時間短縮",ROUND(IPMT(VLOOKUP($C174,Rate_table,2,TRUE)/12,1,$R173,$D174)*-1,0),ROUND(IPMT(VLOOKUP($C174,Rate_table,2,TRUE)/12,$B174,DurationOfLoan,LoanAmount-BonusAmount-SUM(extra_payments))*-1,0))+IF($I174=0,0,ROUND(IPMT(VLOOKUP($C174,Rate_table,2,TRUE)/12,COUNTIF($I$28:I174,">0"),DurationofBonus,BonusAmount)*-1,0)),"") -> ¥11,394 | F174: =IF(AND(ValuesEntered,ISNUMBER($C174)),IF($E$16="時間短縮",ROUND(PPMT(VLOOKUP($C174,Rate_table,2,TRUE)/12,1,$R173,$D174)*-1,0),ROUND(PPMT(VLOOKUP($C174,Rate_table,2,TRUE)/12,$B174,DurationOfLoan,LoanAmount-BonusAmount-SUM(extra_payments))*-1,0))+IF(I174=0,0,ROUND(PPMT(VLOOKUP($C174,Rate_table,2,TRUE)/12,COUNTIF($I$28:I174,">0"),DurationofBonus,BonusAmount)*-1,0)),"") -> ¥11,187 | I174: ¥0 | K174: ¥37,500 | L174: =IF(AND(ValuesEntered,ISNUMBER($C174)),SUM(E174:H174,J174:K174),"") -> ¥60,081 | O174: =IF(AND(ValuesEntered,ISNUMBER($C174)),D174-F174-J174,"") -> ¥13,908,252 | R174: 273
B175: =ROWS($B$28:B175) -> 148 | C175: =IF(ValuesEntered,IF(AND(ISNUMBER(O174),R174>0),EDATE(C174,1),""),"") -> 2026-02-01 | D175: ¥13,908,252 | E175: =IF(AND(ValuesEntered,ISNUMBER(C175)),IF($E$16="時間短縮",ROUND(IPMT(VLOOKUP($C175,Rate_table,2,TRUE)/12,1,$R174,$D175)*-1,0),ROUND(IPMT(VLOOKUP($C175,Rate_table,2,TRUE)/12,$B175,DurationOfLoan,LoanAmount-BonusAmount-SUM(extra_payments))*-1,0))+IF($I175=0,0,ROUND(IPMT(VLOOKUP($C175,Rate_table,2,TRUE)/12,COUNTIF($I$28:I175,">0"),DurationofBonus,BonusAmount)*-1,0)),"") -> ¥11,365 | F175: =IF(AND(ValuesEntered,ISNUMBER($C175)),IF($E$16="時間短縮",ROUND(PPMT(VLOOKUP($C175,Rate_table,2,TRUE)/12,1,$R174,$D175)*-1,0),ROUND(PPMT(VLOOKUP($C175,Rate_table,2,TRUE)/12,$B175,DurationOfLoan,LoanAmount-BonusAmount-SUM(extra_payments))*-1,0))+IF(I175=0,0,ROUND(PPMT(VLOOKUP($C175,Rate_table,2,TRUE)/12,COUNTIF($I$28:I175,">0"),DurationofBonus,BonusAmount)*-1,0)),"") -> ¥11,216 | I175: ¥0 | K175: ¥37,500 | L175: =IF(AND(ValuesEntered,ISNUMBER($C175)),SUM(E175:H175,J175:K175),"") -> ¥60,081 | O175: =IF(AND(ValuesEntered,ISNUMBER($C175)),D175-F175-J175,"") -> ¥13,897,036 | R175: 272
B176: =ROWS($B$28:B176) -> 149 | C176: =IF(ValuesEntered,IF(AND(ISNUMBER(O175),R175>0),EDATE(C175,1),""),"") -> 2026-03-01 | D176: ¥13,897,036 | E176: =IF(AND(ValuesEntered,ISNUMBER(C176)),IF($E$16="時間短縮",ROUND(IPMT(VLOOKUP($C176,Rate_table,2,TRUE)/12,1,$R175,$D176)*-1,0),ROUND(IPMT(VLOOKUP($C176,Rate_table,2,TRUE)/12,$B176,DurationOfLoan,LoanAmount-BonusAmount-SUM(extra_payments))*-1,0))+IF($I176=0,0,ROUND(IPMT(VLOOKUP($C176,Rate_table,2,TRUE)/12,COUNTIF($I$28:I176,">0"),DurationofBonus,BonusAmount)*-1,0)),"") -> ¥11,337 | F176: =IF(AND(ValuesEntered,ISNUMBER($C176)),IF($E$16="時間短縮",ROUND(PPMT(VLOOKUP($C176,Rate_table,2,TRUE)/12,1,$R175,$D176)*-1,0),ROUND(PPMT(VLOOKUP($C176,Rate_table,2,TRUE)/12,$B176,DurationOfLoan,LoanAmount-BonusAmount-SUM(extra_payments))*-1,0))+IF(I176=0,0,ROUND(PPMT(VLOOKUP($C176,Rate_table,2,TRUE)/12,COUNTIF($I$28:I176,">0"),DurationofBonus,BonusAmount)*-1,0)),"") -> ¥11,244 | I176: ¥0 | K176: ¥37,500 | L176: =IF(AND(ValuesEntered,ISNUMBER($C176)),SUM(E176:H176,J176:K176),"") -> ¥60,081 | O176: =IF(AND(ValuesEntered,ISNUMBER($C176)),D176-F176-J176,"") -> ¥13,885,792 | R176: 271
B177: =ROWS($B$28:B177) -> 150 | C177: =IF(ValuesEntered,IF(AND(ISNUMBER(O176),R176>0),EDATE(C176,1),""),"") -> 2026-04-01 | D177: ¥13,885,792 | E177: =IF(AND(ValuesEntered,ISNUMBER(C177)),IF($E$16="時間短縮",ROUND(IPMT(VLOOKUP($C177,Rate_table,2,TRUE)/12,1,$R176,$D177)*-1,0),ROUND(IPMT(VLOOKUP($C177,Rate_table,2,TRUE)/12,$B177,DurationOfLoan,LoanAmount-BonusAmount-SUM(extra_payments))*-1,0))+IF($I177=0,0,ROUND(IPMT(VLOOKUP($C177,Rate_table,2,TRUE)/12,COUNTIF($I$28:I177,">0"),DurationofBonus,BonusAmount)*-1,0)),"") -> ¥35,640 | F177: =IF(AND(ValuesEntered,ISNUMBER($C177)),IF($E$16="時間短縮",ROUND(PPMT(VLOOKUP($C177,Rate_table,2,TRUE)/12,1,$R176,$D177)*-1,0),ROUND(PPMT(VLOOKUP($C177,Rate_table,2,TRUE)/12,$B177,DurationOfLoan,LoanAmount-BonusAmount-SUM(extra_payments))*-1,0))+IF(I177=0,0,ROUND(PPMT(VLOOKUP($C177,Rate_table,2,TRUE)/12,COUNTIF($I$28:I177,">0"),DurationofBonus,BonusAmount)*-1,0)),"") -> ¥205,701 | I177: ¥200,000 | K177: ¥37,500 | L177: =IF(AND(ValuesEntered,ISNUMBER($C177)),SUM(E177:H177,J177:K177),"") -> ¥278,841 | O177: =IF(AND(ValuesEntered,ISNUMBER($C177)),D177-F177-J177,"") -> ¥13,680,091 | R177: 270
B178: =ROWS($B$28:B178) -> 151 | C178: =IF(ValuesEntered,IF(AND(ISNUMBER(O177),R177>0),EDATE(C177,1),""),"") -> 2026-05-01 | D178: ¥13,680,091 | E178: =IF(AND(ValuesEntered,ISNUMBER(C178)),IF($E$16="時間短縮",ROUND(IPMT(VLOOKUP($C178,Rate_table,2,TRUE)/12,1,$R177,$D178)*-1,0),ROUND(IPMT(VLOOKUP($C178,Rate_table,2,TRUE)/12,$B178,DurationOfLoan,LoanAmount-BonusAmount-SUM(extra_payments))*-1,0))+IF($I178=0,0,ROUND(IPMT(VLOOKUP($C178,Rate_table,2,TRUE)/12,COUNTIF($I$28:I178,">0"),DurationofBonus,BonusAmount)*-1,0)),"") -> ¥11,279 | F178: =IF(AND(ValuesEntered,ISNUMBER($C178)),IF($E$16="時間短縮",ROUND(PPMT(VLOOKUP($C178,Rate_table,2,TRUE)/12,1,$R177,$D178)*-1,0),ROUND(PPMT(VLOOKUP($C178,Rate_table,2,TRUE)/12,$B178,DurationOfLoan,LoanAmount-BonusAmount-SUM(extra_payments))*-1,0))+IF(I178=0,0,ROUND(PPMT(VLOOKUP($C178,Rate_table,2,TRUE)/12,COUNTIF($I$28:I178,">0"),DurationofBonus,BonusAmount)*-1,0)),"") -> ¥11,302 | I178: ¥0 | K178: ¥37,500 | L178: =IF(AND(ValuesEntered,ISNUMBER($C178)),SUM(E178:H178,J178:K178),"") -> ¥60,081 | O178: =IF(AND(ValuesEntered,ISNUMBER($C178)),D178-F178-J178,"") -> ¥13,668,789 | R178: 269
B179: =ROWS($B$28:B179) -> 152 | C179: =IF(ValuesEntered,IF(AND(ISNUMBER(O178),R178>0),EDATE(C178,1),""),"") -> 2026-06-01 | D179: ¥13,668,789 | E179: =IF(AND(ValuesEntered,ISNUMBER(C179)),IF($E$16="時間短縮",ROUND(IPMT(VLOOKUP($C179,Rate_table,2,TRUE)/12,1,$R178,$D179)*-1,0),ROUND(IPMT(VLOOKUP($C179,Rate_table,2,TRUE)/12,$B179,DurationOfLoan,LoanAmount-BonusAmount-SUM(extra_payments))*-1,0))+IF($I179=0,0,ROUND(IPMT(VLOOKUP($C179,Rate_table,2,TRUE)/12,COUNTIF($I$28:I179,">0"),DurationofBonus,BonusAmount)*-1,0)),"") -> ¥11,250 | F179: =IF(AND(ValuesEntered,ISNUMBER($C179)),IF($E$16="時間短縮",ROUND(PPMT(VLOOKUP($C179,Rate_table,2,TRUE)/12,1,$R178,$D179)*-1,0),ROUND(PPMT(VLOOKUP($C179,Rate_table,2,TRUE)/12,$B179,DurationOfLoan,LoanAmount-BonusAmount-SUM(extra_payments))*-1,0))+IF(I179=0,0,ROUND(PPMT(VLOOKUP($C179,Rate_table,2,TRUE)/12,COUNTIF($I$28:I179,">0"),DurationofBonus,BonusAmount)*-1,0)),"") -> ¥11,331 | I179: ¥0 | K179: ¥37,500 | L179: =IF(AND(ValuesEntered,ISNUMBER($C179)),SUM(E179:H179,J179:K179),"") -> ¥60,081 | O179: =IF(AND(ValuesEntered,ISNUMBER($C179)),D179-F179-J179,"") -> ¥13,657,458 | R179: 268
B180: =ROWS($B$28:B180) -> 153 | C180: =IF(ValuesEntered,IF(AND(ISNUMBER(O179),R179>0),EDATE(C179,1),""),"") -> 2026-07-01 | D180: ¥13,657,458 | E180: =IF(AND(ValuesEntered,ISNUMBER(C180)),IF($E$16="時間短縮",ROUND(IPMT(VLOOKUP($C180,Rate_table,2,TRUE)/12,1,$R179,$D180)*-1,0),ROUND(IPMT(VLOOKUP($C180,Rate_table,2,TRUE)/12,$B180,DurationOfLoan,LoanAmount-BonusAmount-SUM(extra_payments))*-1,0))+IF($I180=0,0,ROUND(IPMT(VLOOKUP($C180,Rate_table,2,TRUE)/12,COUNTIF($I$28:I180,">0"),DurationofBonus,BonusAmount)*-1,0)),"") -> ¥35,054 | F180: =IF(AND(ValuesEntered,ISNUMBER($C180)),IF($E$16="時間短縮",ROUND(PPMT(VLOOKUP($C180,Rate_table,2,TRUE)/12,1,$R179,$D180)*-1,0),ROUND(PPMT(VLOOKUP($C180,Rate_table,2,TRUE)/12,$B180,DurationOfLoan,LoanAmount-BonusAmount-SUM(extra_payments))*-1,0))+IF(I180=0,0,ROUND(PPMT(VLOOKUP($C180,Rate_table,2,TRUE)/12,COUNTIF($I$28:I180,">0"),DurationofBonus,BonusAmount)*-1,0)),"") -> ¥206,287 | I180: ¥200,000 | K180: ¥37,500 | L180: =IF(AND(ValuesEntered,ISNUMBER($C180)),SUM(E180:H180,J180:K180),"") -> ¥278,841 | O180: =IF(AND(ValuesEntered,ISNUMBER($C180)),D180-F180-J180,"") -> ¥13,451,171 | R180: 267
B181: =ROWS($B$28:B181) -> 154 | C181: =IF(ValuesEntered,IF(AND(ISNUMBER(O180),R180>0),EDATE(C180,1),""),"") -> 2026-08-01 | D181: ¥13,451,171 | E181: =IF(AND(ValuesEntered,ISNUMBER(C181)),IF($E$16="時間短縮",ROUND(IPMT(VLOOKUP($C181,Rate_table,2,TRUE)/12,1,$R180,$D181)*-1,0),ROUND(IPMT(VLOOKUP($C181,Rate_table,2,TRUE)/12,$B181,DurationOfLoan,LoanAmount-BonusAmount-SUM(extra_payments))*-1,0))+IF($I181=0,0,ROUND(IPMT(VLOOKUP($C181,Rate_table,2,TRUE)/12,COUNTIF($I$28:I181,">0"),DurationofBonus,BonusAmount)*-1,0)),"") -> ¥11,192 | F181: =IF(AND(ValuesEntered,ISNUMBER($C181)),IF($E$16="時間短縮",ROUND(PPMT(VLOOKUP($C181,Rate_table,2,TRUE)/12,1,$R180,$D181)*-1,0),ROUND(PPMT(VLOOKUP($C181,Rate_table,2,TRUE)/12,$B181,DurationOfLoan,LoanAmount-BonusAmount-SUM(extra_payments))*-1,0))+IF(I181=0,0,ROUND(PPMT(VLOOKUP($C181,Rate_table,2,TRUE)/12,COUNTIF($I$28:I181,">0"),DurationofBonus,BonusAmount)*-1,0)),"") -> ¥11,389 | I181: ¥0 | K181: ¥37,500 | L181: =IF(AND(ValuesEntered,ISNUMBER($C181)),SUM(E181:H181,J181:K181),"") -> ¥60,081 | O181: =IF(AND(ValuesEntered,ISNUMBER($C181)),D181-F181-J181,"") -> ¥13,439,782 | R181: 266
B182: =ROWS($B$28:B182) -> 155 | C182: =IF(ValuesEntered,IF(AND(ISNUMBER(O181),R181>0),EDATE(C181,1),""),"") -> 2026-09-01 | D182: ¥13,439,782 | E182: =IF(AND(ValuesEntered,ISNUMBER(C182)),IF($E$16="時間短縮",ROUND(IPMT(VLOOKUP($C182,Rate_table,2,TRUE)/12,1,$R181,$D182)*-1,0),ROUND(IPMT(VLOOKUP($C182,Rate_table,2,TRUE)/12,$B182,DurationOfLoan,LoanAmount-BonusAmount-SUM(extra_payments))*-1,0))+IF($I182=0,0,ROUND(IPMT(VLOOKUP($C182,Rate_table,2,TRUE)/12,COUNTIF($I$28:I182,">0"),DurationofBonus,BonusAmount)*-1,0)),"") -> ¥11,162 | F182: =IF(AND(ValuesEntered,ISNUMBER($C182)),IF($E$16="時間短縮",ROUND(PPMT(VLOOKUP($C182,Rate_table,2,TRUE)/12,1,$R181,$D182)*-1,0),ROUND(PPMT(VLOOKUP($C182,Rate_table,2,TRUE)/12,$B182,DurationOfLoan,LoanAmount-BonusAmount-SUM(extra_payments))*-1,0))+IF(I182=0,0,ROUND(PPMT(VLOOKUP($C182,Rate_table,2,TRUE)/12,COUNTIF($I$28:I182,">0"),DurationofBonus,BonusAmount)*-1,0)),"") -> ¥11,419 | I182: ¥0 | K182: ¥37,500 | L182: =IF(AND(ValuesEntered,ISNUMBER($C182)),SUM(E182:H182,J182:K182),"") -> ¥60,081 | O182: =IF(AND(ValuesEntered,ISNUMBER($C182)),D182-F182-J182,"") -> ¥13,428,363 | R182: 265
B183: =ROWS($B$28:B183) -> 156 | C183: =IF(ValuesEntered,IF(AND(ISNUMBER(O182),R182>0),EDATE(C182,1),""),"") -> 2026-10-01 | D183: ¥13,428,363 | E183: =IF(AND(ValuesEntered,ISNUMBER(C183)),IF($E$16="時間短縮",ROUND(IPMT(VLOOKUP($C183,Rate_table,2,TRUE)/12,1,$R182,$D183)*-1,0),ROUND(IPMT(VLOOKUP($C183,Rate_table,2,TRUE)/12,$B183,DurationOfLoan,LoanAmount-BonusAmount-SUM(extra_payments))*-1,0))+IF($I183=0,0,ROUND(IPMT(VLOOKUP($C183,Rate_table,2,TRUE)/12,COUNTIF($I$28:I183,">0"),DurationofBonus,BonusAmount)*-1,0)),"") -> ¥11,133 | F183: =IF(AND(ValuesEntered,ISNUMBER($C183)),IF($E$16="時間短縮",ROUND(PPMT(VLOOKUP($C183,Rate_table,2,TRUE)/12,1,$R182,$D183)*-1,0),ROUND(PPMT(VLOOKUP($C183,Rate_table,2,TRUE)/12,$B183,DurationOfLoan,LoanAmount-BonusAmount-SUM(extra_payments))*-1,0))+IF(I183=0,0,ROUND(PPMT(VLOOKUP($C183,Rate_table,2,TRUE)/12,COUNTIF($I$28:I183,">0"),DurationofBonus,BonusAmount)*-1,0)),"") -> ¥11,448 | I183: ¥0 | K183: ¥37,500 | L183: =IF(AND(ValuesEntered,ISNUMBER($C183)),SUM(E183:H183,J183:K183),"") -> ¥60,081 | O183: =IF(AND(ValuesEntered,ISNUMBER($C183)),D183-F183-J183,"") -> ¥13,416,915 | R183: 264
B184: =ROWS($B$28:B184) -> 157 | C184: =IF(ValuesEntered,IF(AND(ISNUMBER(O183),R183>0),EDATE(C183,1),""),"") -> 2026-11-01 | D184: ¥13,416,915 | E184: =IF(AND(ValuesEntered,ISNUMBER(C184)),IF($E$16="時間短縮",ROUND(IPMT(VLOOKUP($C184,Rate_table,2,TRUE)/12,1,$R183,$D184)*-1,0),ROUND(IPMT(VLOOKUP($C184,Rate_table,2,TRUE)/12,$B184,DurationOfLoan,LoanAmount-BonusAmount-SUM(extra_payments))*-1,0))+IF($I184=0,0,ROUND(IPMT(VLOOKUP($C184,Rate_table,2,TRUE)/12,COUNTIF($I$28:I184,">0"),DurationofBonus,BonusAmount)*-1,0)),"") -> ¥11,104 | F184: =IF(AND(ValuesEntered,ISNUMBER($C184)),IF($E$16="時間短縮",ROUND(PPMT(VLOOKUP($C184,Rate_table,2,TRUE)/12,1,$R183,$D184)*-1,0),ROUND(PPMT(VLOOKUP($C184,Rate_table,2,TRUE)/12,$B184,DurationOfLoan,LoanAmount-BonusAmount-SUM(extra_payments))*-1,0))+IF(I184=0,0,ROUND(PPMT(VLOOKUP($C184,Rate_table,2,TRUE)/12,COUNTIF($I$28:I184,">0"),DurationofBonus,BonusAmount)*-1,0)),"") -> ¥11,477 | I184: ¥0 | K184: ¥37,500 | L184: =IF(AND(ValuesEntered,ISNUMBER($C184)),SUM(E184:H184,J184:K184),"") -> ¥60,081 | O184: =IF(AND(ValuesEntered,ISNUMBER($C184)),D184-F184-J184,"") -> ¥13,405,438 | R184: 263
B185: =ROWS($B$28:B185) -> 158 | C185: =IF(ValuesEntered,IF(AND(ISNUMBER(O184),R184>0),EDATE(C184,1),""),"") -> 2026-12-01 | D185: ¥13,405,438 | E185: =IF(AND(ValuesEntered,ISNUMBER(C185)),IF($E$16="時間短縮",ROUND(IPMT(VLOOKUP($C185,Rate_table,2,TRUE)/12,1,$R184,$D185)*-1,0),ROUND(IPMT(VLOOKUP($C185,Rate_table,2,TRUE)/12,$B185,DurationOfLoan,LoanAmount-BonusAmount-SUM(extra_payments))*-1,0))+IF($I185=0,0,ROUND(IPMT(VLOOKUP($C185,Rate_table,2,TRUE)/12,COUNTIF($I$28:I185,">0"),DurationofBonus,BonusAmount)*-1,0)),"") -> ¥11,074 | F185: =IF(AND(ValuesEntered,ISNUMBER($C185)),IF($E$16="時間短縮",ROUND(PPMT(VLOOKUP($C185,Rate_table,2,TRUE)/12,1,$R184,$D185)*-1,0),ROUND(PPMT(VLOOKUP($C185,Rate_table,2,TRUE)/12,$B185,DurationOfLoan,LoanAmount-BonusAmount-SUM(extra_payments))*-1,0))+IF(I185=0,0,ROUND(PPMT(VLOOKUP($C185,Rate_table,2,TRUE)/12,COUNTIF($I$28:I185,">0"),DurationofBonus,BonusAmount)*-1,0)),"") -> ¥11,507 | I185: ¥0 | K185: ¥37,500 | L185: =IF(AND(ValuesEntered,ISNUMBER($C185)),SUM(E185:H185,J185:K185),"") -> ¥60,081 | O185: =IF(AND(ValuesEntered,ISNUMBER($C185)),D185-F185-J185,"") -> ¥13,393,931 | R185: 262
B186: =ROWS($B$28:B186) -> 159 | C186: =IF(ValuesEntered,IF(AND(ISNUMBER(O185),R185>0),EDATE(C185,1),""),"") -> 2027-01-01 | D186: ¥13,393,931 | E186: =IF(AND(ValuesEntered,ISNUMBER(C186)),IF($E$16="時間短縮",ROUND(IPMT(VLOOKUP($C186,Rate_table,2,TRUE)/12,1,$R185,$D186)*-1,0),ROUND(IPMT(VLOOKUP($C186,Rate_table,2,TRUE)/12,$B186,DurationOfLoan,LoanAmount-BonusAmount-SUM(extra_payments))*-1,0))+IF($I186=0,0,ROUND(IPMT(VLOOKUP($C186,Rate_table,2,TRUE)/12,COUNTIF($I$28:I186,">0"),DurationofBonus,BonusAmount)*-1,0)),"") -> ¥11,045 | F186: =IF(AND(ValuesEntered,ISNUMBER($C186)),IF($E$16="時間短縮",ROUND(PPMT(VLOOKUP($C186,Rate_table,2,TRUE)/12,1,$R185,$D186)*-1,0),ROUND(PPMT(VLOOKUP($C186,Rate_table,2,TRUE)/12,$B186,DurationOfLoan,LoanAmount-BonusAmount-SUM(extra_payments))*-1,0))+IF(I186=0,0,ROUND(PPMT(VLOOKUP($C186,Rate_table,2,TRUE)/12,COUNTIF($I$28:I186,">0"),DurationofBonus,BonusAmount)*-1,0)),"") -> ¥11,536 | I186: ¥0 | K186: ¥37,500 | L186: =IF(AND(ValuesEntered,ISNUMBER($C186)),SUM(E186:H186,J186:K186),"") -> ¥60,081 | O186: =IF(AND(ValuesEntered,ISNUMBER($C186)),D186-F186-J186,"") -> ¥13,382,395 | R186: 261
B187: =ROWS($B$28:B187) -> 160 | C187: =IF(ValuesEntered,IF(AND(ISNUMBER(O186),R186>0),EDATE(C186,1),""),"") -> 2027-02-01 | D187: ¥13,382,395 | E187: =IF(AND(ValuesEntered,ISNUMBER(C187)),IF($E$16="時間短縮",ROUND(IPMT(VLOOKUP($C187,Rate_table,2,TRUE)/12,1,$R186,$D187)*-1,0),ROUND(IPMT(VLOOKUP($C187,Rate_table,2,TRUE)/12,$B187,DurationOfLoan,LoanAmount-BonusAmount-SUM(extra_payments))*-1,0))+IF($I187=0,0,ROUND(IPMT(VLOOKUP($C187,Rate_table,2,TRUE)/12,COUNTIF($I$28:I187,">0"),DurationofBonus,BonusAmount)*-1,0)),"") -> ¥11,015 | F187: =IF(AND(ValuesEntered,ISNUMBER($C187)),IF($E$16="時間短縮",ROUND(PPMT(VLOOKUP($C187,Rate_table,2,TRUE)/12,1,$R186,$D187)*-1,0),ROUND(PPMT(VLOOKUP($C187,Rate_table,2,TRUE)/12,$B187,DurationOfLoan,LoanAmount-BonusAmount-SUM(extra_payments))*-1,0))+IF(I187=0,0,ROUND(PPMT(VLOOKUP($C187,Rate_table,2,TRUE)/12,COUNTIF($I$28:I187,">0"),DurationofBonus,BonusAmount)*-1,0)),"") -> ¥11,566 | I187: ¥0 | K187: ¥37,500 | L187: =IF(AND(ValuesEntered,ISNUMBER($C187)),SUM(E187:H187,J187:K187),"") -> ¥60,081 | O187: =IF(AND(ValuesEntered,ISNUMBER($C187)),D187-F187-J187,"") -> ¥13,370,829 | R187: 260
B188: =ROWS($B$28:B188) -> 161 | C188: =IF(ValuesEntered,IF(AND(ISNUMBER(O187),R187>0),EDATE(C187,1),""),"") -> 2027-03-01 | D188: ¥13,370,829 | E188: =IF(AND(ValuesEntered,ISNUMBER(C188)),IF($E$16="時間短縮",ROUND(IPMT(VLOOKUP($C188,Rate_table,2,TRUE)/12,1,$R187,$D188)*-1,0),ROUND(IPMT(VLOOKUP($C188,Rate_table,2,TRUE)/12,$B188,DurationOfLoan,LoanAmount-BonusAmount-SUM(extra_payments))*-1,0))+IF($I188=0,0,ROUND(IPMT(VLOOKUP($C188,Rate_table,2,TRUE)/12,COUNTIF($I$28:I188,">0"),DurationofBonus,BonusAmount)*-1,0)),"") -> ¥10,985 | F188: =IF(AND(ValuesEntered,ISNUMBER($C188)),IF($E$16="時間短縮",ROUND(PPMT(VLOOKUP($C188,Rate_table,2,TRUE)/12,1,$R187,$D188)*-1,0),ROUND(PPMT(VLOOKUP($C188,Rate_table,2,TRUE)/12,$B188,DurationOfLoan,LoanAmount-BonusAmount-SUM(extra_payments))*-1,0))+IF(I188=0,0,ROUND(PPMT(VLOOKUP($C188,Rate_table,2,TRUE)/12,COUNTIF($I$28:I188,">0"),DurationofBonus,BonusAmount)*-1,0)),"") -> ¥11,596 | I188: ¥0 | K188: ¥37,500 | L188: =IF(AND(ValuesEntered,ISNUMBER($C188)),SUM(E188:H188,J188:K188),"") -> ¥60,081 | O188: =IF(AND(ValuesEntered,ISNUMBER($C188)),D188-F188-J188,"") -> ¥13,359,233 | R188: 259
B189: =ROWS($B$28:B189) -> 162 | C189: =IF(ValuesEntered,IF(AND(ISNUMBER(O188),R188>0),EDATE(C188,1),""),"") -> 2027-04-01 | D189: ¥13,359,233 | E189: =IF(AND(ValuesEntered,ISNUMBER(C189)),IF($E$16="時間短縮",ROUND(IPMT(VLOOKUP($C189,Rate_table,2,TRUE)/12,1,$R188,$D189)*-1,0),ROUND(IPMT(VLOOKUP($C189,Rate_table,2,TRUE)/12,$B189,DurationOfLoan,LoanAmount-BonusAmount-SUM(extra_payments))*-1,0))+IF($I189=0,0,ROUND(IPMT(VLOOKUP($C189,Rate_table,2,TRUE)/12,COUNTIF($I$28:I189,">0"),DurationofBonus,BonusAmount)*-1,0)),"") -> ¥34,289 | F189: =IF(AND(ValuesEntered,ISNUMBER($C189)),IF($E$16="時間短縮",ROUND(PPMT(VLOOKUP($C189,Rate_table,2,TRUE)/12,1,$R188,$D189)*-1,0),ROUND(PPMT(VLOOKUP($C189,Rate_table,2,TRUE)/12,$B189,DurationOfLoan,LoanAmount-BonusAmount-SUM(extra_payments))*-1,0))+IF(I189=0,0,ROUND(PPMT(VLOOKUP($C189,Rate_table,2,TRUE)/12,COUNTIF($I$28:I189,">0"),DurationofBonus,BonusAmount)*-1,0)),"") -> ¥207,052 | I189: ¥200,000 | K189: ¥37,500 | L189: =IF(AND(ValuesEntered,ISNUMBER($C189)),SUM(E189:H189,J189:K189),"") -> ¥278,841 | O189: =IF(AND(ValuesEntered,ISNUMBER($C189)),D189-F189-J189,"") -> ¥13,152,181 | R189: 258
B190: =ROWS($B$28:B190) -> 163 | C190: =IF(ValuesEntered,IF(AND(ISNUMBER(O189),R189>0),EDATE(C189,1),""),"") -> 2027-05-01 | D190: ¥13,152,181 | E190: =IF(AND(ValuesEntered,ISNUMBER(C190)),IF($E$16="時間短縮",ROUND(IPMT(VLOOKUP($C190,Rate_table,2,TRUE)/12,1,$R189,$D190)*-1,0),ROUND(IPMT(VLOOKUP($C190,Rate_table,2,TRUE)/12,$B190,DurationOfLoan,LoanAmount-BonusAmount-SUM(extra_payments))*-1,0))+IF($I190=0,0,ROUND(IPMT(VLOOKUP($C190,Rate_table,2,TRUE)/12,COUNTIF($I$28:I190,">0"),DurationofBonus,BonusAmount)*-1,0)),"") -> ¥10,926 | F190: =IF(AND(ValuesEntered,ISNUMBER($C190)),IF($E$16="時間短縮",ROUND(PPMT(VLOOKUP($C190,Rate_table,2,TRUE)/12,1,$R189,$D190)*-1,0),ROUND(PPMT(VLOOKUP($C190,Rate_table,2,TRUE)/12,$B190,DurationOfLoan,LoanAmount-BonusAmount-SUM(extra_payments))*-1,0))+IF(I190=0,0,ROUND(PPMT(VLOOKUP($C190,Rate_table,2,TRUE)/12,COUNTIF($I$28:I190,">0"),DurationofBonus,BonusAmount)*-1,0)),"") -> ¥11,655 | I190: ¥0 | K190: ¥37,500 | L190: =IF(AND(ValuesEntered,ISNUMBER($C190)),SUM(E190:H190,J190:K190),"") -> ¥60,081 | O190: =IF(AND(ValuesEntered,ISNUMBER($C190)),D190-F190-J190,"") -> ¥13,140,526 | R190: 257
B191: =ROWS($B$28:B191) -> 164 | C191: =IF(ValuesEntered,IF(AND(ISNUMBER(O190),R190>0),EDATE(C190,1),""),"") -> 2027-06-01 | D191: ¥13,140,526 | E191: =IF(AND(ValuesEntered,ISNUMBER(C191)),IF($E$16="時間短縮",ROUND(IPMT(VLOOKUP($C191,Rate_table,2,TRUE)/12,1,$R190,$D191)*-1,0),ROUND(IPMT(VLOOKUP($C191,Rate_table,2,TRUE)/12,$B191,DurationOfLoan,LoanAmount-BonusAmount-SUM(extra_payments))*-1,0))+IF($I191=0,0,ROUND(IPMT(VLOOKUP($C191,Rate_table,2,TRUE)/12,COUNTIF($I$28:I191,">0"),DurationofBonus,BonusAmount)*-1,0)),"") -> ¥10,896 | F191: =IF(AND(ValuesEntered,ISNUMBER($C191)),IF($E$16="時間短縮",ROUND(PPMT(VLOOKUP($C191,Rate_table,2,TRUE)/12,1,$R190,$D191)*-1,0),ROUND(PPMT(VLOOKUP($C191,Rate_table,2,TRUE)/12,$B191,DurationOfLoan,LoanAmount-BonusAmount-SUM(extra_payments))*-1,0))+IF(I191=0,0,ROUND(PPMT(VLOOKUP($C191,Rate_table,2,TRUE)/12,COUNTIF($I$28:I191,">0"),DurationofBonus,BonusAmount)*-1,0)),"") -> ¥11,685 | I191: ¥0 | K191: ¥37,500 | L191: =IF(AND(ValuesEntered,ISNUMBER($C191)),SUM(E191:H191,J191:K191),"") -> ¥60,081 | O191: =IF(AND(ValuesEntered,ISNUMBER($C191)),D191-F191-J191,"") -> ¥13,128,841 | R191: 256
B192: =ROWS($B$28:B192) -> 165 | C192: =IF(ValuesEntered,IF(AND(ISNUMBER(O191),R191>0),EDATE(C191,1),""),"") -> 2027-07-01 | D192: ¥13,128,841 | E192: =IF(AND(ValuesEntered,ISNUMBER(C192)),IF($E$16="時間短縮",ROUND(IPMT(VLOOKUP($C192,Rate_table,2,TRUE)/12,1,$R191,$D192)*-1,0),ROUND(IPMT(VLOOKUP($C192,Rate_table,2,TRUE)/12,$B192,DurationOfLoan,LoanAmount-BonusAmount-SUM(extra_payments))*-1,0))+IF($I192=0,0,ROUND(IPMT(VLOOKUP($C192,Rate_table,2,TRUE)/12,COUNTIF($I$28:I192,">0"),DurationofBonus,BonusAmount)*-1,0)),"") -> ¥33,697 | F192: =IF(AND(ValuesEntered,ISNUMBER($C192)),IF($E$16="時間短縮",ROUND(PPMT(VLOOKUP($C192,Rate_table,2,TRUE)/12,1,$R191,$D192)*-1,0),ROUND(PPMT(VLOOKUP($C192,Rate_table,2,TRUE)/12,$B192,DurationOfLoan,LoanAmount-BonusAmount-SUM(extra_payments))*-1,0))+IF(I192=0,0,ROUND(PPMT(VLOOKUP($C192,Rate_table,2,TRUE)/12,COUNTIF($I$28:I192,">0"),DurationofBonus,BonusAmount)*-1,0)),"") -> ¥207,644 | I192: ¥200,000 | K192: ¥37,500 | L192: =IF(AND(ValuesEntered,ISNUMBER($C192)),SUM(E192:H192,J192:K192),"") -> ¥278,841 | O192: =IF(AND(ValuesEntered,ISNUMBER($C192)),D192-F192-J192,"") -> ¥12,921,197 | R192: 255
B193: =ROWS($B$28:B193) -> 166 | C193: =IF(ValuesEntered,IF(AND(ISNUMBER(O192),R192>0),EDATE(C192,1),""),"") -> 2027-08-01 | D193: ¥12,921,197 | E193: =IF(AND(ValuesEntered,ISNUMBER(C193)),IF($E$16="時間短縮",ROUND(IPMT(VLOOKUP($C193,Rate_table,2,TRUE)/12,1,$R192,$D193)*-1,0),ROUND(IPMT(VLOOKUP($C193,Rate_table,2,TRUE)/12,$B193,DurationOfLoan,LoanAmount-BonusAmount-SUM(extra_payments))*-1,0))+IF($I193=0,0,ROUND(IPMT(VLOOKUP($C193,Rate_table,2,TRUE)/12,COUNTIF($I$28:I193,">0"),DurationofBonus,BonusAmount)*-1,0)),"") -> ¥10,836 | F193: =IF(AND(ValuesEntered,ISNUMBER($C193)),IF($E$16="時間短縮",ROUND(PPMT(VLOOKUP($C193,Rate_table,2,TRUE)/12,1,$R192,$D193)*-1,0),ROUND(PPMT(VLOOKUP($C193,Rate_table,2,TRUE)/12,$B193,DurationOfLoan,LoanAmount-BonusAmount-SUM(extra_payments))*-1,0))+IF(I193=0,0,ROUND(PPMT(VLOOKUP($C193,Rate_table,2,TRUE)/12,COUNTIF($I$28:I193,">0"),DurationofBonus,BonusAmount)*-1,0)),"") -> ¥11,745 | I193: ¥0 | K193: ¥37,500 | L193: =IF(AND(ValuesEntered,ISNUMBER($C193)),SUM(E193:H193,J193:K193),"") -> ¥60,081 | O193: =IF(AND(ValuesEntered,ISNUMBER($C193)),D193-F193-J193,"") -> ¥12,909,452 | R193: 254
B194: =ROWS($B$28:B194) -> 167 | C194: =IF(ValuesEntered,IF(AND(ISNUMBER(O193),R193>0),EDATE(C193,1),""),"") -> 2027-09-01 | D194: ¥12,909,452 | E194: =IF(AND(ValuesEntered,ISNUMBER(C194)),IF($E$16="時間短縮",ROUND(IPMT(VLOOKUP($C194,Rate_table,2,TRUE)/12,1,$R193,$D194)*-1,0),ROUND(IPMT(VLOOKUP($C194,Rate_table,2,TRUE)/12,$B194,DurationOfLoan,LoanAmount-BonusAmount-SUM(extra_payments))*-1,0))+IF($I194=0,0,ROUND(IPMT(VLOOKUP($C194,Rate_table,2,TRUE)/12,COUNTIF($I$28:I194,">0"),DurationofBonus,BonusAmount)*-1,0)),"") -> ¥10,806 | F194: =IF(AND(ValuesEntered,ISNUMBER($C194)),IF($E$16="時間短縮",ROUND(PPMT(VLOOKUP($C194,Rate_table,2,TRUE)/12,1,$R193,$D194)*-1,0),ROUND(PPMT(VLOOKUP($C194,Rate_table,2,TRUE)/12,$B194,DurationOfLoan,LoanAmount-BonusAmount-SUM(extra_payments))*-1,0))+IF(I194=0,0,ROUND(PPMT(VLOOKUP($C194,Rate_table,2,TRUE)/12,COUNTIF($I$28:I194,">0"),DurationofBonus,BonusAmount)*-1,0)),"") -> ¥11,775 | I194: ¥0 | K194: ¥37,500 | L194: =IF(AND(ValuesEntered,ISNUMBER($C194)),SUM(E194:H194,J194:K194),"") -> ¥60,081 | O194: =IF(AND(ValuesEntered,ISNUMBER($C194)),D194-F194-J194,"") -> ¥12,897,677 | R194: 253
B195: =ROWS($B$28:B195) -> 168 | C195: =IF(ValuesEntered,IF(AND(ISNUMBER(O194),R194>0),EDATE(C194,1),""),"") -> 2027-10-01 | D195: ¥12,897,677 | E195: =IF(AND(ValuesEntered,ISNUMBER(C195)),IF($E$16="時間短縮",ROUND(IPMT(VLOOKUP($C195,Rate_table,2,TRUE)/12,1,$R194,$D195)*-1,0),ROUND(IPMT(VLOOKUP($C195,Rate_table,2,TRUE)/12,$B195,DurationOfLoan,LoanAmount-BonusAmount-SUM(extra_payments))*-1,0))+IF($I195=0,0,ROUND(IPMT(VLOOKUP($C195,Rate_table,2,TRUE)/12,COUNTIF($I$28:I195,">0"),DurationofBonus,BonusAmount)*-1,0)),"") -> ¥10,775 | F195: =IF(AND(ValuesEntered,ISNUMBER($C195)),IF($E$16="時間短縮",ROUND(PPMT(VLOOKUP($C195,Rate_table,2,TRUE)/12,1,$R194,$D195)*-1,0),ROUND(PPMT(VLOOKUP($C195,Rate_table,2,TRUE)/12,$B195,DurationOfLoan,LoanAmount-BonusAmount-SUM(extra_payments))*-1,0))+IF(I195=0,0,ROUND(PPMT(VLOOKUP($C195,Rate_table,2,TRUE)/12,COUNTIF($I$28:I195,">0"),DurationofBonus,BonusAmount)*-1,0)),"") -> ¥11,806 | I195: ¥0 | K195: ¥37,500 | L195: =IF(AND(ValuesEntered,ISNUMBER($C195)),SUM(E195:H195,J195:K195),"") -> ¥60,081 | O195: =IF(AND(ValuesEntered,ISNUMBER($C195)),D195-F195-J195,"") -> ¥12,885,871 | R195: 252
B196: =ROWS($B$28:B196) -> 169 | C196: =IF(ValuesEntered,IF(AND(ISNUMBER(O195),R195>0),EDATE(C195,1),""),"") -> 2027-11-01 | D196: ¥12,885,871 | E196: =IF(AND(ValuesEntered,ISNUMBER(C196)),IF($E$16="時間短縮",ROUND(IPMT(VLOOKUP($C196,Rate_table,2,TRUE)/12,1,$R195,$D196)*-1,0),ROUND(IPMT(VLOOKUP($C196,Rate_table,2,TRUE)/12,$B196,DurationOfLoan,LoanAmount-BonusAmount-SUM(extra_payments))*-1,0))+IF($I196=0,0,ROUND(IPMT(VLOOKUP($C196,Rate_table,2,TRUE)/12,COUNTIF($I$28:I196,">0"),DurationofBonus,BonusAmount)*-1,0)),"") -> ¥10,745 | F196: =IF(AND(ValuesEntered,ISNUMBER($C196)),IF($E$16="時間短縮",ROUND(PPMT(VLOOKUP($C196,Rate_table,2,TRUE)/12,1,$R195,$D196)*-1,0),ROUND(PPMT(VLOOKUP($C196,Rate_table,2,TRUE)/12,$B196,DurationOfLoan,LoanAmount-BonusAmount-SUM(extra_payments))*-1,0))+IF(I196=0,0,ROUND(PPMT(VLOOKUP($C196,Rate_table,2,TRUE)/12,COUNTIF($I$28:I196,">0"),DurationofBonus,BonusAmount)*-1,0)),"") -> ¥11,836 | I196: ¥0 | K196: ¥37,500 | L196: =IF(AND(ValuesEntered,ISNUMBER($C196)),SUM(E196:H196,J196:K196),"") -> ¥60,081 | O196: =IF(AND(ValuesEntered,ISNUMBER($C196)),D196-F196-J196,"") -> ¥12,874,035 | R196: 251
B197: =ROWS($B$28:B197) -> 170 | C197: =IF(ValuesEntered,IF(AND(ISNUMBER(O196),R196>0),EDATE(C196,1),""),"") -> 2027-12-01 | D197: ¥12,874,035 | E197: =IF(AND(ValuesEntered,ISNUMBER(C197)),IF($E$16="時間短縮",ROUND(IPMT(VLOOKUP($C197,Rate_table,2,TRUE)/12,1,$R196,$D197)*-1,0),ROUND(IPMT(VLOOKUP($C197,Rate_table,2,TRUE)/12,$B197,DurationOfLoan,LoanAmount-BonusAmount-SUM(extra_payments))*-1,0))+IF($I197=0,0,ROUND(IPMT(VLOOKUP($C197,Rate_table,2,TRUE)/12,COUNTIF($I$28:I197,">0"),DurationofBonus,BonusAmount)*-1,0)),"") -> ¥10,715 | F197: =IF(AND(ValuesEntered,ISNUMBER($C197)),IF($E$16="時間短縮",ROUND(PPMT(VLOOKUP($C197,Rate_table,2,TRUE)/12,1,$R196,$D197)*-1,0),ROUND(PPMT(VLOOKUP($C197,Rate_table,2,TRUE)/12,$B197,DurationOfLoan,LoanAmount-BonusAmount-SUM(extra_payments))*-1,0))+IF(I197=0,0,ROUND(PPMT(VLOOKUP($C197,Rate_table,2,TRUE)/12,COUNTIF($I$28:I197,">0"),DurationofBonus,BonusAmount)*-1,0)),"") -> ¥11,866 | I197: ¥0 | K197: ¥37,500 | L197: =IF(AND(ValuesEntered,ISNUMBER($C197)),SUM(E197:H197,J197:K197),"") -> ¥60,081 | O197: =IF(AND(ValuesEntered,ISNUMBER($C197)),D197-F197-J197,"") -> ¥12,862,169 | R197: 250
B198: =ROWS($B$28:B198) -> 171 | C198: =IF(ValuesEntered,IF(AND(ISNUMBER(O197),R197>0),EDATE(C197,1),""),"") -> 2028-01-01 | D198: ¥12,862,169 | E198: =IF(AND(ValuesEntered,ISNUMBER(C198)),IF($E$16="時間短縮",ROUND(IPMT(VLOOKUP($C198,Rate_table,2,TRUE)/12,1,$R197,$D198)*-1,0),ROUND(IPMT(VLOOKUP($C198,Rate_table,2,TRUE)/12,$B198,DurationOfLoan,LoanAmount-BonusAmount-SUM(extra_payments))*-1,0))+IF($I198=0,0,ROUND(IPMT(VLOOKUP($C198,Rate_table,2,TRUE)/12,COUNTIF($I$28:I198,">0"),DurationofBonus,BonusAmount)*-1,0)),"") -> ¥10,684 | F198: =IF(AND(ValuesEntered,ISNUMBER($C198)),IF($E$16="時間短縮",ROUND(PPMT(VLOOKUP($C198,Rate_table,2,TRUE)/12,1,$R197,$D198)*-1,0),ROUND(PPMT(VLOOKUP($C198,Rate_table,2,TRUE)/12,$B198,DurationOfLoan,LoanAmount-BonusAmount-SUM(extra_payments))*-1,0))+IF(I198=0,0,ROUND(PPMT(VLOOKUP($C198,Rate_table,2,TRUE)/12,COUNTIF($I$28:I198,">0"),DurationofBonus,BonusAmount)*-1,0)),"") -> ¥11,897 | I198: ¥0 | K198: ¥37,500 | L198: =IF(AND(ValuesEntered,ISNUMBER($C198)),SUM(E198:H198,J198:K198),"") -> ¥60,081 | O198: =IF(AND(ValuesEntered,ISNUMBER($C198)),D198-F198-J198,"") -> ¥12,850,272 | R198: 249
B199: =ROWS($B$28:B199) -> 172 | C199: =IF(ValuesEntered,IF(AND(ISNUMBER(O198),R198>0),EDATE(C198,1),""),"") -> 2028-02-01 | D199: ¥12,850,272 | E199: =IF(AND(ValuesEntered,ISNUMBER(C199)),IF($E$16="時間短縮",ROUND(IPMT(VLOOKUP($C199,Rate_table,2,TRUE)/12,1,$R198,$D199)*-1,0),ROUND(IPMT(VLOOKUP($C199,Rate_table,2,TRUE)/12,$B199,DurationOfLoan,LoanAmount-BonusAmount-SUM(extra_payments))*-1,0))+IF($I199=0,0,ROUND(IPMT(VLOOKUP($C199,Rate_table,2,TRUE)/12,COUNTIF($I$28:I199,">0"),DurationofBonus,BonusAmount)*-1,0)),"") -> ¥10,654 | F199: =IF(AND(ValuesEntered,ISNUMBER($C199)),IF($E$16="時間短縮",ROUND(PPMT(VLOOKUP($C199,Rate_table,2,TRUE)/12,1,$R198,$D199)*-1,0),ROUND(PPMT(VLOOKUP($C199,Rate_table,2,TRUE)/12,$B199,DurationOfLoan,LoanAmount-BonusAmount-SUM(extra_payments))*-1,0))+IF(I199=0,0,ROUND(PPMT(VLOOKUP($C199,Rate_table,2,TRUE)/12,COUNTIF($I$28:I199,">0"),DurationofBonus,BonusAmount)*-1,0)),"") -> ¥11,927 | I199: ¥0 | K199: ¥37,500 | L199: =IF(AND(ValuesEntered,ISNUMBER($C199)),SUM(E199:H199,J199:K199),"") -> ¥60,081 | O199: =IF(AND(ValuesEntered,ISNUMBER($C199)),D199-F199-J199,"") -> ¥12,838,345 | R199: 248
B200: =ROWS($B$28:B200) -> 173 | C200: =IF(ValuesEntered,IF(AND(ISNUMBER(O199),R199>0),EDATE(C199,1),""),"") -> 2028-03-01 | D200: ¥12,838,345 | E200: =IF(AND(ValuesEntered,ISNUMBER(C200)),IF($E$16="時間短縮",ROUND(IPMT(VLOOKUP($C200,Rate_table,2,TRUE)/12,1,$R199,$D200)*-1,0),ROUND(IPMT(VLOOKUP($C200,Rate_table,2,TRUE)/12,$B200,DurationOfLoan,LoanAmount-BonusAmount-SUM(extra_payments))*-1,0))+IF($I200=0,0,ROUND(IPMT(VLOOKUP($C200,Rate_table,2,TRUE)/12,COUNTIF($I$28:I200,">0"),DurationofBonus,BonusAmount)*-1,0)),"") -> ¥10,623 | F200: =IF(AND(ValuesEntered,ISNUMBER($C200)),IF($E$16="時間短縮",ROUND(PPMT(VLOOKUP($C200,Rate_table,2,TRUE)/12,1,$R199,$D200)*-1,0),ROUND(PPMT(VLOOKUP($C200,Rate_table,2,TRUE)/12,$B200,DurationOfLoan,LoanAmount-BonusAmount-SUM(extra_payments))*-1,0))+IF(I200=0,0,ROUND(PPMT(VLOOKUP($C200,Rate_table,2,TRUE)/12,COUNTIF($I$28:I200,">0"),DurationofBonus,BonusAmount)*-1,0)),"") -> ¥11,958 | I200: ¥0 | K200: ¥37,500 | L200: =IF(AND(ValuesEntered,ISNUMBER($C200)),SUM(E200:H200,J200:K200),"") -> ¥60,081 | O200: =IF(AND(ValuesEntered,ISNUMBER($C200)),D200-F200-J200,"") -> ¥12,826,387 | R200: 247
B201: =ROWS($B$28:B201) -> 174 | C201: =IF(ValuesEntered,IF(AND(ISNUMBER(O200),R200>0),EDATE(C200,1),""),"") -> 2028-04-01 | D201: ¥12,826,387 | E201: =IF(AND(ValuesEntered,ISNUMBER(C201)),IF($E$16="時間短縮",ROUND(IPMT(VLOOKUP($C201,Rate_table,2,TRUE)/12,1,$R200,$D201)*-1,0),ROUND(IPMT(VLOOKUP($C201,Rate_table,2,TRUE)/12,$B201,DurationOfLoan,LoanAmount-BonusAmount-SUM(extra_payments))*-1,0))+IF($I201=0,0,ROUND(IPMT(VLOOKUP($C201,Rate_table,2,TRUE)/12,COUNTIF($I$28:I201,">0"),DurationofBonus,BonusAmount)*-1,0)),"") -> ¥32,921 | F201: =IF(AND(ValuesEntered,ISNUMBER($C201)),IF($E$16="時間短縮",ROUND(PPMT(VLOOKUP($C201,Rate_table,2,TRUE)/12,1,$R200,$D201)*-1,0),ROUND(PPMT(VLOOKUP($C201,Rate_table,2,TRUE)/12,$B201,DurationOfLoan,LoanAmount-BonusAmount-SUM(extra_payments))*-1,0))+IF(I201=0,0,ROUND(PPMT(VLOOKUP($C201,Rate_table,2,TRUE)/12,COUNTIF($I$28:I201,">0"),DurationofBonus,BonusAmount)*-1,0)),"") -> ¥208,421 | I201: ¥200,000 | K201: ¥37,500 | L201: =IF(AND(ValuesEntered,ISNUMBER($C201)),SUM(E201:H201,J201:K201),"") -> ¥278,842 | O201: =IF(AND(ValuesEntered,ISNUMBER($C201)),D201-F201-J201,"") -> ¥12,617,966 | R201: 246
B202: =ROWS($B$28:B202) -> 175 | C202: =IF(ValuesEntered,IF(AND(ISNUMBER(O201),R201>0),EDATE(C201,1),""),"") -> 2028-05-01 | D202: ¥12,617,966 | E202: =IF(AND(ValuesEntered,ISNUMBER(C202)),IF($E$16="時間短縮",ROUND(IPMT(VLOOKUP($C202,Rate_table,2,TRUE)/12,1,$R201,$D202)*-1,0),ROUND(IPMT(VLOOKUP($C202,Rate_table,2,TRUE)/12,$B202,DurationOfLoan,LoanAmount-BonusAmount-SUM(extra_payments))*-1,0))+IF($I202=0,0,ROUND(IPMT(VLOOKUP($C202,Rate_table,2,TRUE)/12,COUNTIF($I$28:I202,">0"),DurationofBonus,BonusAmount)*-1,0)),"") -> ¥10,562 | F202: =IF(AND(ValuesEntered,ISNUMBER($C202)),IF($E$16="時間短縮",ROUND(PPMT(VLOOKUP($C202,Rate_table,2,TRUE)/12,1,$R201,$D202)*-1,0),ROUND(PPMT(VLOOKUP($C202,Rate_table,2,TRUE)/12,$B202,DurationOfLoan,LoanAmount-BonusAmount-SUM(extra_payments))*-1,0))+IF(I202=0,0,ROUND(PPMT(VLOOKUP($C202,Rate_table,2,TRUE)/12,COUNTIF($I$28:I202,">0"),DurationofBonus,BonusAmount)*-1,0)),"") -> ¥12,019 | I202: ¥0 | K202: ¥37,500 | L202: =IF(AND(ValuesEntered,ISNUMBER($C202)),SUM(E202:H202,J202:K202),"") -> ¥60,081 | O202: =IF(AND(ValuesEntered,ISNUMBER($C202)),D202-F202-J202,"") -> ¥12,605,947 | R202: 245
B203: =ROWS($B$28:B203) -> 176 | C203: =IF(ValuesEntered,IF(AND(ISNUMBER(O202),R202>0),EDATE(C202,1),""),"") -> 2028-06-01 | D203: ¥12,605,947 | E203: =IF(AND(ValuesEntered,ISNUMBER(C203)),IF($E$16="時間短縮",ROUND(IPMT(VLOOKUP($C203,Rate_table,2,TRUE)/12,1,$R202,$D203)*-1,0),ROUND(IPMT(VLOOKUP($C203,Rate_table,2,TRUE)/12,$B203,DurationOfLoan,LoanAmount-BonusAmount-SUM(extra_payments))*-1,0))+IF($I203=0,0,ROUND(IPMT(VLOOKUP($C203,Rate_table,2,TRUE)/12,COUNTIF($I$28:I203,">0"),DurationofBonus,BonusAmount)*-1,0)),"") -> ¥10,531 | F203: =IF(AND(ValuesEntered,ISNUMBER($C203)),IF($E$16="時間短縮",ROUND(PPMT(VLOOKUP($C203,Rate_table,2,TRUE)/12,1,$R202,$D203)*-1,0),ROUND(PPMT(VLOOKUP($C203,Rate_table,2,TRUE)/12,$B203,DurationOfLoan,LoanAmount-BonusAmount-SUM(extra_payments))*-1,0))+IF(I203=0,0,ROUND(PPMT(VLOOKUP($C203,Rate_table,2,TRUE)/12,COUNTIF($I$28:I203,">0"),DurationofBonus,BonusAmount)*-1,0)),"") -> ¥12,050 | I203: ¥0 | K203: ¥37,500 | L203: =IF(AND(ValuesEntered,ISNUMBER($C203)),SUM(E203:H203,J203:K203),"") -> ¥60,081 | O203: =IF(AND(ValuesEntered,ISNUMBER($C203)),D203-F203-J203,"") -> ¥12,593,897 | R203: 244
B204: =ROWS($B$28:B204) -> 177 | C204: =IF(ValuesEntered,IF(AND(ISNUMBER(O203),R203>0),EDATE(C203,1),""),"") -> 2028-07-01 | D204: ¥12,593,897 | E204: =IF(AND(ValuesEntered,ISNUMBER(C204)),IF($E$16="時間短縮",ROUND(IPMT(VLOOKUP($C204,Rate_table,2,TRUE)/12,1,$R203,$D204)*-1,0),ROUND(IPMT(VLOOKUP($C204,Rate_table,2,TRUE)/12,$B204,DurationOfLoan,LoanAmount-BonusAmount-SUM(extra_payments))*-1,0))+IF($I204=0,0,ROUND(IPMT(VLOOKUP($C204,Rate_table,2,TRUE)/12,COUNTIF($I$28:I204,">0"),DurationofBonus,BonusAmount)*-1,0)),"") -> ¥32,324 | F204: =IF(AND(ValuesEntered,ISNUMBER($C204)),IF($E$16="時間短縮",ROUND(PPMT(VLOOKUP($C204,Rate_table,2,TRUE)/12,1,$R203,$D204)*-1,0),ROUND(PPMT(VLOOKUP($C204,Rate_table,2,TRUE)/12,$B204,DurationOfLoan,LoanAmount-BonusAmount-SUM(extra_payments))*-1,0))+IF(I204=0,0,ROUND(PPMT(VLOOKUP($C204,Rate_table,2,TRUE)/12,COUNTIF($I$28:I204,">0"),DurationofBonus,BonusAmount)*-1,0)),"") -> ¥209,017 | I204: ¥200,000 | K204: ¥37,500 | L204: =IF(AND(ValuesEntered,ISNUMBER($C204)),SUM(E204:H204,J204:K204),"") -> ¥278,841 | O204: =IF(AND(ValuesEntered,ISNUMBER($C204)),D204-F204-J204,"") -> ¥12,384,880 | R204: 243
B205: =ROWS($B$28:B205) -> 178 | C205: =IF(ValuesEntered,IF(AND(ISNUMBER(O204),R204>0),EDATE(C204,1),""),"") -> 2028-08-01 | D205: ¥12,384,880 | E205: =IF(AND(ValuesEntered,ISNUMBER(C205)),IF($E$16="時間短縮",ROUND(IPMT(VLOOKUP($C205,Rate_table,2,TRUE)/12,1,$R204,$D205)*-1,0),ROUND(IPMT(VLOOKUP($C205,Rate_table,2,TRUE)/12,$B205,DurationOfLoan,LoanAmount-BonusAmount-SUM(extra_payments))*-1,0))+IF($I205=0,0,ROUND(IPMT(VLOOKUP($C205,Rate_table,2,TRUE)/12,COUNTIF($I$28:I205,">0"),DurationofBonus,BonusAmount)*-1,0)),"") -> ¥10,469 | F205: =IF(AND(ValuesEntered,ISNUMBER($C205)),IF($E$16="時間短縮",ROUND(PPMT(VLOOKUP($C205,Rate_table,2,TRUE)/12,1,$R204,$D205)*-1,0),ROUND(PPMT(VLOOKUP($C205,Rate_table,2,TRUE)/12,$B205,DurationOfLoan,LoanAmount-BonusAmount-SUM(extra_payments))*-1,0))+IF(I205=0,0,ROUND(PPMT(VLOOKUP($C205,Rate_table,2,TRUE)/12,COUNTIF($I$28:I205,">0"),DurationofBonus,BonusAmount)*-1,0)),"") -> ¥12,112 | I205: ¥0 | K205: ¥37,500 | L205: =IF(AND(ValuesEntered,ISNUMBER($C205)),SUM(E205:H205,J205:K205),"") -> ¥60,081 | O205: =IF(AND(ValuesEntered,ISNUMBER($C205)),D205-F205-J205,"") -> ¥12,372,768 | R205: 242
B206: =ROWS($B$28:B206) -> 179 | C206: =IF(ValuesEntered,IF(AND(ISNUMBER(O205),R205>0),EDATE(C205,1),""),"") -> 2028-09-01 | D206: ¥12,372,768 | E206: =IF(AND(ValuesEntered,ISNUMBER(C206)),IF($E$16="時間短縮",ROUND(IPMT(VLOOKUP($C206,Rate_table,2,TRUE)/12,1,$R205,$D206)*-1,0),ROUND(IPMT(VLOOKUP($C206,Rate_table,2,TRUE)/12,$B206,DurationOfLoan,LoanAmount-BonusAmount-SUM(extra_payments))*-1,0))+IF($I206=0,0,ROUND(IPMT(VLOOKUP($C206,Rate_table,2,TRUE)/12,COUNTIF($I$28:I206,">0"),DurationofBonus,BonusAmount)*-1,0)),"") -> ¥10,438 | F206: =IF(AND(ValuesEntered,ISNUMBER($C206)),IF($E$16="時間短縮",ROUND(PPMT(VLOOKUP($C206,Rate_table,2,TRUE)/12,1,$R205,$D206)*-1,0),ROUND(PPMT(VLOOKUP($C206,Rate_table,2,TRUE)/12,$B206,DurationOfLoan,LoanAmount-BonusAmount-SUM(extra_payments))*-1,0))+IF(I206=0,0,ROUND(PPMT(VLOOKUP($C206,Rate_table,2,TRUE)/12,COUNTIF($I$28:I206,">0"),DurationofBonus,BonusAmount)*-1,0)),"") -> ¥12,143 | I206: ¥0 | K206: ¥37,500 | L206: =IF(AND(ValuesEntered,ISNUMBER($C206)),SUM(E206:H206,J206:K206),"") -> ¥60,081 | O206: =IF(AND(ValuesEntered,ISNUMBER($C206)),D206-F206-J206,"") -> ¥12,360,625 | R206: 241
B207: =ROWS($B$28:B207) -> 180 | C207: =IF(ValuesEntered,IF(AND(ISNUMBER(O206),R206>0),EDATE(C206,1),""),"") -> 2028-10-01 | D207: ¥12,360,625 | E207: =IF(AND(ValuesEntered,ISNUMBER(C207)),IF($E$16="時間短縮",ROUND(IPMT(VLOOKUP($C207,Rate_table,2,TRUE)/12,1,$R206,$D207)*-1,0),ROUND(IPMT(VLOOKUP($C207,Rate_table,2,TRUE)/12,$B207,DurationOfLoan,LoanAmount-BonusAmount-SUM(extra_payments))*-1,0))+IF($I207=0,0,ROUND(IPMT(VLOOKUP($C207,Rate_table,2,TRUE)/12,COUNTIF($I$28:I207,">0"),DurationofBonus,BonusAmount)*-1,0)),"") -> ¥10,407 | F207: =IF(AND(ValuesEntered,ISNUMBER($C207)),IF($E$16="時間短縮",ROUND(PPMT(VLOOKUP($C207,Rate_table,2,TRUE)/12,1,$R206,$D207)*-1,0),ROUND(PPMT(VLOOKUP($C207,Rate_table,2,TRUE)/12,$B207,DurationOfLoan,LoanAmount-BonusAmount-SUM(extra_payments))*-1,0))+IF(I207=0,0,ROUND(PPMT(VLOOKUP($C207,Rate_table,2,TRUE)/12,COUNTIF($I$28:I207,">0"),DurationofBonus,BonusAmount)*-1,0)),"") -> ¥12,174 | I207: ¥0 | K207: ¥37,500 | L207: =IF(AND(ValuesEntered,ISNUMBER($C207)),SUM(E207:H207,J207:K207),"") -> ¥60,081 | O207: =IF(AND(ValuesEntered,ISNUMBER($C207)),D207-F207-J207,"") -> ¥12,348,451 | R207: 240
B208: =ROWS($B$28:B208) -> 181 | C208: =IF(ValuesEntered,IF(AND(ISNUMBER(O207),R207>0),EDATE(C207,1),""),"") -> 2028-11-01 | D208: ¥12,348,451 | E208: =IF(AND(ValuesEntered,ISNUMBER(C208)),IF($E$16="時間短縮",ROUND(IPMT(VLOOKUP($C208,Rate_table,2,TRUE)/12,1,$R207,$D208)*-1,0),ROUND(IPMT(VLOOKUP($C208,Rate_table,2,TRUE)/12,$B208,DurationOfLoan,LoanAmount-BonusAmount-SUM(extra_payments))*-1,0))+IF($I208=0,0,ROUND(IPMT(VLOOKUP($C208,Rate_table,2,TRUE)/12,COUNTIF($I$28:I208,">0"),DurationofBonus,BonusAmount)*-1,0)),"") -> ¥10,375 | F208: =IF(AND(ValuesEntered,ISNUMBER($C208)),IF($E$16="時間短縮",ROUND(PPMT(VLOOKUP($C208,Rate_table,2,TRUE)/12,1,$R207,$D208)*-1,0),ROUND(PPMT(VLOOKUP($C208,Rate_table,2,TRUE)/12,$B208,DurationOfLoan,LoanAmount-BonusAmount-SUM(extra_payments))*-1,0))+IF(I208=0,0,ROUND(PPMT(VLOOKUP($C208,Rate_table,2,TRUE)/12,COUNTIF($I$28:I208,">0"),DurationofBonus,BonusAmount)*-1,0)),"") -> ¥12,206 | I208: ¥0 | K208: ¥37,500 | L208: =IF(AND(ValuesEntered,ISNUMBER($C208)),SUM(E208:H208,J208:K208),"") -> ¥60,081 | O208: =IF(AND(ValuesEntered,ISNUMBER($C208)),D208-F208-J208,"") -> ¥12,336,245 | R208: 239
B209: =ROWS($B$28:B209) -> 182 | C209: =IF(ValuesEntered,IF(AND(ISNUMBER(O208),R208>0),EDATE(C208,1),""),"") -> 2028-12-01 | D209: ¥12,336,245 | E209: =IF(AND(ValuesEntered,ISNUMBER(C209)),IF($E$16="時間短縮",ROUND(IPMT(VLOOKUP($C209,Rate_table,2,TRUE)/12,1,$R208,$D209)*-1,0),ROUND(IPMT(VLOOKUP($C209,Rate_table,2,TRUE)/12,$B209,DurationOfLoan,LoanAmount-BonusAmount-SUM(extra_payments))*-1,0))+IF($I209=0,0,ROUND(IPMT(VLOOKUP($C209,Rate_table,2,TRUE)/12,COUNTIF($I$28:I209,">0"),DurationofBonus,BonusAmount)*-1,0)),"") -> ¥10,344 | F209: =IF(AND(ValuesEntered,ISNUMBER($C209)),IF($E$16="時間短縮",ROUND(PPMT(VLOOKUP($C209,Rate_table,2,TRUE)/12,1,$R208,$D209)*-1,0),ROUND(PPMT(VLOOKUP($C209,Rate_table,2,TRUE)/12,$B209,DurationOfLoan,LoanAmount-BonusAmount-SUM(extra_payments))*-1,0))+IF(I209=0,0,ROUND(PPMT(VLOOKUP($C209,Rate_table,2,TRUE)/12,COUNTIF($I$28:I209,">0"),DurationofBonus,BonusAmount)*-1,0)),"") -> ¥12,237 | I209: ¥0 | K209: ¥37,500 | L209: =IF(AND(ValuesEntered,ISNUMBER($C209)),SUM(E209:H209,J209:K209),"") -> ¥60,081 | O209: =IF(AND(ValuesEntered,ISNUMBER($C209)),D209-F209-J209,"") -> ¥12,324,008 | R209: 238
B210: =ROWS($B$28:B210) -> 183 | C210: =IF(ValuesEntered,IF(AND(ISNUMBER(O209),R209>0),EDATE(C209,1),""),"") -> 2029-01-01 | D210: ¥12,324,008 | E210: =IF(AND(ValuesEntered,ISNUMBER(C210)),IF($E$16="時間短縮",ROUND(IPMT(VLOOKUP($C210,Rate_table,2,TRUE)/12,1,$R209,$D210)*-1,0),ROUND(IPMT(VLOOKUP($C210,Rate_table,2,TRUE)/12,$B210,DurationOfLoan,LoanAmount-BonusAmount-SUM(extra_payments))*-1,0))+IF($I210=0,0,ROUND(IPMT(VLOOKUP($C210,Rate_table,2,TRUE)/12,COUNTIF($I$28:I210,">0"),DurationofBonus,BonusAmount)*-1,0)),"") -> ¥10,313 | F210: =IF(AND(ValuesEntered,ISNUMBER($C210)),IF($E$16="時間短縮",ROUND(PPMT(VLOOKUP($C210,Rate_table,2,TRUE)/12,1,$R209,$D210)*-1,0),ROUND(PPMT(VLOOKUP($C210,Rate_table,2,TRUE)/12,$B210,DurationOfLoan,LoanAmount-BonusAmount-SUM(extra_payments))*-1,0))+IF(I210=0,0,ROUND(PPMT(VLOOKUP($C210,Rate_table,2,TRUE)/12,COUNTIF($I$28:I210,">0"),DurationofBonus,BonusAmount)*-1,0)),"") -> ¥12,268 | I210: ¥0 | K210: ¥37,500 | L210: =IF(AND(ValuesEntered,ISNUMBER($C210)),SUM(E210:H210,J210:K210),"") -> ¥60,081 | O210: =IF(AND(ValuesEntered,ISNUMBER($C210)),D210-F210-J210,"") -> ¥12,311,740 | R210: 237
... 237 more rows

Sheet 金利設定
A1: 金利設定
B2: [住宅ローン計算シート] の金利タイプの中で、「変動金利」を選択した場合、 以下の赤字のセルの通産期間と金利の設定は、自由に入力することが可能です。 ※固定金利の場合、以下の数値を変更しても、[住宅ローン計算シート] への影響はありません。 ※設定上、ローン期間は最大35年（420か月）までの入力が可能です。
D4: 通算期間(ヶ月) | E4: 変更日 | F4: 金利(%)
B5: 設定 | C5: 第1期間金利 | D5: 0 | E5: =IF(D5="","",EDATE(LoanStart,金利設定!D5)) -> 2013-11-01 | F5: 3.08%
C6: 第2期間金利 | D6: 240 | E6: =IF(D6="","",EDATE(LoanStart,金利設定!D6)) -> 2033-11-01 | F6: 3.08%
C7: 第3期間金利 | E7: =IF(D7="","",EDATE(LoanStart,金利設定!D7)) -> 
C8: 第4期間金利 | E8: =IF(D8="","",EDATE(LoanStart,金利設定!D8)) -> 
C9: 第5期間金利 | E9: =IF(D9="","",EDATE(LoanStart,金利設定!D9)) -> 
C10: 第6期間金利 | E10: =IF(D10="","",EDATE(LoanStart,金利設定!D10)) -> 

Sheet 設定
A1: 毎月の返済シナリオの設定
B2: 以下の表の情報は、毎月の返済シナリオ ドロップダウン リストの選択肢と、シナリオ計算に使用される価格です。 この表に変更を加えると、シナリオでエラーが発生することがあります。
B4: 設定 | C4: 10% 増額 | D4: 110%
C5: 25% 増額 | D5: 125%
C6: 通常返済額 | D6: 100%
C7: 10% 減額 | D7: 90%
C8: 15% 減額 | D8: 85%
A11: 金利の種類
C12: 固定金利 | D12: 全期間固定
D13: 段階金利
D14: 固定金利選択型
C15: 変動金利 | D15: 変動金利
D16: 上限金利特約付き変動金利
